Workbook

Sheet Instructivo
A7: Tabla IV.1. Programa de Inversiones No Convencionales
A8: Aviso:
A9: Habilitar las macros antes de usar el archivo.
A10: No eliminar la hoja General o alguna de las correspondientes a los escenarios.
A11: Los montos ingresados deben estar en dólares americanos y sin considerar inflación.
A12: Sección | B12: Rubro | C12: Descripción del Rubro | D12: Observaciones
A13: Hoja General | C13: Complete con la información que se le solicita, de acuerdo al Plan a documentar.
A14: Hoja escenario # - detalle - clasificación | B14: Actividad, Sub-actividad, Tarea y Descripción | C14: El catálogo de actividades, Sub-actividades y Tareas no deberá ser modificado por los Operadores, manteniendo concordancia con el listado del contrato o asignación. | D14: De acuerdo a la ejecución de la estrategia diseñada por el Operador, se deberá identificar dentro del catálogo de Actividades, Sub-actividades y Tareas del contrato o asignación una correspondencia explícita entre el plan o programa y la información a ingresar en este formato. El nivel de información Descripción es requerido para Contratos con recuperación de costos, y opcional para Asignaciones y Contratos de Licencia, salvo en las Tareas relacionadas a recuperación secundaria o avanzada, la cuales deben tener Descripciones indetificadas con su id de Descripción correspondiente. El Operador podrá agregar las filas que consideren necesarias a las tablas, para ingresar tantas Descripciones como sean necesarias, de acuerdo al nivel de detalle requerido para el análisis del Plan o Programa. Por ejemplo; se recomienda utilizar una sub-tarea para cada meta física del Plan o Programa. En el rubro Descripción, debe agregarse un comentario que especifique los detalles para cada Sub-tarea, y que incluya la cantidad y las unidades con las que están estimados los montos documentados (por ejemplo: horas hombre, cantidad de trabajadores, tipo de estudios o trabajos, kilómetros cuadrados que abarca cada estudio, etc., según aplique). Cada Descripción se identifica con un id de Descripción definido por el Operador.
A15: Hoja escenario # - detalle - clasificación | B15: Costo considerado a ser elegible (Sí/No) | C15: Esta columna deberá sólo llenarse en el caso de que se trate de contratos con recuperación de costos, en cualquier otro caso, debe dejarse vacía, salvo que se quiera informar sobre la exclusión de un monto que se presenta con fines informativos.
A16: Hoja escenario # - detalle - estructura cc | B16: Área | C16: Área contractual o área de la asignación en la que se llevará la operación descrita en cada Tarea o Descripción. | D16: El Operador deberá indicar el área en el que se realizará la operación solamente cuando sea posible asociar el costo de la operación con el área contractual o área de la asignación.
A17: Hoja escenario # - detalle - estructura cc | B17: Campo | C17: Campo en el que se llevará la operación descrita en cada Tarea o Descripción. | D17: El Operador deberá indicar el campo en el que se realizará la operación solamente cuando sea posible asociar su costo con algún campo dentro del área contractual o área de la asignación.
A18: Hoja escenario # - detalle - estructura cc | B18: Yacimiento | C18: Yacimiento en el que se llevará la operación descrita en cada Tarea o Descripción. | D18: El Operador deberá indicar el yacimiento en el que se realizará la operación solamente cuando sea posible asociar su costo con algún yacimiento dentro del área contractual o área de la asignación.
A19: Hoja escenario # - detalle - estructura cc | B19: Pozo | C19: Pozo en el que se llevará la operación descrita en cada Tarea o Descripción. | D19: El Operador deberá indicar el pozo en el que se realizará la operación solamente cuando sea posible asociar su costo con algún pozo dentro del área contractual o área de la asignación.
A20: Hoja escenario # - detalle - programa de inversiones (dólares) | B20: Mano de obra, bienes, servicios, capacitación, transferencia de tecnología, infraestructura (social) | C20: Los costos de cada Tarea o Descripción deberán clasificarse de acuerdo a los lineamientos emitidos por la Secretaría de Economía. | D20: Todos los montos deberán estar expresados en dólares de los Estados Unidos de América. Los costos se deberán clasificar en Extranjeros o Contenido Nacional.
A21: Hoja escenario # - detalle - programa de inversiones (dólares) | B21: Año i | C21: Los costos programados anualmente para el año calendario. | D21: Rellenar la información por año calendario de los años señalados en la hoja "General".
A22: Finalizar | B22: Al terminar de ingresar la información, presionar el botón "He terminado de ingresar la información" y los Sub-totales se actualizarán.
A23: Notas especiales
A24: Variable | B24: Definición | C24: Recomendación para la presentación de costos
A25: Contenido Nacional | B25: El Contenido Nacional es un porcentaje que representa la parte del gasto que los Asignatarios y Contratistas hacen en bienes, servicios y mano de obra nacionales, así como en capacitación, transferencia de tecnología e infraestructura física local y regional en territorio nacional, para la realización de sus actividades de Exploración y Extracción. | C25: El Operador deberá cargar explícitamente los montos asociados al Contenido Nacional, en las sub-tareas "Capacitación", "Transferencia de Tecnología" e "Infraestructra Social", que se presentan en la columna "Descripción", para las Actividades Petroleras y las Sub-Actividades Petroleras correspondientes.
A26: Abandono | B26: La Actividad Petrolera concerniente a las actividades de retiro y desmantelamiento de los Materiales, incluyendo sin limitación, el taponamiento definitivo y abandono de Pozos, el desmontaje y retiro de todas las plantas, plataformas, instalaciones, maquinaria y equipo suministrado o utilizado por el Contratista o Asignatario en la realización de las Actividades Petroleras, así como la restauración ambiental del Área Contractual o Área de Asignación afectada por el Contratista o Asignatario en la realización de las Actividades Petroleras, de conformidad con los presentes Lineamientos, las Mejores Prácticas de la Industria, la Normatividad Aplicable y el Sistema de Administración. | C26: Se requiere cargar en este archivo de Programa de Costos totales, los costos totales de abandono del Plan o Programa. Para el caso de Contratos de Licencia o de Producción Compartida, se cargan las aportaciones al Fideicomiso de Abandono, clasificadas como elegibles , mientras que los costos totales de abandono del Plan o Programa, que sean fondeados a través de la reserva constituida en el fideicomiso de abandono, se clasifican como no elegibles, de acuerdo con la normativa aplicable.
A27: Recuperación avanzada | B27: Definida como procesos de recuperación secundaria o mejorada consistentes con las mejores prácticas de la industria para permitir una mayor recuperación de hidrocarburos en el área contractual o área de la asignación, incluyendo, sin limitación, el incremento en la presión del yacimiento y/o la mejora del desplazamiento de los hidrocarburos. | C27: Los montos asociados a la recuperación avanzada se identificarán como Descripciones de las Tareas que mejor les corresponda, añadiéndole al id elegido por el operador: RA/zz.. Donde, RA hará referencia a la recuperación avanzada y zz será el número consecutivo que identifique a cada Tarea o Descripción de recuperación avanzada. Al igual que todos lo montos, en la columna Descripción se debe agregar el detalle de las cantidades y unidades en que se estiman los costos.

Sheet General
D1: 1 | L1: identificador | M1: Numero | N1: área | O1: contratista | P1: Contrato | Q1: CUENCA | R1: ESTADO | S1: SUPERFICIE | T1: UBICACION | U1: REGISTRO_FIDUCIARIO
D2: 2 | H2: =+B4 -> CNH-R01-L01-A7/2015 | I2: =+MATCH(H2,M2:M641,0) -> 2 | L2: 1 | M2: CNH-R01-L01-A2/2015 | N2: A2 | O2: Sierra O&G Exploración y Producción, S. de R.L. de C.V., Talos energy Offshore Mexico 2, S. de R.L. de C.V., y Premier Oil exploration and Production Mexico, S.A. de C.V. | P2: Producción compartida | Q2: Cuencas del Sureste | R2: Veracruz | S2: 194.452 | T2: Aguas someras | U2: RF-C001-2015-001
A3: Número de Contrato/Asignación | D3: 3 | L3: 2 | M3: CNH-R01-L01-A7/2015 | N3: A7 | O3: Sierra O&G Exploración y Producción, S. de R.L. de C.V., Talos energy Offshore Mexico 2, S. de R.L. de C.V., y Premier Oil exploration and Production Mexico, S.A. de C.V. | P3: Producción compartida | Q3: Cuencas del Sureste | R3: Tabasco | S3: 464.799 | T3: Aguas someras | U3: RF-C002-2015-002
A4: Seleccione: | B4: CNH-R01-L01-A7/2015 | D4: 4 | L4: 3 | M4: CNH-R01-L02-A1/2015 | N4: A1 | O4: ENI México, S. de R.L. de C.V. | P4: Producción compartida | Q4: Cuencas del Sureste | R4: Tabasco | S4: 67.203 | T4: Aguas someras | U4: RF-C003-2015-003
A5: En caso de Otro, escríbalo: | D5: 5 | L5: 4 | M5: CNH-R01-L02-A2/2015 | N5: A2 | O5: Hokchi energy, S.A. de C.V., y e&P Hidrocarburos y Servicios, S.A. de C.V. | P5: Producción compartida | Q5: Cuencas del Sureste | R5: Tabasco | S5: 39.598 | T5: Aguas someras | U5: RF-C005-2016-002
A6: Fecha de llenado: | D6: 6 | G6: Plan | H6: 2 | L6: 5 | M6: CNH-R01-L02-A4/2015 | N6: A4 | O6: Fieldwood Energy E&P México, S. de R.L. de C.V., y Petrobal Upstream Delta 1, S.A de C.V. | P6: Producción compartida | Q6: Cuencas del Sureste | R6: Campeche | S6: 57.966 | T6: Aguas someras | U6: RF-C004-2016-001
A7: Indique los años calendario que abarca su Programa de Costos totales: | D7: 7 | G7: 2017 | H7: TRUE | I7: =+IF(H7=TRUE,1,0) -> 1 | J7: =+SUM($I$7:I7) -> 1 | L7: 6 | M7: CNH-R01-L03-A1/2015 | N7: A1 | O7: Diavaz Offshore, S.A.P.I. de C.V. | P7: Licencia | Q7: Tampico-Misantla | R7: Tamaulipas | S7: 10.955 | T7: Terrestre | U7: RF-C013-2016-010
D8: 8 | G8: 2018 | H8: FALSE | I8: =+IF(H8=TRUE,1,0) -> 0 | J8: =+SUM($I$7:I8) -> 1 | L8: 7 | M8: CNH-R01-L03-A10/2016 | N8: A10 | O8: Oleum del Norte, S.A.P.I. de C.V. | P8: Licencia | Q8: Tampico-Misantla | R8: Veracruz | S8: 10.244 | T8: Terrestre | U8: RF-C021-2016-022
D9: 9 | G9: 2019 | H9: FALSE | I9: 0 | J9: =+SUM($I$7:I9) -> 1 | L9: 8 | M9: CNH-R01-L03-A11/2015 | N9: A11 | O9: Renaissance Oil Corp., S.A. de C.V. | P9: Licencia | Q9: Cuencas del Sureste | R9: Chiapas | S9: 21.22 | T9: Terrestre | U9: RF-C014-2016-012
D10: 10 | G10: 2020 | H10: FALSE | I10: 0 | J10: =+SUM($I$7:I10) -> 1 | L10: 9 | M10: CNH-R01-L03-A12/2015 | N10: A12 | O10: Grupo Mareógrafo, S.A. de C.V. | P10: Licencia | Q10: Burgos | R10: Nuevo León | S10: 29.846 | T10: Terrestre | U10: RF-C017-2016-018
D11: 11 | G11: 2021 | H11: FALSE | I11: 0 | J11: =+SUM($I$7:I11) -> 1 | L11: 10 | M11: CNH-R01-L03-A13/2015 | N11: A13 | O11: Mayacaste Oil & Gas, S.A.P.I. de C.V. | P11: Licencia | Q11: Cuencas del Sureste | R11: Tabasco | S11: 21.867 | T11: Terrestre | U11: RF-C010-2016-007
D12: 12 | G12: 2022 | H12: FALSE | I12: 0 | J12: =+SUM($I$7:I12) -> 1 | L12: 11 | M12: CNH-R01-L03-A14/2015 | N12: A14 | O12: Canamex Energy Holdings, S.A.PI. de C.V. | P12: Licencia | Q12: Cuencas del Sureste | R12: Veracruz | S12: 46.321 | T12: Terrestre | U12: RF-C020-2016-021
D13: 13 | G13: 2023 | H13: FALSE | I13: 0 | J13: =+SUM($I$7:I13) -> 1 | L13: 12 | M13: CNH-R01-L03-A15/2015 | N13: A15 | O13: Renaissance Oil Corp., S.A. de C.V. | P13: Licencia | Q13: Cuencas del Sureste | R13: Chiapas | S13: 27.69308 | T13: Terrestre | U13: RF-C014-2016-013
D14: 14 | G14: 2024 | H14: FALSE | I14: 0 | J14: =+SUM($I$7:I14) -> 1 | L14: 13 | M14: CNH-R01-L03-A16/2015 | N14: A16 | O14: Roma Energy México, S. de R.L. de C.V. | P14: Licencia | Q14: Cuencas del Sureste | R14: Tabasco | S14: 17.015 | T14: Terrestre | U14: RF-C016-2016-017
D15: 15 | G15: 2025 | H15: FALSE | I15: 0 | J15: =+SUM($I$7:I15) -> 1 | L15: 14 | M15: CNH-R01-L03-A17/2016 | N15: A17 | O15: Servicios de Extraccion Petrolera Lifting de México, S.A. de C.V. | P15: Licencia | Q15: Tampico-Misantla | R15: Veracruz | S15: 23.118 | T15: Terrestre | U15: RF-C007-2016-026
G16: 2026 | H16: FALSE | I16: 0 | J16: =+SUM($I$7:I16) -> 1 | L16: 15 | M16: CNH-R01-L03-A18/2015 | N16: A18 | O16: Strata CPB, S.A.P.I. de C.V. | P16: Licencia | Q16: Burgos | R16: Nuevo León | S16: 25.983 | T16: Terrestre | U16: RF-C015-2016-016
A17: Indique el tipo de Plan al que se relacionará su Programa de Costos totales: | D17: =+SUM(I7:I66) -> 1 | G17: 2027 | H17: FALSE | I17: 0 | J17: =+SUM($I$7:I17) -> 1 | L17: 16 | M17: CNH-R01-L03-A19/2016 | N17: A19 | O17: Renaissance Oil Corp., S.A. de C.V. | P17: Licencia | Q17: Tampico-Misantla | R17: Veracruz | S17: 11.804 | T17: Terrestre | U17: RF-C014-2016-027
G18: 2028 | H18: FALSE | I18: 0 | J18: =+SUM($I$7:I18) -> 1 | L18: 17 | M18: CNH-R01-L03-A2/2015 | N18: A2 | O18: Consorcio Petrolero 5M Del Golfo, S.A.P.I. de C.V. | P18: Licencia | Q18: Burgos | R18: Nuevo León | S18: 171.464 | T18: Terrestre | U18: RF-C006-2016-003
G19: 2029 | H19: FALSE | I19: 0 | J19: =+SUM($I$7:I19) -> 1 | L19: 18 | M19: CNH-R01-L03-A20/2016 | N19: A20 | O19: GS Oil & Gas, S.A.P.I. de C.V. | P19: Licencia | Q19: Burgos | R19: Tamaulipas | S19: 23.663 | T19: Terrestre | U19: RF-C022-2016-023
G20: 2030 | H20: FALSE | I20: 0 | J20: =+SUM($I$7:I20) -> 1 | L20: 19 | M20: CNH-R01-L03-A21/2016 | N20: A21 | O20: Strata CR, S.A.P.I. de C.V. | P20: Licencia | Q20: Burgos | R20: Nuevo León | S20: 28.308 | T20: Terrestre | U20: RF-C023-2016-024
A21: Número de escenarios del Programa de Costos totales: | B21: 1 | G21: 2031 | H21: FALSE | I21: 0 | J21: =+SUM($I$7:I21) -> 1 | L21: 20 | M21: CNH-R01-L03-A22/2015 | N21: A22 | O21: Secadero Petróleo y Gas, S.A. de C.V. | P21: Licencia | Q21: Cuencas del Sureste | R21: Chiapas | S21: 9.788 | T21: Terrestre | U21: RF-C008-2016-005
G22: 2032 | H22: FALSE | I22: 0 | J22: =+SUM($I$7:I22) -> 1 | L22: 21 | M22: CNH-R01-L03-A23/2015 | N22: A23 | O22: Perseus Tajón, S.A. de C.V. | P22: Licencia | Q22: Cuencas del Sureste | R22: Tabasco | S22: 27.52502 | T22: Terrestre | U22: RF-C011-2016-008
A23: Ingrese el nombre de cada escenario (los hojas donde se ingrese cada escenario deberán continuar nombrándose "Escenario 1," "Escenario 2"…) | G23: 2033 | H23: FALSE | I23: 0 | J23: =+SUM($I$7:I23) -> 1 | L23: 22 | M23: CNH-R01-L03-A24/2016 | N23: A24 | O23: Tonalli Energía, S.AP.I. de C.V. | P23: Licencia | Q23: Tampico-Misantla | R23: Veracruz | S23: 7.162 | T23: Terrestre | U23: RF-C024-2016-025
A24: =+IF($B$21>=D1,CONCATENATE("Escenario ",D1,":"),"") -> Escenario 1: | G24: 2034 | H24: FALSE | I24: 0 | J24: =+SUM($I$7:I24) -> 1 | L24: 23 | M24: CNH-R01-L03-A25/2015 | N24: A25 | O24: Renaissance Oil Corp., S.A. de C.V. | P24: Licencia | Q24: Cuencas del Sureste | R24: Chiapas | S24: 25.267 | T24: Terrestre | U24: RF-C014-2016-014
G25: 2035 | H25: FALSE | I25: 0 | J25: =+SUM($I$7:I25) -> 1 | L25: 24 | M25: CNH-R01-L03-A3/2015 | N25: A3 | O25: CMM Calibrador, S.A. de C.V. | P25: Licencia | Q25: Burgos | R25: Nuevo León | S25: 16.082 | T25: Terrestre | U25: RF-C018-2016-019
G26: 2036 | H26: FALSE | I26: 0 | J26: =+SUM($I$7:I26) -> 1 | L26: 25 | M26: CNH-R01-L03-A4/2015 | N26: A4 | O26: Calicanto Oil & Gas, S.A.P.I. de C.V. | P26: Licencia | Q26: Cuencas del Sureste | R26: Tabasco | S26: 10.575 | T26: Terrestre | U26: RF-C009-2016-006
G27: 2037 | H27: FALSE | I27: =+IF(H27=TRUE,1,0) -> 0 | J27: =+SUM($I$7:I27) -> 1 | L27: 26 | M27: CNH-R01-L03-A5/2015 | N27: A5 | O27: Strata CPB, S.A.P.I. de C.V. | P27: Licencia | Q27: Burgos | R27: Nuevo León | S27: 89.407 | T27: Terrestre | U27: RF-C015-2016-016
G28: 2038 | H28: FALSE | I28: 0 | J28: =+SUM($I$7:I28) -> 1 | L28: 27 | M28: CNH-R01-L03-A6/2015 | N28: A6 | O28: Diavaz Offshore, S.A.P.I. de C.V. | P28: Licencia | Q28: Cuencas del Sureste | R28: Chiapas | S28: 57.991 | T28: Terrestre | U28: RF-C013-2016-011
G29: 2039 | H29: FALSE | I29: 0 | J29: =+SUM($I$7:I29) -> 1 | L29: 28 | M29: CNH-R01-L03-A7/2015 | N29: A7 | O29: Servicios de extraccion Petrolera Lifting de México, S.A. de C.V. | P29: Licencia | Q29: Cuencas del Sureste | R29: Veracruz | S29: 41.464 | T29: Terrestre | U29: RF-C007-2016-004
G30: 2040 | H30: FALSE | I30: 0 | J30: =+SUM($I$7:I30) -> 1 | L30: 29 | M30: CNH-R01-L03-A8/2015 | N30: A8 | O30: Dunas Exploración y Producción, S.A.P.I. de C.V. | P30: Licencia | Q30: Burgos | R30: Nuevo León | S30: 36.742 | T30: Terrestre | U30: RF-C019-2016-020
G31: 2041 | H31: FALSE | I31: 0 | J31: =+SUM($I$7:I31) -> 1 | L31: 30 | M31: CNH-R01-L03-A9/2015 | N31: A9 | O31: Perseus Fortuna Nacional, S.A. de C.V. | P31: Licencia | Q31: Cuencas del Sureste | R31: Tabasco | S31: 21.978 | T31: Terrestre | U31: RF-C012-2016-009
G32: 2042 | H32: FALSE | I32: 0 | J32: =+SUM($I$7:I32) -> 1 | L32: 31 | M32: CNH-R01-L04-A1.CPP/2016 | N32: A1.CPP | O32: China Offshore Oil Corporation e&P Mexico, S.A.P.I. de C.V. | P32: Licencia | Q32: Golfo de México Profundo | R32: Tamaulipas | S32: 1678 | T32: Aguas profundas | U32: RF-C027-2017-003
G33: 2043 | H33: FALSE | I33: 0 | J33: =+SUM($I$7:I33) -> 1 | L33: 32 | M33: CNH-R01-L04-A1.CS/2016 | N33: A1.CS | O33: Statoil E&P Mexico, S.A. de C.V., BP Exploration Mexico, S.A. de C.V., y Total E&P Mexico, S.A. de C.V. | P33: Licencia | Q33: Golfo de México Profundo | R33: Veracruz | S33: 2381.1 | T33: Aguas profundas | U33: RF-C030-2017-007
G34: 2044 | H34: FALSE | I34: 0 | J34: =+SUM($I$7:I34) -> 1 | L34: 33 | M34: CNH-R01-L04-A2.CPP/2016 | N34: A2.CPP | O34: Total E&P Mexico, S.A. de C.V., y Exxonmobil Exploración y Producción México, S. de R.L. de C.V. | P34: Licencia | Q34: Golfo de México Profundo | R34: Tamaulipas | S34: 2976.6 | T34: Aguas profundas | U34: RF-C028-2017-005
G35: 2045 | H35: FALSE | I35: 0 | J35: =+SUM($I$7:I35) -> 1 | L35: 34 | M35: CNH-R01-L04-A3.CPP/2016 | N35: A3.CPP | O35: Chevron Energía de México, S. de R.L. de C.V., Pemex Exploración y Producción, e Inpex E&P Mexico, S.A. de C.V. | P35: Licencia | Q35: Golfo de México Profundo | R35: Tamaulipas | S35: 1686.9 | T35: Aguas profundas | U35: RF-C026-2017-002
G36: 2046 | H36: FALSE | I36: =+IF(H36=TRUE,1,0) -> 0 | J36: =+SUM($I$7:I36) -> 1 | L36: 35 | M36: CNH-R01-L04-A3.CS/2016 | N36: A3.CS | O36: Statoil E&P Mexico, S.A. de C.V., BP Exploration Mexico, S.A. de C.V., y Total E&P Mexico, S.A. de C.V. | P36: Licencia | Q36: Golfo de México Profundo | R36: Veracruz | S36: 3287.1 | T36: Aguas profundas | U36: RF-C030-2017-008
G37: 2047 | H37: FALSE | I37: =+IF(H37=TRUE,1,0) -> 0 | J37: =+SUM($I$7:I37) -> 1 | L37: 36 | M37: CNH-R01-L04-A4.CPP/2016 | N37: A4.CPP | O37: China Offshore Oil Corporation E&P Mexico, S.A.P.I. de C.V. | P37: Licencia | Q37: Golfo de México Profundo | R37: Tamaulipas | S37: 1876.7 | T37: Aguas profundas | U37: RF-C027-2017-004
G38: 2048 | H38: FALSE | I38: 0 | J38: =+SUM($I$7:I38) -> 1 | L38: 37 | M38: CNH-R01-L04-A4.CS/2016 | N38: A4.CS | O38: PC Carigali Mexico Operations, S.A. de C.V., y Sierra Coronado E&P, S. de R.L. de C.V. | P38: Licencia | Q38: Golfo de México Profundo | R38: Veracruz | S38: 2358.7 | T38: Aguas profundas | U38: RF-C029-2017-006
A39: Ingrese el tipo de cambio de dólares de Estados Unidos (US$) a pesos Mexicanos, que consideró: | G39: 2049 | H39: FALSE | I39: 0 | J39: =+SUM($I$7:I39) -> 1 | L39: 38 | M39: CNH-R01-L04-A5.CS/2016 | N39: A5.CS | O39: Murphy Sur, S. de R.L. de C.V., Ophir Mexico Block 5 Salina, S.A. de C.V., PC Carigali Mexico Operations, S.A. de C.V., y Sierra Offshore exploration, S. de R.L. de C.V. | P39: Licencia | Q39: Golfo de México Profundo | R39: Tabasco | S39: 2573.2 | T39: Aguas profundas | U39: RF-C031-2017-009
G40: 2050 | H40: FALSE | I40: 0 | J40: =+SUM($I$7:I40) -> 1 | L40: 39 | M40: CNH-R02-L01-A10.CS/2017 | N40: A10.CS | O40: ENI México, S. de R.L. de C.V. | P40: Producción compartida | Q40: Cuencas del Sureste | R40: Tabasco | S40: 532.645 | T40: Aguas someras | U40: RF-C003-2017-019
G41: 2051 | H41: FALSE | I41: 0 | J41: =+SUM($I$7:I41) -> 1 | L41: 40 | M41: CNH-R02-L01-A11.CS/2017 | N41: A11.CS | O41: Repsol Exploración México, Sierra Perote E&P | P41: Producción compartida | Q41: Cuencas del Sureste | R41: Tabasco | S41: 532.926 | T41: Aguas someras | U41: RF-C034-2017-012
A42: Ingrese la inversión y los gastos de operación que señala en el Plan o Programa, para cada escenario en dólares (monto total, en US$): | G42: 2052 | H42: FALSE | I42: 0 | J42: =+SUM($I$7:I42) -> 1 | L42: 41 | M42: CNH-R02-L01-A12.CS/2017 | N42: A12.CS | O42: Lukoil Upstream México | P42: Producción compartida | Q42: Cuencas del Sureste | R42: Tabasco | S42: 521.167 | T42: Aguas someras | U42: RF-C037-2017-015
A43: =+A24 -> Escenario 1: | G43: 2053 | H43: FALSE | I43: 0 | J43: =+SUM($I$7:I43) -> 1 | L43: 42 | M43: CNH-R02-L01-A14.CS/2017 | N43: A14.CS | O43: ENI Mexico, S. de R.L. de C.V. y Citla Energy B14 | P43: Producción compartida | Q43: Cuencas del Sureste | R43: Tabasco | S43: 466.465 | T43: Aguas someras | U43: RF-C039-2017-017
A44: =+A25 ->  | G44: 2054 | H44: FALSE | I44: 0 | J44: =+SUM($I$7:I44) -> 1 | L44: 43 | M44: CNH-R02-L01-A15.CS/2017 | N44: A15.CS | O44: Total E&P México y Shell Exploración y Extracción | P44: Producción compartida | Q44: Cuencas del Sureste | R44: Campeche | S44: 971.567 | T44: Aguas someras | U44: RF-C040-2017-020
G45: 2055 | H45: FALSE | I45: 0 | J45: =+SUM($I$7:I45) -> 1 | L45: 44 | M45: CNH-R02-L01-A2.TM/2017 | N45: A2.TM | O45: Pemex Exploración y Producción, y DEA Deutsche | P45: Producción compartida | Q45: Tampico-Misantla | R45: Veracruz | S45: 548.657 | T45: Aguas someras | U45: RF-C036-2017-014
G46: 2056 | H46: FALSE | I46: 0 | J46: =+SUM($I$7:I46) -> 1 | L46: 45 | M46: CNH-R02-L01-A6.CS/2017 | N46: A6.CS | O46: PC Carigali y ECP Hidrocarburos México | P46: Producción compartida | Q46: Cuencas del Sureste | R46: Veracruz | S46: 559.284 | T46: Aguas someras | U46: RF-C038-2017-016
G47: 2057 | H47: FALSE | I47: 0 | J47: =+SUM($I$7:I47) -> 1 | L47: 46 | M47: CNH-R02-L01-A7.CS/2017 | N47: A7.CS | O47: ENI México, Capricorn Energy y Citla Energy B7 | P47: Producción compartida | Q47: Cuencas del Sureste | R47: Tabasco | S47: 590.752 | T47: Aguas someras | U47: RF-C041-2017-018
G48: 2058 | H48: FALSE | I48: 0 | J48: =+SUM($I$7:I48) -> 1 | L48: 47 | M48: CNH-R02-L01-A8.CS/2017 | N48: A8.CS | O48: Pemex Exploración y Producción, y ECP Hidrocarburos México | P48: Producción compartida | Q48: Cuencas del Sureste | R48: Tabasco | S48: 586.002 | T48: Aguas someras | U48: RF-C035-2017-013
G49: 2059 | H49: FALSE | I49: 0 | J49: =+SUM($I$7:I49) -> 1 | L49: 48 | M49: CNH-R02-L01-A9.CS/2017 | N49: A9.CS | O49: Capricorn Energy y Citla Energy B9 | P49: Producción compartida | Q49: Cuencas del Sureste | R49: Tabasco | S49: 562.375 | T49: Aguas someras | U49: RF-C033-2017-011
G50: 2060 | H50: FALSE | I50: 0 | J50: =+SUM($I$7:I50) -> 1 | L50: 49 | M50: CNH-R02-L02-A1.BG/2017 | N50: A1.BG | O50: Iberoamericana y PJP4 | P50: Licencia | Q50: Burgos | R50: Nuevo León | S50: 360.337 | T50: Terrestre | U50: RF-C043-2017-040
G51: 2061 | H51: FALSE | I51: 0 | J51: =+SUM($I$7:I51) -> 1 | L51: 50 | M51: CNH-R02-L02-A10.CS/2017 | N51: A10.CS | O51: Sun God y Jaguar Exploración y Producción | P51: Licencia | Q51: Cuencas del Sureste | R51: Tabasco | S51: 347.339 | T51: Terrestre | U51: RF-C042-2017-038
G52: 2062 | H52: FALSE | I52: 0 | J52: =+SUM($I$7:I52) -> 1 | L52: 51 | M52: CNH-R02-L02-A4.BG/2017 | N52: A4.BG | O52: Sun God y Jaguar Exploración y Producción | P52: Licencia | Q52: Burgos | R52: Tamaulipas | S52: 440.313 | T52: Terrestre | U52: RF-C042-2017-036
G53: 2063 | H53: FALSE | I53: 0 | J53: =+SUM($I$7:I53) -> 1 | L53: 52 | M53: CNH-R02-L02-A5.BG/2017 | N53: A5.BG | O53: Sun God y Jaguar Exploración y Producción | P53: Licencia | Q53: Burgos | R53: Tamaulipas | S53: 444.636 | T53: Terrestre | U53: RF-C042-2017-037
G54: 2064 | H54: FALSE | I54: 0 | J54: =+SUM($I$7:I54) -> 1 | L54: 53 | M54: CNH-R02-L02-A7.BG/2017 | N54: A7.BG | O54: Sun God y Jaguar Exploración y Producción | P54: Licencia | Q54: Burgos | R54: Tamaulipas | S54: 445.008 | T54: Terrestre | U54: RF-C042-2017-021
G55: 2065 | H55: FALSE | I55: 0 | J55: =+SUM($I$7:I55) -> 1 | L55: 54 | M55: CNH-R02-L02-A8.BG/2017 | N55: A8.BG | O55: Sun God y Jaguar Exploración y Producción | P55: Licencia | Q55: Burgos | R55: Tamaulipas | S55: 416.117 | T55: Terrestre | U55: RF-C042-2017-035
G56: 2066 | H56: FALSE | I56: 0 | J56: =+SUM($I$7:I56) -> 1 | L56: 55 | M56: CNH-R02-L02-A9.BG/2017 | N56: A9.BG | O56: Sun God y Jaguar Exploración y Producción | P56: Licencia | Q56: Burgos | R56: Tamaulipas | S56: 463.989 | T56: Terrestre | U56: RF-C042-2017-034
G57: 2067 | H57: FALSE | I57: 0 | J57: =+SUM($I$7:I57) -> 1 | L57: 56 | M57: CNH-R02-L03-BG-01/2017 | N57: A6 | O57: Iberoamericana y PJP4 | P57: Licencia | Q57: Burgos | R57: Nuevo León | S57: 99.25239 | T57: Terrestre | U57: RF-C043-2017-022
G58: 2068 | H58: FALSE | I58: 0 | J58: =+SUM($I$7:I58) -> 1 | L58: 57 | M58: CNH-R02-L03-BG-02/2017 | N58: A2 | O58: Newpek y Verdad Exploration | P58: Licencia | Q58: Burgos | R58: Tamaulipas | S58: 162.96084 | T58: Terrestre | U58: RF-C044-2017-030
G59: 2069 | H59: FALSE | I59: 0 | J59: =+SUM($I$7:I59) -> 1 | L59: 58 | M59: CNH-R02-L03-BG-03/2017 | N59: A3 | O59: Newpek y Verdad Exploration | P59: Licencia | Q59: Burgos | R59: Tamaulipas | S59: 199.59191 | T59: Terrestre | U59: RF-C044-2017-023
G60: 2070 | H60: FALSE | I60: 0 | J60: =+SUM($I$7:I60) -> 1 | L60: 59 | M60: CNH-R02-L03-BG-04/2017 | N60: A4 | O60: Iberoamericana y PJP4 | P60: Licencia | Q60: Burgos | R60: Tamaulipas | S60: 199.2626 | T60: Terrestre | U60: RF-C043-2017-039
G61: 2071 | H61: FALSE | I61: 0 | J61: =+SUM($I$7:I61) -> 1 | L61: 60 | M61: CNH-R02-L03-CS-01/2017 | N61: A9 | O61: Jaguar Exploración y Producción | P61: Licencia | Q61: Cuencas del Sureste | R61: Tabasco | S61: 95.16813 | T61: Terrestre | U61: RF-C045-2017-026
G62: 2072 | H62: FALSE | I62: 0 | J62: =+SUM($I$7:I62) -> 1 | L62: 61 | M62: CNH-R02-L03-CS-02/2017 | N62: A10 | O62: Shandong, Sicoval y Nuevas Soluciones | P62: Licencia | Q62: Cuencas del Sureste | R62: Veracruz | S62: 247.95576 | T62: Terrestre | U62: RF-C046-2017-025
G63: 2073 | H63: FALSE | I63: 0 | J63: =+SUM($I$7:I63) -> 1 | L63: 62 | M63: CNH-R02-L03-CS-03/2017 | N63: A11 | O63: Shandong, Sicoval y Nuevas Soluciones | P63: Licencia | Q63: Cuencas del Sureste | R63: Veracruz | S63: 215.08184 | T63: Terrestre | U63: RF-C046-2017-029
G64: 2074 | H64: FALSE | I64: 0 | J64: =+SUM($I$7:I64) -> 1 | L64: 63 | M64: CNH-R02-L03-CS-04/2017 | N64: A12 | O64: Carso Oil and Gas | P64: Licencia | Q64: Cuencas del Sureste | R64: Veracruz | S64: 244.77525 | T64: Terrestre | U64: RF-C047-2017-027
G65: 2075 | H65: FALSE | I65: 0 | J65: =+SUM($I$7:I65) -> 1 | L65: 64 | M65: CNH-R02-L03-CS-05/2017 | N65: A13 | O65: Carso Oil and Gas | P65: Licencia | Q65: Cuencas del Sureste | R65: Veracruz | S65: 233.59786 | T65: Terrestre | U65: RF-C048-2017-028
G66: 2076 | H66: FALSE | I66: 0 | J66: =+SUM($I$7:I66) -> 1 | L66: 65 | M66: CNH-R02-L03-CS-06/2017 | N66: A14 | O66: Jaguar Exploración y Producción | P66: Licencia | Q66: Cuencas del Sureste | R66: Tabasco | S66: 148.19034 | T66: Terrestre | U66: RF-C045-2017-031
J67: =+MATCH(1,J7:J66,) -> 1 | L67: 66 | M67: CNH-R02-L03-TM-01/2017 | N67: A5 | O67: Jaguar Exploración y Producción | P67: Licencia | Q67: Tampico-Misantla | R67: Veracruz | S67: 72.39337 | T67: Terrestre | U67: RF-C045-2017-024
J68: =+MAX(J7:J66) -> 1 | L68: 67 | M68: CNH-R02-L03-VC-01/2018 | N68: A6 | O68: Roma E&P, Tubular, Suministros y Golfo Suplemento | P68: Licencia | Q68: Veracruz | R68: Veracruz | S68: 192.9 | T68: Terrestre | U68: RF-C052-2018-004
L69: 68 | M69: CNH-R02-L03-VC-02/2017 | N69: A7 | O69: Jaguar Exploración y Producción | P69: Licencia | Q69: Veracruz | R69: Veracruz | S69: 251.35026 | T69: Terrestre | U69: RF-C045-2017-032
A70: Superficie | B70: =+OFFSET($S$1,$I$2,0) -> 464.799 | L70: 69 | M70: CNH-R02-L03-VC-03/2017 | N70: A8 | O70: Jaguar Exploración y Producción | P70: Licencia | Q70: Veracruz | R70: Veracruz | S70: 231.66276 | T70: Terrestre | U70: RF-C045-2017-033
A71: Cuenca | B71: =+OFFSET($Q$1,$I$2,0) -> Cuencas del Sureste | L71: 70 | M71: CNH-R02-L04-AP-CM-G01/2018 | N71: A10 | O71: Repsol Exploración México | P71: Licencia | Q71: Golfo de México Profundo | R71: Veracruz | S71: 1999.3 | T71: Aguas profundas | U71: RF-C056-2018-011
A72: Ubicación | B72: =+OFFSET($T$1,$I$2,0) -> Aguas someras | L72: 71 | M72: CNH-R02-L04-AP-CM-G03/2018 | N72: A12 | O72: PC Carigali Mexico Operations | P72: Licencia | Q72: Golfo de México Profundo | R72: Tamaulipas | S72: 3099.4 | T72: Aguas profundas | U72: RF-C058-2018-016
A73: Estado | B73: =+OFFSET($R$1,$I$2,0) -> Tabasco | L73: 72 | M73: CNH-R02-L04-AP-CM-G05/2018 | N73: A14 | O73: Repsol y PC Carigali | P73: Licencia | Q73: Golfo de México Profundo | R73: Tamaulipas | S73: 2241.8 | T73: Aguas profundas | U73: RF-C057-2018-015
A74: Plan | B74: =+OFFSET($P$1,$I$2,0) -> Producción compartida | L74: 73 | M74: CNH-R02-L04-AP-CM-G09/2018 | N74: A18 | O74: Pemex Exploración y Producción | P74: Licencia | Q74: Golfo de México Profundo | R74: Veracruz | S74: 2917.1 | T74: Aguas profundas | U74: RF-C032-2018-022
A75: Programa de Inversiones o Programa | L75: 74 | M75: CNH-R02-L04-AP-CS-G01/2018 | N75: A20 | O75: Shell Exploracion y Extraccion de Mexico | P75: Licencia | Q75: Golfo de México Profundo | R75: Veracruz | S75: 2079.5 | T75: Aguas profundas | U75: RF-C054-2018-007
A76: Tipo de contrato | B76: =+OFFSET($P$1,$I$2,0) -> Producción compartida | C76: =+IF(B76="Producción compartida",1,0) -> 1 | L76: 75 | M76: CNH-R02-L04-AP-CS-G02/2018 | N76: A21 | O76: Shell Exploracion y Extraccion de Mexico | P76: Licencia | Q76: Golfo de México Profundo | R76: Tabasco | S76: 2029.7 | T76: Aguas profundas | U76: RF-C054-2018-008
L77: 76 | M77: CNH-R02-L04-AP-CS-G03/2018 | N77: A22 | O77: Chevron Energía de México | P77: Licencia | Q77: Golfo de México Profundo | R77: Tabasco | S77: 2879 | T77: Aguas profundas | U77: RF-C026-2018-021
L78: 77 | M78: CNH-R02-L04-AP-CS-G04/2018 | N78: A23 | O78: Shell Exploracion y Extraccion de Mexico | P78: Licencia | Q78: Golfo de México Profundo | R78: Tabasco | S78: 1852.9 | T78: Aguas profundas | U78: RF-C054-2018-014
L79: 78 | M79: CNH-R02-L04-AP-CS-G05/2018 | N79: A24 | O79: Eni México | P79: Licencia | Q79: Golfo de México Profundo | R79: Veracruz | S79: 1921.9 | T79: Aguas profundas | U79: RF-C061-2018-020
L80: 79 | M80: CNH-R02-L04-AP-CS-G06/2018 | N80: A25 | O80: PC Carigali Mexico Operations | P80: Licencia | Q80: Golfo de México Profundo | R80: Veracruz | S80: 2107 | T80: Aguas profundas | U80: RF-C060-2018-018
L81: 80 | M81: CNH-R02-L04-AP-CS-G07/2018 | N81: A26 | O81: PC Carigali Mexico Operations | P81: Licencia | Q81: Golfo de México Profundo | R81: Tamaulipas | S81: 2030.4 | T81: Aguas profundas | U81: RF-C060-2018-019
L82: 81 | M82: CNH-R02-L04-AP-CS-G09/2018 | N82: A28 | O82: Shell Exploracion y Extraccion de Mexico | P82: Licencia | Q82: Golfo de México Profundo | R82: Tamaulipas | S82: 3066.8 | T82: Aguas profundas | U82: RF-C054-2018-009
L83: 82 | M83: CNH-R02-L04-AP-CS-G10/2018 | N83: A29 | O83: Repsol Exploración México | P83: Licencia | Q83: Golfo de México Profundo | R83: Veracruz | S83: 3253.6 | T83: Aguas profundas | U83: RF-C055-2018-010
L84: 83 | M84: CNH-R02-L04-AP-PG02/2018 | N84: A2 | O84: Shell Exploracion y Extraccion de Mexico | P84: Licencia | Q84: Golfo de México Profundo | R84: Tamaulipas | S84: 2146.2 | T84: Aguas profundas | U84: RF-C059-2018-017
L85: 84 | M85: CNH-R02-L04-AP-PG03/2018 | N85: A3 | O85: Shell y Qatar Petroleum | P85: Licencia | Q85: Golfo de México Profundo | R85: Tamaulipas | S85: 2061.8 | T85: Aguas profundas | U85: RF-C053-2018-012
L86: 85 | M86: CNH-R02-L04-AP-PG04/2018 | N86: A4 | O86: Shell Exploracion y Extraccion de Mexico | P86: Licencia | Q86: Golfo de México Profundo | R86: Tamaulipas | S86: 1900.2 | T86: Aguas profundas | U86: RF-C053-2018-013
L87: 86 | M87: CNH-R02-L04-AP-PG05/2018 | N87: A5 | O87: Pemex Exploración y Producción | P87: Licencia | Q87: Golfo de México Profundo | R87: Tamaulipas | S87: 2732.7 | T87: Aguas profundas | U87: RF-C032-2018-023
L88: 87 | M88: CNH-R02-L04-AP-PG06/2018 | N88: A6 | O88: Shell Exploracion y Extraccion de Mexico | P88: Licencia | Q88: Golfo de México Profundo | R88: Tamaulipas | S88: 1890.6 | T88: Aguas profundas | U88: RF-C053-2018-005
L89: 88 | M89: CNH-R02-L04-AP-PG07/2018 | N89: A7 | O89: Shell Exploracion y Extraccion de Mexico | P89: Licencia | Q89: Golfo de México Profundo | R89: Tamaulipas | S89: 1967.9 | T89: Aguas profundas | U89: RF-C053-2018-006
L90: 89 | M90: CNH-R03-L01-AS-B-57/2018 | N90: A11 | O90: Premier Oil Exploration and Production Mexico | P90: Producción compartida | Q90: Burgos | R90: Tamaulipas | S90: 391 | T90: Aguas someras | U90: RF-C064-2018-027
L91: 90 | M91: CNH-R03-L01-AS-B-60/2018 | N91: A13 | O91: Premier Oil Exploration and Production Mexico | P91: Producción compartida | Q91: Burgos | R91: Tamaulipas | S91: 392 | T91: Aguas someras | U91: RF-C064-2018-028
L92: 91 | M92: CNH-R03-L01-AS-CS-06/2018 | N92: A33 | O92: Total y Pemex | P92: Producción compartida | Q92: Cuencas del Sureste | R92: Tabasco | S92: 581 | T92: Aguas someras | U92: RF-C066-2018-030
L93: 92 | M93: CNH-R03-L01-AS-CS-13/2018 | N93: A29 | O93: Pemex Exploración y Producción | P93: Producción compartida | Q93: Cuencas del Sureste | R93: Tabasco | S93: 471 | T93: Aguas someras | U93: RF-C032-2018-024
L94: 93 | M94: CNH-R03-L01-AS-CS-14/2018 | N94: A30 | O94: Deutsche, Premier y Sapura | P94: Producción compartida | Q94: Cuencas del Sureste | R94: Tabasco | S94: 528 | T94: Aguas someras | U94: RF-C063-2018-026
L95: 94 | M95: CNH-R03-L01-AS-CS-15/2018 | N95: A31 | O95: Pan American Energy | P95: Producción compartida | Q95: Cuencas del Sureste | R95: Veracruz | S95: 263 | T95: Aguas someras | U95: RF-C070-2018-035
L96: 95 | M96: CNH-R03-L01-G-BG-05/2018 | N96: A5 | O96: Repsol Exploración México | P96: Producción compartida | Q96: Burgos | R96: Tamaulipas | S96: 814 | T96: Aguas someras | U96: RF-C071-2018-036
L97: 96 | M97: CNH-R03-L01-G-BG-07/2018 | N97: A12 | O97: Repsol Exploración México | P97: Producción compartida | Q97: Burgos | R97: Tamaulipas | S97: 811 | T97: Aguas someras | U97: RF-C071-2018-037
L98: 97 | M98: CNH-R03-L01-G-CS-01/2018 | N98: A28 | O98: Eni y Lukoil | P98: Producción compartida | Q98: Cuencas del Sureste | R98: Veracruz | S98: 808 | T98: Aguas someras | U98: RF-C062-2018-025
L99: 98 | M99: CNH-R03-L01-G-CS-02/2018 | N99: A32 | O99: Total y Pemex | P99: Producción compartida | Q99: Cuencas del Sureste | R99: Tabasco | S99: 1027 | T99: Aguas someras | U99: RF-C066-2018-038
L100: 99 | M100: CNH-R03-L01-G-CS-03/2018 | N100: A34 | O100: Total, BP y Pan American | P100: Producción compartida | Q100: Cuencas del Sureste | R100: Campeche | S100: 734 | T100: Aguas someras | U100: RF-C067-2018-031
L101: 100 | M101: CNH-R03-L01-G-CS-04/2018 | N101: A35 | O101: Shell y Pemex | P101: Producción compartida | Q101: Cuencas del Sureste | R101: Campeche | S101: 798 | T101: Aguas someras | U101: RF-C059-2018-039
L102: 101 | M102: CNH-R03-L01-G-TMV-01/2018 | N102: A15 | O102: Capricorn y Citla | P102: Producción compartida | Q102: Tampico-Misantla | R102: Veracruz | S102: 962 | T102: Aguas someras | U102: RF-C065-2018-029
L103: 102 | M103: CNH-R03-L01-G-TMV-02/2108 | N103: A16 | O103: Pemex, Deutsche y Compañía Española | P103: Producción compartida | Q103: Tampico-Misantla | R103: Veracruz | S103: 785 | T103: Aguas someras | U103: RF-C069-2018-033
L104: 103 | M104: CNH-R03-L01-G-TMV-03/2018 | N104: A17 | O104: Pemex, Deutsche y Compañía Española | P104: Producción compartida | Q104: Tampico-Misantla | R104: Veracruz | S104: 842 | T104: Aguas someras | U104: RF-C069-2018-034
L105: 104 | M105: CNH-R03-L01-G-TMV-04/2018 | N105: A18 | O105: Pemex y Compañía Española | P105: Producción compartida | Q105: Tampico-Misantla | R105: Veracruz | S105: 813 | T105: Aguas someras | U105: RF-C068-2018-032
L106: 105 | M106: CNH-A1-TRION/2016 | N106: A1 | O106: BHP Billiton Petróleo Operaciones de México, S. de R.L. de C.V., y Pemex Exploración y Producción | P106: Licencia | Q106: Golfo de México Profundo | R106: Tamaulipas | S106: 1285.2 | T106: Aguas profundas | U106: RF-C025-2017-001
L107: 106 | M107: CNH-A3-CÁRDENAS-MORA/2018 | N107: A3 | O107: Petrolera Cárdenas Mora, S.A.P.I. de C.V. y Pemex Exploración y Producción | P107: Licencia | Q107: Cuencas del Sureste | R107: Tabasco | S107: 168.146 | T107: Terrestre | U107: RF-C051-2018-003
L108: 107 | M108: CNH-A4-OGARRIO/2018 | N108: A4 | O108: Deutsche Erdoel México, S. DE R.L. de C.V. y Pemex Exploración y Producción | P108: Licencia | Q108: Cuencas del Sureste | R108: Tabasco | S108: 155.997 | T108: Terrestre | U108: RF-C036-2018-001
L109: 108 | M109: CNH-M1-EK-BALAM/2017 | N109: M1 | O109: Pemex Exploración y Producción | P109: Producción compartida | Q109: Cuencas del Sureste | R109: Campeche | S109: 63.373 | T109: Aguas someras | U109: RF-C032-2017-010
L110: 109 | M110: CNH-M2-SANTUARIO-EL GOLPE/2017 | N110: M2 | O110: Petrofac México, S.A. de C.V. y Pemex Exploración y Producción | P110: Producción compartida | Q110: Cuencas del Sureste | R110: Tabasco | S110: 153.193 | T110: Terrestre | U110: RF-C049-2017-041
L111: 110 | M111: CNH-M3-MISIÓN/2018 | N111: M3 | O111: Servicios Múltiples de Burgos, S.A. de C.V. y Pemex Exploración y Producción | P111: Producción compartida | Q111: Burgos | R111: Tamaulipas | S111: 1692.752 | T111: Terrestre | U111: RF-C050-2018-002
L112: 111 | M112: CNH-M4-ÉBANO/2018 | N112: M4 | O112: DS Servicios Petroleros, S.A. de C.V y Pemex Exploración y Producción | P112: Producción compartida | Q112: Tampico-Misantla | R112: San Luis Potosí | S112: 1569.123 | T112: Terrestre | U112: RF-C072-2018-040
L113: 112 | M113: A-0001 | N113: Abkatún | O113: Pemex Exploración y Producción | P113: Asignación de extracción | Q113: Cuencas del Sureste | R113: Campeche | S113: 295.00699 | T113: Aguas someras
L114: 113 | M114: A-0002 | N114: Acuatempa | O114: Pemex Exploración y Producción | P114: Asignación de extracción | Q114: Tampico-Misantla | R114: Veracruz | S114: 12.71287 | T114: Terrestre
L115: 114 | M115: A-0003 | N115: Agave | O115: Pemex Exploración y Producción | P115: Asignación de extracción | Q115: Cuencas del Sureste | R115: Tabasco | S115: 208.52675 | T115: Terrestre
L116: 115 | M116: A-0004 | N116: Agua Fría | O116: Pemex Exploración y Producción | P116: Asignación de extracción | Q116: Tampico-Misantla | R116: Puebla | S116: 113.717 | T116: Terrestre
L117: 116 | M117: A-0006 | N117: Aguacate | O117: Pemex Exploración y Producción | P117: Asignación de extracción | Q117: Tampico-Misantla | R117: Veracruz | S117: 33.9702 | T117: Terrestre
L118: 117 | M118: A-0007 | N118: Ahuatepec | O118: Pemex Exploración y Producción | P118: Asignación de extracción | Q118: Tampico-Misantla | R118: Veracruz | S118: 15.8568 | T118: Terrestre
L119: 118 | M119: A-0008 | N119: Akal | O119: Pemex Exploración y Producción | P119: Asignación de extracción | Q119: Cuencas del Sureste | R119: Campeche | S119: 191.873 | T119: Aguas someras
L120: 119 | M120: A-0010 | N120: Álamo San Isidro | O120: Pemex Exploración y Producción | P120: Asignación de extracción | Q120: Tampico-Misantla | R120: Veracruz | S120: 12.6862 | T120: Terrestre
L121: 120 | M121: A-0016 | N121: Angostura | O121: Pemex Exploración y Producción | P121: Asignación de extracción | Q121: Veracruz | R121: Veracruz | S121: 20.20101 | T121: Terrestre
L122: 121 | M122: A-0018 | N122: Apértura | O122: Pemex Exploración y Producción | P122: Asignación de extracción | Q122: Veracruz | R122: Veracruz | S122: 31.50911 | T122: Terrestre
L123: 122 | M123: A-0019 | N123: Árabe | O123: Pemex Exploración y Producción | P123: Asignación de extracción | Q123: Burgos | R123: Tamaulipas | S123: 3.81567 | T123: Terrestre
L124: 123 | M124: A-0021 | N124: Aral | O124: Pemex Exploración y Producción | P124: Asignación de extracción | Q124: Veracruz | R124: Veracruz | S124: 17.79021 | T124: Terrestre
L125: 124 | M125: A-0022 | N125: Arcabúz | O125: Pemex Exploración y Producción | P125: Asignación de extracción | Q125: Burgos | R125: Tamaulipas | S125: 115.928 | T125: Terrestre
L126: 125 | M126: A-0023 | N126: Arcos | O126: Pemex Exploración y Producción | P126: Asignación de extracción | Q126: Burgos | R126: Tamaulipas | S126: 50.7792 | T126: Terrestre
L127: 126 | M127: A-0025 | N127: Aris | O127: Pemex Exploración y Producción | P127: Asignación de extracción | Q127: Veracruz | R127: Veracruz | S127: 7.28712 | T127: Terrestre
L128: 127 | M128: A-0026 | N128: Arquimia | O128: Pemex Exploración y Producción | P128: Asignación de extracción | Q128: Veracruz | R128: Veracruz | S128: 23.4814 | T128: Terrestre
L129: 128 | M129: A-0027 | N129: Arroyo Prieto | O129: Pemex Exploración y Producción | P129: Asignación de extracción | Q129: Cuencas del Sureste | R129: Tabasco | S129: 9.75831 | T129: Terrestre
L130: 129 | M130: A-0029 | N130: Artesa | O130: Pemex Exploración y Producción | P130: Asignación de extracción | Q130: Cuencas del Sureste | R130: Chiapas | S130: 43.1724 | T130: Terrestre
L131: 130 | M131: A-0031 | N131: Atún | O131: Pemex Exploración y Producción | P131: Asignación de extracción | Q131: Tampico-Misantla | R131: Veracruz | S131: 34.10513 | T131: Aguas someras
L132: 131 | M132: A-0032 | N132: Ayatsil | O132: Pemex Exploración y Producción | P132: Asignación de extracción | Q132: Cuencas del Sureste | R132: Campeche | S132: 87.33996 | T132: Aguas someras
L133: 132 | M133: A-0033 | N133: Ayín | O133: Pemex Exploración y Producción | P133: Asignación de extracción | Q133: Cuencas del Sureste | R133: Tabasco | S133: 25.74891 | T133: Aguas someras
L134: 133 | M134: A-0034 | N134: Ayocote | O134: Pemex Exploración y Producción | P134: Asignación de extracción | Q134: Cuencas del Sureste | R134: Tabasco | S134: 78.89306 | T134: Terrestre
L135: 134 | M135: A-0035 | N135: Bacab | O135: Pemex Exploración y Producción | P135: Asignación de extracción | Q135: Cuencas del Sureste | R135: Campeche | S135: 89.7895 | T135: Aguas someras
L136: 135 | M136: A-0037 | N136: Bagre | O136: Pemex Exploración y Producción | P136: Asignación de extracción | Q136: Tampico-Misantla | R136: Veracruz | S136: 49.9237 | T136: Aguas someras
L137: 136 | M137: A-0040 | N137: Barajas | O137: Pemex Exploración y Producción | P137: Asignación de extracción | Q137: Veracruz | R137: Veracruz | S137: 6.45225 | T137: Terrestre
L138: 137 | M138: A-0041 | N138: Barunda | O138: Pemex Exploración y Producción | P138: Asignación de extracción | Q138: Burgos | R138: Nuevo León | S138: 4.58594 | T138: Terrestre
L139: 138 | M139: A-0042 | N139: Batab | O139: Pemex Exploración y Producción | P139: Asignación de extracción | Q139: Cuencas del Sureste | R139: Campeche | S139: 53.03698 | T139: Aguas someras
L140: 139 | M140: A-0043 | N140: Bato | O140: Pemex Exploración y Producción | P140: Asignación de extracción | Q140: Burgos | R140: Tamaulipas | S140: 4.59331 | T140: Terrestre
L141: 140 | M141: A-0044 | N141: Bayo | O141: Pemex Exploración y Producción | P141: Asignación de extracción | Q141: Burgos | R141: Nuevo León | S141: 9.17728 | T141: Terrestre
L142: 141 | M142: A-0045 | N142: Bedel | O142: Pemex Exploración y Producción | P142: Asignación de extracción | Q142: Veracruz | R142: Veracruz | S142: 22.7864 | T142: Terrestre
L143: 142 | M143: A-0046 | N143: Bellota | O143: Pemex Exploración y Producción | P143: Asignación de extracción | Q143: Cuencas del Sureste | R143: Tabasco | S143: 74.6997 | T143: Terrestre
L144: 143 | M144: A-0047 | N144: Blasillo | O144: Pemex Exploración y Producción | P144: Asignación de extracción | Q144: Cuencas del Sureste | R144: Tabasco | S144: 38.98889 | T144: Terrestre
L145: 144 | M145: A-0049 | N145: Bolontikú | O145: Pemex Exploración y Producción | P145: Asignación de extracción | Q145: Cuencas del Sureste | R145: Tabasco | S145: 52.40845 | T145: Aguas someras
L146: 145 | M146: A-0051 | N146: Brillante | O146: Pemex Exploración y Producción | P146: Asignación de extracción | Q146: Cuencas del Sureste | R146: Veracruz | S146: 24.3436 | T146: Terrestre
L147: 146 | M147: A-0053 | N147: Caan | O147: Pemex Exploración y Producción | P147: Asignación de extracción | Q147: Cuencas del Sureste | R147: Campeche | S147: 92.4509 | T147: Aguas someras
L148: 147 | M148: A-0054 | N148: Cabeza | O148: Pemex Exploración y Producción | P148: Asignación de extracción | Q148: Cuencas del Sureste | R148: Nuevo León | S148: 72.7789 | T148: Terrestre
L149: 148 | M149: A-0055 | N149: Cacahuatengo | O149: Pemex Exploración y Producción | P149: Asignación de extracción | Q149: Burgos | R149: Puebla | S149: 46.0117 | T149: Terrestre
L150: 149 | M150: A-0057 | N150: Cactus | O150: Pemex Exploración y Producción | P150: Asignación de extracción | Q150: Tampico-Misantla | R150: Chiapas | S150: 102.49847 | T150: Terrestre
L151: 150 | M151: A-0060 | N151: Cañón | O151: Pemex Exploración y Producción | P151: Asignación de extracción | Q151: Cuencas del Sureste | R151: Tamaulipas | S151: 27.4527 | T151: Terrestre
L152: 151 | M152: A-0061 | N152: Caparroso-Pijije-Escuintle | O152: Pemex Exploración y Producción | P152: Asignación de extracción | Q152: Burgos | R152: Tabasco | S152: 64.00039 | T152: Terrestre
L153: 152 | M153: A-0064 | N153: Caristay | O153: Pemex Exploración y Producción | P153: Asignación de extracción | Q153: Cuencas del Sureste | R153: Veracruz | S153: 7.15183 | T153: Terrestre
L154: 153 | M154: A-0065 | N154: Carpa | O154: Pemex Exploración y Producción | P154: Asignación de extracción | Q154: Tampico-Misantla | R154: Veracruz | S154: 11.8608 | T154: Aguas someras
L155: 154 | M155: A-0067 | N155: Castarrical | O155: Pemex Exploración y Producción | P155: Asignación de extracción | Q155: Tampico-Misantla | R155: Tabasco | S155: 37.2511 | T155: Terrestre
L156: 155 | M156: A-0068 | N156: Castell | O156: Pemex Exploración y Producción | P156: Asignación de extracción | Q156: Cuencas del Sureste | R156: Veracruz | S156: 9.67011 | T156: Terrestre
L157: 156 | M157: A-0071 | N157: Cauchy | O157: Pemex Exploración y Producción | P157: Asignación de extracción | Q157: Veracruz | R157: Veracruz | S157: 99.8354 | T157: Terrestre
L158: 157 | M158: A-0072 | N158: Caudaloso | O158: Pemex Exploración y Producción | P158: Asignación de extracción | Q158: Veracruz | R158: Tamaulipas | S158: 12.2155 | T158: Terrestre
L159: 158 | M159: A-0073 | N159: Cehualaca | O159: Pemex Exploración y Producción | P159: Asignación de extracción | Q159: Burgos | R159: Veracruz | S159: 12.9613 | T159: Terrestre
L160: 159 | M160: A-0074 | N160: Cerro del Carbón | O160: Pemex Exploración y Producción | P160: Asignación de extracción | Q160: Veracruz | R160: Veracruz | S160: 23.8804 | T160: Terrestre
L161: 160 | M161: A-0075 | N161: Cerro Nanchital | O161: Pemex Exploración y Producción | P161: Asignación de extracción | Q161: Tampico-Misantla | R161: Veracruz | S161: 79.1716 | T161: Terrestre
L162: 161 | M162: A-0077 | N162: Cervelo | O162: Pemex Exploración y Producción | P162: Asignación de extracción | Q162: Cuencas del Sureste | R162: Veracruz | S162: 3.24017 | T162: Terrestre
L163: 162 | M163: A-0078 | N163: Chac | O163: Pemex Exploración y Producción | P163: Asignación de extracción | Q163: Veracruz | R163: Campeche | S163: 26.4994 | T163: Aguas someras
L164: 163 | M164: A-0079 | N164: Chancarro | O164: Pemex Exploración y Producción | P164: Asignación de extracción | Q164: Cuencas del Sureste | R164: Veracruz | S164: 8.92768 | T164: Terrestre
L165: 164 | M165: A-0081 | N165: Chapul | O165: Pemex Exploración y Producción | P165: Asignación de extracción | Q165: Veracruz | R165: Tamaulipas | S165: 38.2752 | T165: Terrestre
L166: 165 | M166: A-0082 | N166: Ché | O166: Pemex Exploración y Producción | P166: Asignación de extracción | Q166: Burgos | R166: Campeche | S166: 15.30551 | T166: Aguas someras
L167: 166 | M167: A-0083 | N167: Chiapas-Copanó | O167: Pemex Exploración y Producción | P167: Asignación de extracción | Q167: Cuencas del Sureste | R167: Chiapas | S167: 101.964 | T167: Terrestre
L168: 167 | M168: A-0084 | N168: Chichimantla | O168: Pemex Exploración y Producción | P168: Asignación de extracción | Q168: Cuencas del Sureste | R168: Veracruz | S168: 11.1194 | T168: Terrestre
L169: 168 | M169: A-0085 | N169: Chiconcoa | O169: Pemex Exploración y Producción | P169: Asignación de extracción | Q169: Tampico-Misantla | R169: Veracruz | S169: 4.763 | T169: Terrestre
L170: 169 | M170: A-0086 | N170: Chilapilla | O170: Pemex Exploración y Producción | P170: Asignación de extracción | Q170: Tampico-Misantla | R170: Tabasco | S170: 45.5297 | T170: Terrestre
L171: 170 | M171: A-0087 | N171: Chinchorro | O171: Pemex Exploración y Producción | P171: Asignación de extracción | Q171: Cuencas del Sureste | R171: Tabasco | S171: 17.8465 | T171: Terrestre
L172: 171 | M172: A-0088 | N172: Chipilín | O172: Pemex Exploración y Producción | P172: Asignación de extracción | Q172: Cuencas del Sureste | R172: Tabasco | S172: 42.2141 | T172: Terrestre
L173: 172 | M173: A-0089 | N173: Chuc | O173: Pemex Exploración y Producción | P173: Asignación de extracción | Q173: Cuencas del Sureste | R173: Campeche | S173: 61.9404 | T173: Aguas someras
L174: 173 | M174: A-0090 | N174: Chuhuk | O174: Pemex Exploración y Producción | P174: Asignación de extracción | Q174: Cuencas del Sureste | R174: Campeche | S174: 18.5347 | T174: Aguas someras
L175: 174 | M175: A-0092 | N175: Cinco Presidentes | O175: Pemex Exploración y Producción | P175: Asignación de extracción | Q175: Cuencas del Sureste | R175: Tabasco | S175: 138.73124 | T175: Terrestre
L176: 175 | M176: A-0094 | N176: Coapechaca | O176: Pemex Exploración y Producción | P176: Asignación de extracción | Q176: Cuencas del Sureste | R176: Veracruz | S176: 119.38 | T176: Terrestre
L177: 176 | M177: A-0095 | N177: Cobo | O177: Pemex Exploración y Producción | P177: Asignación de extracción | Q177: Tampico-Misantla | R177: Tabasco | S177: 68.21783 | T177: Terrestre
L178: 177 | M178: A-0096 | N178: Cobra | O178: Pemex Exploración y Producción | P178: Asignación de extracción | Q178: Cuencas del Sureste | R178: Tabasco | S178: 34.1222 | T178: Terrestre
L179: 178 | M179: A-0097 | N179: Cocuite | O179: Pemex Exploración y Producción | P179: Asignación de extracción | Q179: Cuencas del Sureste | R179: Veracruz | S179: 44.4425 | T179: Terrestre
L180: 179 | M180: A-0098 | N180: Comitas | O180: Pemex Exploración y Producción | P180: Asignación de extracción | Q180: Veracruz | R180: Nuevo León | S180: 58.87238 | T180: Terrestre
L181: 180 | M181: A-0099 | N181: Comoapa | O181: Pemex Exploración y Producción | P181: Asignación de extracción | Q181: Burgos | R181: Chiapas | S181: 71.6942 | T181: Terrestre
L182: 181 | M182: A-0100 | N182: Copal | O182: Pemex Exploración y Producción | P182: Asignación de extracción | Q182: Cuencas del Sureste | R182: Veracruz | S182: 8.73825 | T182: Terrestre
L183: 182 | M183: A-0101 | N183: Cópite | O183: Pemex Exploración y Producción | P183: Asignación de extracción | Q183: Tampico-Misantla | R183: Veracruz | S183: 20.15013 | T183: Terrestre
L184: 183 | M184: A-0104 | N184: Costero | O184: Pemex Exploración y Producción | P184: Asignación de extracción | Q184: Veracruz | R184: Tabasco | S184: 67.88127 | T184: Terrestre
L185: 184 | M185: A-0107 | N185: Coyula | O185: Pemex Exploración y Producción | P185: Asignación de extracción | Q185: Cuencas del Sureste | R185: Puebla | S185: 93.8328 | T185: Terrestre
L186: 185 | M186: A-0108 | N186: Cráter | O186: Pemex Exploración y Producción | P186: Asignación de extracción | Q186: Tampico-Misantla | R186: Tabasco | S186: 23.4578 | T186: Terrestre
L187: 186 | M187: A-0109 | N187: Cuatro Milpas | O187: Pemex Exploración y Producción | P187: Asignación de extracción | Q187: Cuencas del Sureste | R187: Nuevo León | S187: 105.527 | T187: Terrestre
L188: 187 | M188: A-0110 | N188: Cucaña | O188: Pemex Exploración y Producción | P188: Asignación de extracción | Q188: Burgos | R188: Nuevo León | S188: 9.94098 | T188: Terrestre
L189: 188 | M189: A-0111 | N189: Cuervito | O189: Pemex Exploración y Producción | P189: Asignación de extracción | Q189: Burgos | R189: Nuevo León | S189: 7.63687 | T189: Terrestre
L190: 189 | M190: A-0112 | N190: Cuitláhuac | O190: Pemex Exploración y Producción | P190: Asignación de extracción | Q190: Burgos | R190: Tamaulipas | S190: 195.039 | T190: Terrestre
L191: 190 | M191: A-0113 | N191: Culebra | O191: Pemex Exploración y Producción | P191: Asignación de extracción | Q191: Burgos | R191: Nuevo León | S191: 243.593 | T191: Terrestre
L192: 191 | M192: A-0114 | N192: Cunduacán | O192: Pemex Exploración y Producción | P192: Asignación de extracción | Q192: Burgos | R192: Tabasco | S192: 59.2804 | T192: Terrestre
L193: 192 | M193: A-0115 | N193: Cupache | O193: Pemex Exploración y Producción | P193: Asignación de extracción | Q193: Cuencas del Sureste | R193: Tabasco | S193: 24.33813 | T193: Terrestre
L194: 193 | M194: A-0116 | N194: Dragón | O194: Pemex Exploración y Producción | P194: Asignación de extracción | Q194: Cuencas del Sureste | R194: Tamaulipas | S194: 8.3917 | T194: Terrestre
L195: 194 | M195: A-0117 | N195: Dulce | O195: Pemex Exploración y Producción | P195: Asignación de extracción | Q195: Burgos | R195: Nuevo León | S195: 10.7001 | T195: Terrestre
L196: 195 | M196: A-0119 | N196: Edén-Jolote | O196: Pemex Exploración y Producción | P196: Asignación de extracción | Q196: Burgos | R196: Tabasco | S196: 73.9379 | T196: Terrestre
L197: 196 | M197: A-0122 | N197: Eltreinta | O197: Pemex Exploración y Producción | P197: Asignación de extracción | Q197: Cuencas del Sureste | R197: Veracruz | S197: 21.9728 | T197: Terrestre
L198: 197 | M198: A-0124 | N198: Emú | O198: Pemex Exploración y Producción | P198: Asignación de extracción | Q198: Veracruz | R198: Tamaulipas | S198: 28.9007 | T198: Terrestre
L199: 198 | M199: A-0126 | N199: Enlace | O199: Pemex Exploración y Producción | P199: Asignación de extracción | Q199: Burgos | R199: Tamaulipas | S199: 20.5345 | T199: Terrestre
L200: 199 | M200: A-0127 | N200: Escarbado | O200: Pemex Exploración y Producción | P200: Asignación de extracción | Q200: Burgos | R200: Tabasco | S200: 48.5988 | T200: Terrestre
... 328 more rows

Sheet Escenario 1 (hidden)
A1: Escenario 1: | P1: 2017 | Q1: 2017 | R1: 2017 | S1: 2017 | T1: 2017 | U1: 2017 | V1: 2017 | W1: 2017 | X1: 2017 | Y1: 2017 | Z1: =P1+1 -> 2018 | AA1: =Q1+1 -> 2018 | AB1: 2018 | AC1: 2018 | AD1: 2018 | AE1: 2018 | AF1: 2018 | AG1: 2018 | AH1: 2018 | AI1: 2018 | AJ1: 2019 | AK1: 2019 | AL1: 2019 | AM1: 2019 | AN1: 2019 | AO1: 2019 | AP1: 2019 | AQ1: 2019 | AR1: 2019 | AS1: 2019 | AT1: 2020 | AU1: 2020 | AV1: 2020 | AW1: 2020 | AX1: 2020 | AY1: 2020 | AZ1: 2020 | BA1: 2020 | BB1: 2020 | BC1: 2020 | BD1: 2021 | BE1: 2021 | BF1: 2021 | BG1: 2021 | BH1: 2021 | BI1: 2021 | BJ1: 2021 | BK1: 2021 | BL1: 2021 | BM1: 2021 | BN1: 2022 | BO1: 2022 | BP1: 2022 | BQ1: 2022 | BR1: 2022 | BS1: 2022 | BT1: 2022 | BU1: 2022 | BV1: 2022 | BW1: 2022 | BX1: 2023 | BY1: 2023 | BZ1: 2023 | CA1: 2023 | CB1: 2023 | CC1: 2023 | CD1: 2023 | CE1: 2023 | CF1: 2023 | CG1: 2023 | CH1: 2024 | CI1: 2024 | CJ1: 2024 | CK1: 2024 | CL1: 2024 | CM1: =CC1+1 -> 2024 | CN1: 2024 | CO1: 2024 | CP1: 2024 | CQ1: 2024 | CR1: 2025 | CS1: 2025 | CT1: 2025 | CU1: 2025 | CV1: 2025 | CW1: 2025 | CX1: 2025 | CY1: 2025 | CZ1: 2025 | DA1: 2025 | DB1: 2026 | DC1: 2026 | DD1: 2026 | DE1: 2026 | DF1: 2026 | DG1: 2026 | DH1: 2026 | DI1: 2026 | DJ1: 2026 | DK1: 2026 | DL1: 2027 | DM1: 2027 | DN1: 2027 | DO1: 2027 | DP1: 2027 | DQ1: 2027 | DR1: 2027 | DS1: 2027 | DT1: 2027 | DU1: 2027 | DV1: 2028 | DW1: 2028 | DX1: 2028 | DY1: 2028 | DZ1: 2028 | EA1: 2028 | EB1: 2028 | EC1: 2028 | ED1: 2028 | EE1: 2028 | EF1: 2029 | EG1: 2029 | EH1: 2029 | EI1: 2029 | EJ1: 2029 | EK1: 2029 | EL1: 2029 | EM1: 2029 | EN1: 2029 | EO1: 2029 | EP1: 2030 | EQ1: 2030 | ER1: 2030 | ES1: 2030 | ET1: 2030 | EU1: 2030 | EV1: 2030 | EW1: 2030 | EX1: 2030 | EY1: =EO1+1 -> 2030 | EZ1: 2031 | FA1: 2031 | FB1: 2031 | FC1: 2031 | FD1: 2031 | FE1: 2031 | FF1: 2031 | FG1: 2031 | FH1: 2031 | FI1: 2031 | FJ1: 2032 | FK1: 2032 | FL1: 2032 | FM1: 2032 | FN1: 2032 | FO1: 2032 | FP1: 2032 | FQ1: 2032 | FR1: 2032 | FS1: 2032 | FT1: 2033 | FU1: 2033 | FV1: 2033 | FW1: 2033 | FX1: 2033 | FY1: 2033 | FZ1: 2033 | GA1: 2033 | GB1: 2033 | GC1: 2033 | GD1: 2034 | GE1: 2034 | GF1: 2034 | GG1: 2034 | GH1: 2034 | GI1: 2034 | GJ1: 2034 | GK1: 2034 | GL1: 2034 | GM1: 2034 | GN1: 2035 | GO1: 2035 | GP1: 2035 | GQ1: 2035 | GR1: 2035 | GS1: 2035 | GT1: 2035 | GU1: 2035 | GV1: 2035 | GW1: 2035 | GX1: 2036 | GY1: 2036 | GZ1: 2036 | HA1: 2036 | HB1: 2036 | HC1: 2036 | HD1: 2036 | HE1: 2036 | HF1: 2036 | HG1: 2036 | HH1: 2037 | HI1: 2037 | HJ1: 2037 | HK1: =HA1+1 -> 2037 | HL1: 2037 | HM1: 2037 | HN1: 2037 | HO1: 2037 | HP1: 2037 | HQ1: 2037 | HR1: 2038 | HS1: 2038 | HT1: 2038 | HU1: 2038 | HV1: 2038 | HW1: 2038 | HX1: 2038 | HY1: 2038 | HZ1: 2038 | IA1: 2038 | IB1: 2039 | IC1: 2039 | ID1: 2039 | IE1: 2039 | IF1: 2039 | IG1: 2039 | IH1: 2039 | II1: 2039 | IJ1: 2039 | IK1: 2039 | IL1: 2040 | IM1: 2040 | IN1: 2040 | IO1: 2040 | IP1: 2040 | IQ1: 2040 | IR1: 2040 | IS1: 2040 | IT1: 2040 | IU1: 2040 | IV1: 2041 | IW1: 2041 | IX1: 2041 | IY1: 2041 | IZ1: 2041 | JA1: 2041 | JB1: 2041 | JC1: 2041 | JD1: 2041 | JE1: 2041 | JF1: 2042 | JG1: 2042 | JH1: 2042 | JI1: 2042 | JJ1: 2042 | JK1: 2042 | JL1: 2042 | JM1: 2042 | JN1: 2042 | JO1: 2042 | JP1: 2043 | JQ1: 2043 | JR1: 2043 | JS1: 2043 | JT1: 2043 | JU1: 2043 | JV1: 2043 | JW1: =JM1+1 -> 2043 | JX1: 2043 | JY1: 2043 | JZ1: 2044 | KA1: 2044 | KB1: 2044 | KC1: 2044 | KD1: 2044 | KE1: 2044 | KF1: 2044 | KG1: 2044 | KH1: 2044 | KI1: 2044 | KJ1: 2045 | KK1: 2045 | KL1: 2045 | KM1: 2045 | KN1: 2045 | KO1: 2045 | KP1: 2045 | KQ1: 2045 | KR1: 2045 | KS1: 2045 | KT1: 2046 | KU1: 2046 | KV1: 2046 | KW1: 2046 | KX1: 2046 | KY1: 2046 | KZ1: 2046 | LA1: 2046 | LB1: 2046 | LC1: 2046 | LD1: 2047 | LE1: 2047 | LF1: 2047 | LG1: 2047 | LH1: 2047 | LI1: 2047 | LJ1: 2047 | LK1: 2047 | LL1: 2047 | LM1: 2047 | LN1: 2048 | LO1: 2048 | LP1: 2048 | LQ1: 2048 | LR1: 2048 | LS1: 2048 | LT1: 2048 | LU1: 2048 | LV1: 2048 | LW1: 2048 | LX1: 2049 | LY1: 2049 | LZ1: 2049 | MA1: 2049 | MB1: 2049 | MC1: 2049 | MD1: 2049 | ME1: 2049 | MF1: 2049 | MG1: 2049 | MH1: 2050 | MI1: =LY1+1 -> 2050 | MJ1: 2050 | MK1: 2050 | ML1: 2050 | MM1: 2050 | MN1: 2050 | MO1: 2050 | MP1: 2050 | MQ1: 2050 | MR1: 2051 | MS1: 2051 | MT1: 2051 | MU1: 2051 | MV1: 2051 | MW1: 2051 | MX1: 2051 | MY1: 2051 | MZ1: 2051 | NA1: 2051 | NB1: 2052 | NC1: 2052 | ND1: 2052 | NE1: 2052 | NF1: 2052 | NG1: 2052 | NH1: 2052 | NI1: 2052 | NJ1: 2052 | NK1: 2052 | NL1: 2053 | NM1: 2053 | NN1: 2053 | NO1: 2053 | NP1: 2053 | NQ1: 2053 | NR1: 2053 | NS1: 2053 | NT1: 2053 | NU1: 2053 | NV1: 2054 | NW1: 2054 | NX1: 2054 | NY1: 2054 | NZ1: 2054 | OA1: 2054 | OB1: 2054 | OC1: 2054 | OD1: 2054 | OE1: 2054 | OF1: 2055 | OG1: 2055 | OH1: 2055 | OI1: 2055 | OJ1: 2055 | OK1: 2055 | OL1: 2055 | OM1: 2055 | ON1: 2055 | OO1: 2055 | OP1: 2056 | OQ1: 2056 | OR1: 2056 | OS1: 2056 | OT1: 2056 | OU1: =OK1+1 -> 2056 | OV1: 2056 | OW1: 2056 | OX1: 2056 | OY1: 2056 | OZ1: 2057 | PA1: 2057 | PB1: 2057 | PC1: 2057 | PD1: 2057 | PE1: 2057 | PF1: 2057 | PG1: 2057 | PH1: 2057 | PI1: 2057 | PJ1: 2058 | PK1: 2058 | PL1: 2058 | PM1: 2058 | PN1: 2058 | PO1: 2058 | PP1: 2058 | PQ1: 2058 | PR1: 2058 | PS1: 2058 | PT1: 2059 | PU1: 2059 | PV1: 2059 | PW1: 2059 | PX1: 2059 | PY1: 2059 | PZ1: 2059 | QA1: 2059 | QB1: 2059 | QC1: 2059 | QD1: 2060 | QE1: 2060 | QF1: 2060 | QG1: 2060 | QH1: 2060 | QI1: 2060 | QJ1: 2060 | QK1: 2060 | QL1: 2060 | QM1: 2060 | QN1: 2061 | QO1: 2061 | QP1: 2061 | QQ1: 2061 | QR1: 2061 | QS1: 2061 | QT1: 2061 | QU1: 2061 | QV1: 2061 | QW1: 2061 | QX1: 2062 | QY1: 2062 | QZ1: 2062 | RA1: 2062 | RB1: 2062 | RC1: 2062 | RD1: 2062 | RE1: 2062 | RF1: 2062 | RG1: =QW1+1 -> 2062 | RH1: 2063 | RI1: 2063 | RJ1: 2063 | RK1: 2063 | RL1: 2063 | RM1: 2063 | RN1: 2063 | RO1: 2063 | RP1: 2063 | RQ1: 2063 | RR1: 2064 | RS1: 2064 | RT1: 2064 | RU1: 2064 | RV1: 2064 | RW1: 2064 | RX1: 2064 | RY1: 2064 | RZ1: 2064 | SA1: 2064 | SB1: 2065 | SC1: 2065 | SD1: 2065 | SE1: 2065 | SF1: 2065 | SG1: 2065 | SH1: 2065 | SI1: 2065 | SJ1: 2065 | SK1: 2065 | SL1: 2066 | SM1: 2066 | SN1: 2066 | SO1: 2066 | SP1: 2066 | SQ1: 2066 | SR1: 2066 | SS1: 2066 | ST1: 2066 | SU1: 2066 | SV1: 2067 | SW1: 2067 | SX1: 2067 | SY1: 2067 | SZ1: 2067 | TA1: 2067 | TB1: 2067 | TC1: 2067 | TD1: 2067 | TE1: 2067 | TF1: 2068 | TG1: 2068 | TH1: 2068 | TI1: 2068 | TJ1: 2068 | TK1: 2068 | TL1: 2068 | TM1: 2068 | TN1: 2068 | TO1: 2068 | TP1: 2069 | TQ1: 2069 | TR1: 2069 | TS1: =TI1+1 -> 2069 | TT1: 2069 | TU1: 2069 | TV1: 2069 | TW1: 2069 | TX1: 2069 | TY1: 2069 | TZ1: 2070 | UA1: 2070 | UB1: 2070 | UC1: 2070 | UD1: 2070 | UE1: 2070 | UF1: 2070 | UG1: 2070 | UH1: 2070 | UI1: 2070 | UJ1: 2071 | UK1: 2071 | UL1: 2071 | UM1: 2071 | UN1: 2071 | UO1: 2071 | UP1: 2071 | UQ1: 2071 | UR1: 2071 | US1: 2071 | UT1: 2072 | UU1: 2072 | UV1: 2072 | UW1: 2072 | UX1: 2072 | UY1: 2072 | UZ1: 2072 | VA1: 2072 | VB1: 2072 | VC1: 2072 | VD1: 2073 | VE1: 2073 | VF1: 2073 | VG1: 2073 | VH1: 2073 | VI1: 2073 | VJ1: 2073 | VK1: 2073 | VL1: 2073 | VM1: 2073 | VN1: 2074 | VO1: 2074 | VP1: 2074 | VQ1: 2074 | VR1: 2074 | VS1: 2074 | VT1: 2074 | VU1: 2074 | VV1: 2074 | VW1: 2074 | VX1: 2075 | VY1: 2075 | VZ1: 2075 | WA1: 2075 | WB1: 2075 | WC1: 2075 | WD1: 2075 | WE1: =VU1+1 -> 2075 | WF1: 2075 | WG1: 2075 | WH1: 2076 | WI1: 2076 | WJ1: 2076 | WK1: 2076 | WL1: 2076 | WM1: 2076 | WN1: 2076 | WO1: 2076 | WP1: 2076 | WQ1: 2076
G2: Validación respecto a la infromación del Presente Formato: | H2: [US$] | P2: =IF(P12="Dejar vacío",1,0) -> 0 | Q2: =P2 -> 0 | R2: =Q2 -> 0 | S2: 0 | T2: 0 | U2: 0 | V2: 0 | W2: 0 | X2: 0 | Y2: 0 | Z2: =IF(Z12="Dejar vacío",1,0) -> 1 | AA2: =Z2 -> 1 | AB2: =AA2 -> 1 | AC2: 1 | AD2: 1 | AE2: 1 | AF2: 1 | AG2: 1 | AH2: 1 | AI2: 1 | AJ2: =IF(AJ12="Dejar vacío",1,0) -> 1 | AK2: =AJ2 -> 1 | AL2: =AK2 -> 1 | AM2: 1 | AN2: 1 | AO2: 1 | AP2: 1 | AQ2: 1 | AR2: 1 | AS2: 1 | AT2: =IF(AT12="Dejar vacío",1,0) -> 1 | AU2: =AT2 -> 1 | AV2: =AU2 -> 1 | AW2: 1 | AX2: 1 | AY2: 1 | AZ2: 1 | BA2: 1 | BB2: 1 | BC2: 1 | BD2: =IF(BD12="Dejar vacío",1,0) -> 1 | BE2: =BD2 -> 1 | BF2: =BE2 -> 1 | BG2: 1 | BH2: 1 | BI2: 1 | BJ2: 1 | BK2: 1 | BL2: 1 | BM2: 1 | BN2: =IF(BN12="Dejar vacío",1,0) -> 1 | BO2: =BN2 -> 1 | BP2: =BO2 -> 1 | BQ2: 1 | BR2: 1 | BS2: 1 | BT2: 1 | BU2: 1 | BV2: 1 | BW2: 1 | BX2: =IF(BX12="Dejar vacío",1,0) -> 1 | BY2: =BX2 -> 1 | BZ2: =BY2 -> 1 | CA2: 1 | CB2: 1 | CC2: 1 | CD2: 1 | CE2: 1 | CF2: 1 | CG2: 1 | CH2: =IF(CH12="Dejar vacío",1,0) -> 1 | CI2: =CH2 -> 1 | CJ2: =CI2 -> 1 | CK2: 1 | CL2: 1 | CM2: 1 | CN2: 1 | CO2: 1 | CP2: 1 | CQ2: 1 | CR2: =IF(CR12="Dejar vacío",1,0) -> 1 | CS2: =CR2 -> 1 | CT2: =CS2 -> 1 | CU2: 1 | CV2: 1 | CW2: 1 | CX2: 1 | CY2: 1 | CZ2: 1 | DA2: 1 | DB2: =IF(DB12="Dejar vacío",1,0) -> 1 | DC2: =DB2 -> 1 | DD2: =DC2 -> 1 | DE2: 1 | DF2: 1 | DG2: 1 | DH2: 1 | DI2: 1 | DJ2: 1 | DK2: 1 | DL2: =IF(DL12="Dejar vacío",1,0) -> 1 | DM2: =DL2 -> 1 | DN2: =DM2 -> 1 | DO2: 1 | DP2: 1 | DQ2: 1 | DR2: 1 | DS2: 1 | DT2: 1 | DU2: 1 | DV2: =IF(DV12="Dejar vacío",1,0) -> 1 | DW2: =DV2 -> 1 | DX2: =DW2 -> 1 | DY2: 1 | DZ2: 1 | EA2: 1 | EB2: 1 | EC2: 1 | ED2: 1 | EE2: 1 | EF2: =IF(EF12="Dejar vacío",1,0) -> 1 | EG2: =EF2 -> 1 | EH2: =EG2 -> 1 | EI2: 1 | EJ2: 1 | EK2: 1 | EL2: 1 | EM2: 1 | EN2: 1 | EO2: 1 | EP2: =IF(EP12="Dejar vacío",1,0) -> 1 | EQ2: =EP2 -> 1 | ER2: =EQ2 -> 1 | ES2: 1 | ET2: 1 | EU2: 1 | EV2: 1 | EW2: 1 | EX2: 1 | EY2: 1 | EZ2: =IF(EZ12="Dejar vacío",1,0) -> 1 | FA2: =EZ2 -> 1 | FB2: =FA2 -> 1 | FC2: 1 | FD2: 1 | FE2: 1 | FF2: 1 | FG2: 1 | FH2: 1 | FI2: 1 | FJ2: =IF(FJ12="Dejar vacío",1,0) -> 1 | FK2: =FJ2 -> 1 | FL2: =FK2 -> 1 | FM2: 1 | FN2: 1 | FO2: 1 | FP2: 1 | FQ2: 1 | FR2: 1 | FS2: 1 | FT2: =IF(FT12="Dejar vacío",1,0) -> 1 | FU2: =FT2 -> 1 | FV2: =FU2 -> 1 | FW2: 1 | FX2: 1 | FY2: 1 | FZ2: 1 | GA2: 1 | GB2: 1 | GC2: 1 | GD2: =IF(GD12="Dejar vacío",1,0) -> 1 | GE2: =GD2 -> 1 | GF2: =GE2 -> 1 | GG2: 1 | GH2: 1 | GI2: 1 | GJ2: 1 | GK2: 1 | GL2: 1 | GM2: 1 | GN2: =IF(GN12="Dejar vacío",1,0) -> 1 | GO2: =GN2 -> 1 | GP2: =GO2 -> 1 | GQ2: 1 | GR2: 1 | GS2: 1 | GT2: 1 | GU2: 1 | GV2: 1 | GW2: 1 | GX2: =IF(GX12="Dejar vacío",1,0) -> 1 | GY2: =GX2 -> 1 | GZ2: =GY2 -> 1 | HA2: 1 | HB2: 1 | HC2: 1 | HD2: 1 | HE2: 1 | HF2: 1 | HG2: 1 | HH2: =IF(HH12="Dejar vacío",1,0) -> 1 | HI2: =HH2 -> 1 | HJ2: =HI2 -> 1 | HK2: 1 | HL2: 1 | HM2: 1 | HN2: 1 | HO2: 1 | HP2: 1 | HQ2: 1 | HR2: =IF(HR12="Dejar vacío",1,0) -> 1 | HS2: =HR2 -> 1 | HT2: =HS2 -> 1 | HU2: 1 | HV2: 1 | HW2: 1 | HX2: 1 | HY2: 1 | HZ2: 1 | IA2: 1 | IB2: =IF(IB12="Dejar vacío",1,0) -> 1 | IC2: =IB2 -> 1 | ID2: =IC2 -> 1 | IE2: 1 | IF2: 1 | IG2: 1 | IH2: 1 | II2: 1 | IJ2: 1 | IK2: 1 | IL2: =IF(IL12="Dejar vacío",1,0) -> 1 | IM2: =IL2 -> 1 | IN2: =IM2 -> 1 | IO2: 1 | IP2: 1 | IQ2: 1 | IR2: 1 | IS2: 1 | IT2: 1 | IU2: 1 | IV2: =IF(IV12="Dejar vacío",1,0) -> 1 | IW2: =IV2 -> 1 | IX2: =IW2 -> 1 | IY2: 1 | IZ2: 1 | JA2: 1 | JB2: 1 | JC2: 1 | JD2: 1 | JE2: 1 | JF2: =IF(JF12="Dejar vacío",1,0) -> 1 | JG2: =JF2 -> 1 | JH2: =JG2 -> 1 | JI2: 1 | JJ2: 1 | JK2: 1 | JL2: 1 | JM2: 1 | JN2: 1 | JO2: 1 | JP2: =IF(JP12="Dejar vacío",1,0) -> 1 | JQ2: =JP2 -> 1 | JR2: =JQ2 -> 1 | JS2: 1 | JT2: 1 | JU2: 1 | JV2: 1 | JW2: 1 | JX2: 1 | JY2: 1 | JZ2: =IF(JZ12="Dejar vacío",1,0) -> 1 | KA2: =JZ2 -> 1 | KB2: =KA2 -> 1 | KC2: 1 | KD2: 1 | KE2: 1 | KF2: 1 | KG2: 1 | KH2: 1 | KI2: 1 | KJ2: =IF(KJ12="Dejar vacío",1,0) -> 1 | KK2: =KJ2 -> 1 | KL2: =KK2 -> 1 | KM2: 1 | KN2: 1 | KO2: 1 | KP2: 1 | KQ2: 1 | KR2: 1 | KS2: 1 | KT2: =IF(KT12="Dejar vacío",1,0) -> 1 | KU2: =KT2 -> 1 | KV2: =KU2 -> 1 | KW2: 1 | KX2: 1 | KY2: 1 | KZ2: 1 | LA2: 1 | LB2: 1 | LC2: 1 | LD2: =IF(LD12="Dejar vacío",1,0) -> 1 | LE2: =LD2 -> 1 | LF2: =LE2 -> 1 | LG2: 1 | LH2: 1 | LI2: 1 | LJ2: 1 | LK2: 1 | LL2: 1 | LM2: 1 | LN2: =IF(LN12="Dejar vacío",1,0) -> 1 | LO2: =LN2 -> 1 | LP2: =LO2 -> 1 | LQ2: 1 | LR2: 1 | LS2: 1 | LT2: 1 | LU2: 1 | LV2: 1 | LW2: 1 | LX2: =IF(LX12="Dejar vacío",1,0) -> 1 | LY2: =LX2 -> 1 | LZ2: =LY2 -> 1 | MA2: 1 | MB2: 1 | MC2: 1 | MD2: 1 | ME2: 1 | MF2: 1 | MG2: 1 | MH2: =IF(MH12="Dejar vacío",1,0) -> 1 | MI2: =MH2 -> 1 | MJ2: =MI2 -> 1 | MK2: 1 | ML2: 1 | MM2: 1 | MN2: 1 | MO2: 1 | MP2: 1 | MQ2: 1 | MR2: =IF(MR12="Dejar vacío",1,0) -> 1 | MS2: =MR2 -> 1 | MT2: =MS2 -> 1 | MU2: 1 | MV2: 1 | MW2: 1 | MX2: 1 | MY2: 1 | MZ2: 1 | NA2: 1 | NB2: =IF(NB12="Dejar vacío",1,0) -> 1 | NC2: =NB2 -> 1 | ND2: =NC2 -> 1 | NE2: 1 | NF2: 1 | NG2: 1 | NH2: 1 | NI2: 1 | NJ2: 1 | NK2: 1 | NL2: =IF(NL12="Dejar vacío",1,0) -> 1 | NM2: =NL2 -> 1 | NN2: =NM2 -> 1 | NO2: 1 | NP2: 1 | NQ2: 1 | NR2: 1 | NS2: 1 | NT2: 1 | NU2: 1 | NV2: =IF(NV12="Dejar vacío",1,0) -> 1 | NW2: =NV2 -> 1 | NX2: =NW2 -> 1 | NY2: 1 | NZ2: 1 | OA2: 1 | OB2: 1 | OC2: 1 | OD2: 1 | OE2: 1 | OF2: =IF(OF12="Dejar vacío",1,0) -> 1 | OG2: =OF2 -> 1 | OH2: =OG2 -> 1 | OI2: 1 | OJ2: 1 | OK2: 1 | OL2: 1 | OM2: 1 | ON2: 1 | OO2: 1 | OP2: =IF(OP12="Dejar vacío",1,0) -> 1 | OQ2: =OP2 -> 1 | OR2: =OQ2 -> 1 | OS2: 1 | OT2: 1 | OU2: 1 | OV2: 1 | OW2: 1 | OX2: 1 | OY2: 1 | OZ2: =IF(OZ12="Dejar vacío",1,0) -> 1 | PA2: =OZ2 -> 1 | PB2: =PA2 -> 1 | PC2: 1 | PD2: 1 | PE2: 1 | PF2: 1 | PG2: 1 | PH2: 1 | PI2: 1 | PJ2: =IF(PJ12="Dejar vacío",1,0) -> 1 | PK2: =PJ2 -> 1 | PL2: =PK2 -> 1 | PM2: 1 | PN2: 1 | PO2: 1 | PP2: 1 | PQ2: 1 | PR2: 1 | PS2: 1 | PT2: =IF(PT12="Dejar vacío",1,0) -> 1 | PU2: =PT2 -> 1 | PV2: =PU2 -> 1 | PW2: 1 | PX2: 1 | PY2: 1 | PZ2: 1 | QA2: 1 | QB2: 1 | QC2: 1 | QD2: =IF(QD12="Dejar vacío",1,0) -> 1 | QE2: =QD2 -> 1 | QF2: =QE2 -> 1 | QG2: 1 | QH2: 1 | QI2: 1 | QJ2: 1 | QK2: 1 | QL2: 1 | QM2: 1 | QN2: =IF(QN12="Dejar vacío",1,0) -> 1 | QO2: =QN2 -> 1 | QP2: =QO2 -> 1 | QQ2: 1 | QR2: 1 | QS2: 1 | QT2: 1 | QU2: 1 | QV2: 1 | QW2: 1 | QX2: =IF(QX12="Dejar vacío",1,0) -> 1 | QY2: =QX2 -> 1 | QZ2: =QY2 -> 1 | RA2: 1 | RB2: 1 | RC2: 1 | RD2: 1 | RE2: 1 | RF2: 1 | RG2: 1 | RH2: =IF(RH12="Dejar vacío",1,0) -> 1 | RI2: =RH2 -> 1 | RJ2: =RI2 -> 1 | RK2: 1 | RL2: 1 | RM2: 1 | RN2: 1 | RO2: 1 | RP2: 1 | RQ2: 1 | RR2: =IF(RR12="Dejar vacío",1,0) -> 1 | RS2: =RR2 -> 1 | RT2: =RS2 -> 1 | RU2: 1 | RV2: 1 | RW2: 1 | RX2: 1 | RY2: 1 | RZ2: 1 | SA2: 1 | SB2: =IF(SB12="Dejar vacío",1,0) -> 1 | SC2: =SB2 -> 1 | SD2: =SC2 -> 1 | SE2: 1 | SF2: 1 | SG2: 1 | SH2: 1 | SI2: 1 | SJ2: 1 | SK2: 1 | SL2: =IF(SL12="Dejar vacío",1,0) -> 1 | SM2: =SL2 -> 1 | SN2: =SM2 -> 1 | SO2: 1 | SP2: 1 | SQ2: 1 | SR2: 1 | SS2: 1 | ST2: 1 | SU2: 1 | SV2: =IF(SV12="Dejar vacío",1,0) -> 1 | SW2: =SV2 -> 1 | SX2: =SW2 -> 1 | SY2: 1 | SZ2: 1 | TA2: 1 | TB2: 1 | TC2: 1 | TD2: 1 | TE2: 1 | TF2: =IF(TF12="Dejar vacío",1,0) -> 1 | TG2: =TF2 -> 1 | TH2: =TG2 -> 1 | TI2: 1 | TJ2: 1 | TK2: 1 | TL2: 1 | TM2: 1 | TN2: 1 | TO2: 1 | TP2: =IF(TP12="Dejar vacío",1,0) -> 1 | TQ2: =TP2 -> 1 | TR2: =TQ2 -> 1 | TS2: 1 | TT2: 1 | TU2: 1 | TV2: 1 | TW2: 1 | TX2: 1 | TY2: 1 | TZ2: =IF(TZ12="Dejar vacío",1,0) -> 1 | UA2: =TZ2 -> 1 | UB2: =UA2 -> 1 | UC2: 1 | UD2: 1 | UE2: 1 | UF2: 1 | UG2: 1 | UH2: 1 | UI2: 1 | UJ2: =IF(UJ12="Dejar vacío",1,0) -> 1 | UK2: =UJ2 -> 1 | UL2: =UK2 -> 1 | UM2: 1 | UN2: 1 | UO2: 1 | UP2: 1 | UQ2: 1 | UR2: 1 | US2: 1 | UT2: =IF(UT12="Dejar vacío",1,0) -> 1 | UU2: =UT2 -> 1 | UV2: =UU2 -> 1 | UW2: 1 | UX2: 1 | UY2: 1 | UZ2: 1 | VA2: 1 | VB2: 1 | VC2: 1 | VD2: =IF(VD12="Dejar vacío",1,0) -> 1 | VE2: =VD2 -> 1 | VF2: =VE2 -> 1 | VG2: 1 | VH2: 1 | VI2: 1 | VJ2: 1 | VK2: 1 | VL2: 1 | VM2: 1 | VN2: =IF(VN12="Dejar vacío",1,0) -> 1 | VO2: =VN2 -> 1 | VP2: =VO2 -> 1 | VQ2: 1 | VR2: 1 | VS2: 1 | VT2: 1 | VU2: 1 | VV2: 1 | VW2: 1 | VX2: =IF(VX12="Dejar vacío",1,0) -> 1 | VY2: =VX2 -> 1 | VZ2: =VY2 -> 1 | WA2: 1 | WB2: 1 | WC2: 1 | WD2: 1 | WE2: 1 | WF2: 1 | WG2: 1 | WH2: =IF(WH12="Dejar vacío",1,0) -> 1 | WI2: =WH2 -> 1 | WJ2: =WI2 -> 1 | WK2: 1 | WL2: 1 | WM2: 1 | WN2: 1 | WO2: 1 | WP2: 1 | WQ2: 1
C3: Programa anual de Costos totales (Inversiones y Gastos de Operación) | G3: Costos ingresados en la hoja General asociados al Plan o Programa | H3: =VLOOKUP(A1,General!A43:B57,2,FALSE) -> 0
C4: Detalle del Programa de Costos totales | G4: Costos presentados en esta hoja | H4: =A10 -> 0 | O4: N/A
G5: =IF(AND(H3=0,H4=0),"El indicador aparecerá una vez que se complete su Programa de Costos totales",IF(H3=H4,"La inversión del Plan es consistente con la información ingresada","Existen inconsistencias entre la información del Plan y la información ingresada")) -> El indicador aparecerá una vez que se complete su Programa de Costos totales | O5: Sí
C6: Numero de Contrato: | G6: =+General!B4 -> CNH-R01-L01-A7/2015 | O6: No | P6: 1 | Q6: 2 | R6: 3 | S6: 4 | T6: 5 | U6: 6 | V6: 7 | W6: 8 | X6: 9 | Y6: 10 | Z6: =+P6 -> 1 | AA6: 2 | AB6: 3 | AC6: 4 | AD6: 5 | AE6: 6 | AF6: 7 | AG6: 8 | AH6: 9 | AI6: 10 | AJ6: =+Z6 -> 1 | AK6: =+AA6 -> 2 | AL6: =+AB6 -> 3 | AM6: =+AC6 -> 4 | AN6: =+AD6 -> 5 | AO6: =+AE6 -> 6 | AP6: =+AF6 -> 7 | AQ6: =+AG6 -> 8 | AR6: =+AH6 -> 9 | AS6: =+AI6 -> 10 | AT6: =+AJ6 -> 1 | AU6: =+AK6 -> 2 | AV6: =+AL6 -> 3 | AW6: =+AM6 -> 4 | AX6: =+AN6 -> 5 | AY6: =+AO6 -> 6 | AZ6: =+AP6 -> 7 | BA6: =+AQ6 -> 8 | BB6: =+AR6 -> 9 | BC6: =+AS6 -> 10 | BD6: =+AT6 -> 1 | BE6: =+AU6 -> 2 | BF6: =+AV6 -> 3 | BG6: =+AW6 -> 4 | BH6: =+AX6 -> 5 | BI6: =+AY6 -> 6 | BJ6: =+AZ6 -> 7 | BK6: =+BA6 -> 8 | BL6: =+BB6 -> 9 | BM6: =+BC6 -> 10 | BN6: =+BD6 -> 1 | BO6: =+BE6 -> 2 | BP6: =+BF6 -> 3 | BQ6: =+BG6 -> 4 | BR6: =+BH6 -> 5 | BS6: =+BI6 -> 6 | BT6: =+BJ6 -> 7 | BU6: =+BK6 -> 8 | BV6: =+BL6 -> 9 | BW6: =+BM6 -> 10 | BX6: =+BN6 -> 1 | BY6: =+BO6 -> 2 | BZ6: =+BP6 -> 3 | CA6: =+BQ6 -> 4 | CB6: =+BR6 -> 5 | CC6: =+BS6 -> 6 | CD6: =+BT6 -> 7 | CE6: =+BU6 -> 8 | CF6: =+BV6 -> 9 | CG6: =+BW6 -> 10 | CH6: =+BX6 -> 1 | CI6: =+BY6 -> 2 | CJ6: =+BZ6 -> 3 | CK6: =+CA6 -> 4 | CL6: =+CB6 -> 5 | CM6: =+CC6 -> 6 | CN6: =+CD6 -> 7 | CO6: =+CE6 -> 8 | CP6: =+CF6 -> 9 | CQ6: =+CG6 -> 10 | CR6: =+CH6 -> 1 | CS6: =+CI6 -> 2 | CT6: =+CJ6 -> 3 | CU6: =+CK6 -> 4 | CV6: =+CL6 -> 5 | CW6: =+CM6 -> 6 | CX6: =+CN6 -> 7 | CY6: =+CO6 -> 8 | CZ6: =+CP6 -> 9 | DA6: =+CQ6 -> 10 | DB6: =+CR6 -> 1 | DC6: =+CS6 -> 2 | DD6: =+CT6 -> 3 | DE6: =+CU6 -> 4 | DF6: =+CV6 -> 5 | DG6: =+CW6 -> 6 | DH6: =+CX6 -> 7 | DI6: =+CY6 -> 8 | DJ6: =+CZ6 -> 9 | DK6: =+DA6 -> 10 | DL6: =+DB6 -> 1 | DM6: =+DC6 -> 2 | DN6: =+DD6 -> 3 | DO6: =+DE6 -> 4 | DP6: =+DF6 -> 5 | DQ6: =+DG6 -> 6 | DR6: =+DH6 -> 7 | DS6: =+DI6 -> 8 | DT6: =+DJ6 -> 9 | DU6: =+DK6 -> 10 | DV6: =+DL6 -> 1 | DW6: =+DM6 -> 2 | DX6: =+DN6 -> 3 | DY6: =+DO6 -> 4 | DZ6: =+DP6 -> 5 | EA6: =+DQ6 -> 6 | EB6: =+DR6 -> 7 | EC6: =+DS6 -> 8 | ED6: =+DT6 -> 9 | EE6: =+DU6 -> 10 | EF6: =+DV6 -> 1 | EG6: =+DW6 -> 2 | EH6: =+DX6 -> 3 | EI6: =+DY6 -> 4 | EJ6: =+DZ6 -> 5 | EK6: =+EA6 -> 6 | EL6: =+EB6 -> 7 | EM6: =+EC6 -> 8 | EN6: =+ED6 -> 9 | EO6: =+EE6 -> 10 | EP6: =+EF6 -> 1 | EQ6: =+EG6 -> 2 | ER6: =+EH6 -> 3 | ES6: =+EI6 -> 4 | ET6: =+EJ6 -> 5 | EU6: =+EK6 -> 6 | EV6: =+EL6 -> 7 | EW6: =+EM6 -> 8 | EX6: =+EN6 -> 9 | EY6: =+EO6 -> 10 | EZ6: =+EP6 -> 1 | FA6: =+EQ6 -> 2 | FB6: =+ER6 -> 3 | FC6: =+ES6 -> 4 | FD6: =+ET6 -> 5 | FE6: =+EU6 -> 6 | FF6: =+EV6 -> 7 | FG6: =+EW6 -> 8 | FH6: =+EX6 -> 9 | FI6: =+EY6 -> 10 | FJ6: =+EZ6 -> 1 | FK6: =+FA6 -> 2 | FL6: =+FB6 -> 3 | FM6: =+FC6 -> 4 | FN6: =+FD6 -> 5 | FO6: =+FE6 -> 6 | FP6: =+FF6 -> 7 | FQ6: =+FG6 -> 8 | FR6: =+FH6 -> 9 | FS6: =+FI6 -> 10 | FT6: =+FJ6 -> 1 | FU6: =+FK6 -> 2 | FV6: =+FL6 -> 3 | FW6: =+FM6 -> 4 | FX6: =+FN6 -> 5 | FY6: =+FO6 -> 6 | FZ6: =+FP6 -> 7 | GA6: =+FQ6 -> 8 | GB6: =+FR6 -> 9 | GC6: =+FS6 -> 10 | GD6: =+FT6 -> 1 | GE6: =+FU6 -> 2 | GF6: =+FV6 -> 3 | GG6: =+FW6 -> 4 | GH6: =+FX6 -> 5 | GI6: =+FY6 -> 6 | GJ6: =+FZ6 -> 7 | GK6: =+GA6 -> 8 | GL6: =+GB6 -> 9 | GM6: =+GC6 -> 10 | GN6: =+GD6 -> 1 | GO6: =+GE6 -> 2 | GP6: =+GF6 -> 3 | GQ6: =+GG6 -> 4 | GR6: =+GH6 -> 5 | GS6: =+GI6 -> 6 | GT6: =+GJ6 -> 7 | GU6: =+GK6 -> 8 | GV6: =+GL6 -> 9 | GW6: =+GM6 -> 10 | GX6: =+GN6 -> 1 | GY6: =+GO6 -> 2 | GZ6: =+GP6 -> 3 | HA6: =+GQ6 -> 4 | HB6: =+GR6 -> 5 | HC6: =+GS6 -> 6 | HD6: =+GT6 -> 7 | HE6: =+GU6 -> 8 | HF6: =+GV6 -> 9 | HG6: =+GW6 -> 10 | HH6: =+GX6 -> 1 | HI6: =+GY6 -> 2 | HJ6: =+GZ6 -> 3 | HK6: =+HA6 -> 4 | HL6: =+HB6 -> 5 | HM6: =+HC6 -> 6 | HN6: =+HD6 -> 7 | HO6: =+HE6 -> 8 | HP6: =+HF6 -> 9 | HQ6: =+HG6 -> 10 | HR6: =+HH6 -> 1 | HS6: =+HI6 -> 2 | HT6: =+HJ6 -> 3 | HU6: =+HK6 -> 4 | HV6: =+HL6 -> 5 | HW6: =+HM6 -> 6 | HX6: =+HN6 -> 7 | HY6: =+HO6 -> 8 | HZ6: =+HP6 -> 9 | IA6: =+HQ6 -> 10 | IB6: =+HR6 -> 1 | IC6: =+HS6 -> 2 | ID6: =+HT6 -> 3 | IE6: =+HU6 -> 4 | IF6: =+HV6 -> 5 | IG6: =+HW6 -> 6 | IH6: =+HX6 -> 7 | II6: =+HY6 -> 8 | IJ6: =+HZ6 -> 9 | IK6: =+IA6 -> 10 | IL6: =+IB6 -> 1 | IM6: =+IC6 -> 2 | IN6: =+ID6 -> 3 | IO6: =+IE6 -> 4 | IP6: =+IF6 -> 5 | IQ6: =+IG6 -> 6 | IR6: =+IH6 -> 7 | IS6: =+II6 -> 8 | IT6: =+IJ6 -> 9 | IU6: =+IK6 -> 10 | IV6: =+IL6 -> 1 | IW6: =+IM6 -> 2 | IX6: =+IN6 -> 3 | IY6: =+IO6 -> 4 | IZ6: =+IP6 -> 5 | JA6: =+IQ6 -> 6 | JB6: =+IR6 -> 7 | JC6: =+IS6 -> 8 | JD6: =+IT6 -> 9 | JE6: =+IU6 -> 10 | JF6: =+IV6 -> 1 | JG6: =+IW6 -> 2 | JH6: =+IX6 -> 3 | JI6: =+IY6 -> 4 | JJ6: =+IZ6 -> 5 | JK6: =+JA6 -> 6 | JL6: =+JB6 -> 7 | JM6: =+JC6 -> 8 | JN6: =+JD6 -> 9 | JO6: =+JE6 -> 10 | JP6: =+JF6 -> 1 | JQ6: =+JG6 -> 2 | JR6: =+JH6 -> 3 | JS6: =+JI6 -> 4 | JT6: =+JJ6 -> 5 | JU6: =+JK6 -> 6 | JV6: =+JL6 -> 7 | JW6: =+JM6 -> 8 | JX6: =+JN6 -> 9 | JY6: =+JO6 -> 10 | JZ6: =+JP6 -> 1 | KA6: =+JQ6 -> 2 | KB6: =+JR6 -> 3 | KC6: =+JS6 -> 4 | KD6: =+JT6 -> 5 | KE6: =+JU6 -> 6 | KF6: =+JV6 -> 7 | KG6: =+JW6 -> 8 | KH6: =+JX6 -> 9 | KI6: =+JY6 -> 10 | KJ6: =+JZ6 -> 1 | KK6: =+KA6 -> 2 | KL6: =+KB6 -> 3 | KM6: =+KC6 -> 4 | KN6: =+KD6 -> 5 | KO6: =+KE6 -> 6 | KP6: =+KF6 -> 7 | KQ6: =+KG6 -> 8 | KR6: =+KH6 -> 9 | KS6: =+KI6 -> 10 | KT6: =+KJ6 -> 1 | KU6: =+KK6 -> 2 | KV6: =+KL6 -> 3 | KW6: =+KM6 -> 4 | KX6: =+KN6 -> 5 | KY6: =+KO6 -> 6 | KZ6: =+KP6 -> 7 | LA6: =+KQ6 -> 8 | LB6: =+KR6 -> 9 | LC6: =+KS6 -> 10 | LD6: =+KT6 -> 1 | LE6: =+KU6 -> 2 | LF6: =+KV6 -> 3 | LG6: =+KW6 -> 4 | LH6: =+KX6 -> 5 | LI6: =+KY6 -> 6 | LJ6: =+KZ6 -> 7 | LK6: =+LA6 -> 8 | LL6: =+LB6 -> 9 | LM6: =+LC6 -> 10 | LN6: =+LD6 -> 1 | LO6: =+LE6 -> 2 | LP6: =+LF6 -> 3 | LQ6: =+LG6 -> 4 | LR6: =+LH6 -> 5 | LS6: =+LI6 -> 6 | LT6: =+LJ6 -> 7 | LU6: =+LK6 -> 8 | LV6: =+LL6 -> 9 | LW6: =+LM6 -> 10 | LX6: =+LN6 -> 1 | LY6: =+LO6 -> 2 | LZ6: =+LP6 -> 3 | MA6: =+LQ6 -> 4 | MB6: =+LR6 -> 5 | MC6: =+LS6 -> 6 | MD6: =+LT6 -> 7 | ME6: =+LU6 -> 8 | MF6: =+LV6 -> 9 | MG6: =+LW6 -> 10 | MH6: =+LX6 -> 1 | MI6: =+LY6 -> 2 | MJ6: =+LZ6 -> 3 | MK6: =+MA6 -> 4 | ML6: =+MB6 -> 5 | MM6: =+MC6 -> 6 | MN6: =+MD6 -> 7 | MO6: =+ME6 -> 8 | MP6: =+MF6 -> 9 | MQ6: =+MG6 -> 10 | MR6: =+MH6 -> 1 | MS6: =+MI6 -> 2 | MT6: =+MJ6 -> 3 | MU6: =+MK6 -> 4 | MV6: =+ML6 -> 5 | MW6: =+MM6 -> 6 | MX6: =+MN6 -> 7 | MY6: =+MO6 -> 8 | MZ6: =+MP6 -> 9 | NA6: =+MQ6 -> 10 | NB6: =+MR6 -> 1 | NC6: =+MS6 -> 2 | ND6: =+MT6 -> 3 | NE6: =+MU6 -> 4 | NF6: =+MV6 -> 5 | NG6: =+MW6 -> 6 | NH6: =+MX6 -> 7 | NI6: =+MY6 -> 8 | NJ6: =+MZ6 -> 9 | NK6: =+NA6 -> 10 | NL6: =+NB6 -> 1 | NM6: =+NC6 -> 2 | NN6: =+ND6 -> 3 | NO6: =+NE6 -> 4 | NP6: =+NF6 -> 5 | NQ6: =+NG6 -> 6 | NR6: =+NH6 -> 7 | NS6: =+NI6 -> 8 | NT6: =+NJ6 -> 9 | NU6: =+NK6 -> 10 | NV6: =+NL6 -> 1 | NW6: =+NM6 -> 2 | NX6: =+NN6 -> 3 | NY6: =+NO6 -> 4 | NZ6: =+NP6 -> 5 | OA6: =+NQ6 -> 6 | OB6: =+NR6 -> 7 | OC6: =+NS6 -> 8 | OD6: =+NT6 -> 9 | OE6: =+NU6 -> 10 | OF6: =+NV6 -> 1 | OG6: =+NW6 -> 2 | OH6: =+NX6 -> 3 | OI6: =+NY6 -> 4 | OJ6: =+NZ6 -> 5 | OK6: =+OA6 -> 6 | OL6: =+OB6 -> 7 | OM6: =+OC6 -> 8 | ON6: =+OD6 -> 9 | OO6: =+OE6 -> 10 | OP6: =+OF6 -> 1 | OQ6: =+OG6 -> 2 | OR6: =+OH6 -> 3 | OS6: =+OI6 -> 4 | OT6: =+OJ6 -> 5 | OU6: =+OK6 -> 6 | OV6: =+OL6 -> 7 | OW6: =+OM6 -> 8 | OX6: =+ON6 -> 9 | OY6: =+OO6 -> 10 | OZ6: =+OP6 -> 1 | PA6: =+OQ6 -> 2 | PB6: =+OR6 -> 3 | PC6: =+OS6 -> 4 | PD6: =+OT6 -> 5 | PE6: =+OU6 -> 6 | PF6: =+OV6 -> 7 | PG6: =+OW6 -> 8 | PH6: =+OX6 -> 9 | PI6: =+OY6 -> 10 | PJ6: =+OZ6 -> 1 | PK6: =+PA6 -> 2 | PL6: =+PB6 -> 3 | PM6: =+PC6 -> 4 | PN6: =+PD6 -> 5 | PO6: =+PE6 -> 6 | PP6: =+PF6 -> 7 | PQ6: =+PG6 -> 8 | PR6: =+PH6 -> 9 | PS6: =+PI6 -> 10 | PT6: =+PJ6 -> 1 | PU6: =+PK6 -> 2 | PV6: =+PL6 -> 3 | PW6: =+PM6 -> 4 | PX6: =+PN6 -> 5 | PY6: =+PO6 -> 6 | PZ6: =+PP6 -> 7 | QA6: =+PQ6 -> 8 | QB6: =+PR6 -> 9 | QC6: =+PS6 -> 10 | QD6: =+PT6 -> 1 | QE6: =+PU6 -> 2 | QF6: =+PV6 -> 3 | QG6: =+PW6 -> 4 | QH6: =+PX6 -> 5 | QI6: =+PY6 -> 6 | QJ6: =+PZ6 -> 7 | QK6: =+QA6 -> 8 | QL6: =+QB6 -> 9 | QM6: =+QC6 -> 10 | QN6: =+QD6 -> 1 | QO6: =+QE6 -> 2 | QP6: =+QF6 -> 3 | QQ6: =+QG6 -> 4 | QR6: =+QH6 -> 5 | QS6: =+QI6 -> 6 | QT6: =+QJ6 -> 7 | QU6: =+QK6 -> 8 | QV6: =+QL6 -> 9 | QW6: =+QM6 -> 10 | QX6: =+QN6 -> 1 | QY6: =+QO6 -> 2 | QZ6: =+QP6 -> 3 | RA6: =+QQ6 -> 4 | RB6: =+QR6 -> 5 | RC6: =+QS6 -> 6 | RD6: =+QT6 -> 7 | RE6: =+QU6 -> 8 | RF6: =+QV6 -> 9 | RG6: =+QW6 -> 10 | RH6: =+QX6 -> 1 | RI6: =+QY6 -> 2 | RJ6: =+QZ6 -> 3 | RK6: =+RA6 -> 4 | RL6: =+RB6 -> 5 | RM6: =+RC6 -> 6 | RN6: =+RD6 -> 7 | RO6: =+RE6 -> 8 | RP6: =+RF6 -> 9 | RQ6: =+RG6 -> 10 | RR6: =+RH6 -> 1 | RS6: =+RI6 -> 2 | RT6: =+RJ6 -> 3 | RU6: =+RK6 -> 4 | RV6: =+RL6 -> 5 | RW6: =+RM6 -> 6 | RX6: =+RN6 -> 7 | RY6: =+RO6 -> 8 | RZ6: =+RP6 -> 9 | SA6: =+RQ6 -> 10 | SB6: =+RR6 -> 1 | SC6: =+RS6 -> 2 | SD6: =+RT6 -> 3 | SE6: =+RU6 -> 4 | SF6: =+RV6 -> 5 | SG6: =+RW6 -> 6 | SH6: =+RX6 -> 7 | SI6: =+RY6 -> 8 | SJ6: =+RZ6 -> 9 | SK6: =+SA6 -> 10 | SL6: =+SB6 -> 1 | SM6: =+SC6 -> 2 | SN6: =+SD6 -> 3 | SO6: =+SE6 -> 4 | SP6: =+SF6 -> 5 | SQ6: =+SG6 -> 6 | SR6: =+SH6 -> 7 | SS6: =+SI6 -> 8 | ST6: =+SJ6 -> 9 | SU6: =+SK6 -> 10 | SV6: =+SL6 -> 1 | SW6: =+SM6 -> 2 | SX6: =+SN6 -> 3 | SY6: =+SO6 -> 4 | SZ6: =+SP6 -> 5 | TA6: =+SQ6 -> 6 | TB6: =+SR6 -> 7 | TC6: =+SS6 -> 8 | TD6: =+ST6 -> 9 | TE6: =+SU6 -> 10 | TF6: =+SV6 -> 1 | TG6: =+SW6 -> 2 | TH6: =+SX6 -> 3 | TI6: =+SY6 -> 4 | TJ6: =+SZ6 -> 5 | TK6: =+TA6 -> 6 | TL6: =+TB6 -> 7 | TM6: =+TC6 -> 8 | TN6: =+TD6 -> 9 | TO6: =+TE6 -> 10 | TP6: =+TF6 -> 1 | TQ6: =+TG6 -> 2 | TR6: =+TH6 -> 3 | TS6: =+TI6 -> 4 | TT6: =+TJ6 -> 5 | TU6: =+TK6 -> 6 | TV6: =+TL6 -> 7 | TW6: =+TM6 -> 8 | TX6: =+TN6 -> 9 | TY6: =+TO6 -> 10 | TZ6: =+TP6 -> 1 | UA6: =+TQ6 -> 2 | UB6: =+TR6 -> 3 | UC6: =+TS6 -> 4 | UD6: =+TT6 -> 5 | UE6: =+TU6 -> 6 | UF6: =+TV6 -> 7 | UG6: =+TW6 -> 8 | UH6: =+TX6 -> 9 | UI6: =+TY6 -> 10 | UJ6: =+TZ6 -> 1 | UK6: =+UA6 -> 2 | UL6: =+UB6 -> 3 | UM6: =+UC6 -> 4 | UN6: =+UD6 -> 5 | UO6: =+UE6 -> 6 | UP6: =+UF6 -> 7 | UQ6: =+UG6 -> 8 | UR6: =+UH6 -> 9 | US6: =+UI6 -> 10 | UT6: =+UJ6 -> 1 | UU6: =+UK6 -> 2 | UV6: =+UL6 -> 3 | UW6: =+UM6 -> 4 | UX6: =+UN6 -> 5 | UY6: =+UO6 -> 6 | UZ6: =+UP6 -> 7 | VA6: =+UQ6 -> 8 | VB6: =+UR6 -> 9 | VC6: =+US6 -> 10 | VD6: =+Z6 -> 1 | VE6: 2 | VF6: 3 | VG6: 4 | VH6: 5 | VI6: 6 | VJ6: 7 | VK6: 8 | VL6: 9 | VM6: 10 | VN6: =+VD6 -> 1 | VO6: 2 | VP6: 3 | VQ6: 4 | VR6: 5 | VS6: 6 | VT6: 7 | VU6: 8 | VV6: 9 | VW6: 10 | VX6: 1 | VY6: 2 | VZ6: 3 | WA6: 4 | WB6: 5 | WC6: 6 | WD6: 7 | WE6: 8 | WF6: 9 | WG6: 10 | WH6: 1 | WI6: 2 | WJ6: 3 | WK6: 4 | WL6: 5 | WM6: 6 | WN6: 7 | WO6: 8 | WP6: 9 | WQ6: 10
C7: Compañía:
C8: Área Contractual o Bloque: | O8: Inversión
C9: Fecha Presentación: | G9: =+General!B6 -> 00:00:00 | O9: Gasto Operativo
A10: =SUMIF(P2:WQ2,0,P186:WQ186) -> 0 | C10: Gastos excluidos del cálculo de Contenido Nacional. Se reitera que, según lo establecido en la Metodología, no son acreditables para Contenido Nacional los gastos en: servicios financieros, servicios en medios masivos, servicios de alojamiento temporal y de preparación de alimentos y bebidas, servicios financieros y de seguros, servicios de esparcimiento culturales y deportivos, y otros servicios recreativos, servicios personales, servicios de asociaciones y organizaciones, determinados en los sectores o subsectores del Sistema de Clasificación Industrial de América del Norte. Asímismo, los gastos que no representen un pago por un bien, servicio, mano de obra, capacitación, transferencia de tecnología o infraestructura, de acuerdo a lo definido en la Metodología, no son acreditables para el cálculo de Contenido Nacional; como es el caso de pago de cuotas contractuales, impuestos o derechos.
A11: =+SUM(A16:A270) -> 0 | P11: 1 | Q11: 1 | R11: 1 | S11: 1 | T11: 1 | U11: 1 | V11: 1 | W11: 1 | X11: 1 | Y11: 1 | Z11: =+P11+1 -> 2 | AA11: =+Q11+1 -> 2 | AB11: 2 | AC11: 2 | AD11: 2 | AE11: 2 | AF11: 2 | AG11: 2 | AH11: 2 | AI11: 2 | AJ11: 3 | AK11: 3 | AL11: 3 | AM11: 3 | AN11: 3 | AO11: 3 | AP11: 3 | AQ11: 3 | AR11: 3 | AS11: 3 | AT11: 4 | AU11: 4 | AV11: 4 | AW11: 4 | AX11: 4 | AY11: 4 | AZ11: 4 | BA11: 4 | BB11: 4 | BC11: 4 | BD11: 5 | BE11: 5 | BF11: 5 | BG11: 5 | BH11: 5 | BI11: 5 | BJ11: 5 | BK11: 5 | BL11: 5 | BM11: 5 | BN11: 6 | BO11: 6 | BP11: 6 | BQ11: 6 | BR11: 6 | BS11: 6 | BT11: 6 | BU11: 6 | BV11: 6 | BW11: 6 | BX11: 7 | BY11: 7 | BZ11: 7 | CA11: 7 | CB11: 7 | CC11: 7 | CD11: 7 | CE11: 7 | CF11: 7 | CG11: 7 | CH11: 8 | CI11: 8 | CJ11: 8 | CK11: 8 | CL11: 8 | CM11: =+CC11+1 -> 8 | CN11: 8 | CO11: 8 | CP11: 8 | CQ11: 8 | CR11: 9 | CS11: 9 | CT11: 9 | CU11: 9 | CV11: 9 | CW11: 9 | CX11: 9 | CY11: 9 | CZ11: 9 | DA11: 9 | DB11: 10 | DC11: 10 | DD11: 10 | DE11: 10 | DF11: 10 | DG11: 10 | DH11: 10 | DI11: 10 | DJ11: 10 | DK11: 10 | DL11: 11 | DM11: 11 | DN11: 11 | DO11: 11 | DP11: 11 | DQ11: 11 | DR11: 11 | DS11: 11 | DT11: 11 | DU11: 11 | DV11: 12 | DW11: 12 | DX11: 12 | DY11: 12 | DZ11: 12 | EA11: 12 | EB11: 12 | EC11: 12 | ED11: 12 | EE11: 12 | EF11: 13 | EG11: 13 | EH11: 13 | EI11: 13 | EJ11: 13 | EK11: 13 | EL11: 13 | EM11: 13 | EN11: 13 | EO11: 13 | EP11: 14 | EQ11: 14 | ER11: 14 | ES11: 14 | ET11: 14 | EU11: 14 | EV11: 14 | EW11: 14 | EX11: 14 | EY11: =+EO11+1 -> 14 | EZ11: 15 | FA11: 15 | FB11: 15 | FC11: 15 | FD11: 15 | FE11: 15 | FF11: 15 | FG11: 15 | FH11: 15 | FI11: 15 | FJ11: 16 | FK11: 16 | FL11: 16 | FM11: 16 | FN11: 16 | FO11: 16 | FP11: 16 | FQ11: 16 | FR11: 16 | FS11: 16 | FT11: 17 | FU11: 17 | FV11: 17 | FW11: 17 | FX11: 17 | FY11: 17 | FZ11: 17 | GA11: 17 | GB11: 17 | GC11: 17 | GD11: 18 | GE11: 18 | GF11: 18 | GG11: 18 | GH11: 18 | GI11: 18 | GJ11: 18 | GK11: 18 | GL11: 18 | GM11: 18 | GN11: 19 | GO11: 19 | GP11: 19 | GQ11: 19 | GR11: 19 | GS11: 19 | GT11: 19 | GU11: 19 | GV11: 19 | GW11: 19 | GX11: 20 | GY11: 20 | GZ11: 20 | HA11: 20 | HB11: 20 | HC11: 20 | HD11: 20 | HE11: 20 | HF11: 20 | HG11: 20 | HH11: 21 | HI11: 21 | HJ11: 21 | HK11: =+HA11+1 -> 21 | HL11: 21 | HM11: 21 | HN11: 21 | HO11: 21 | HP11: 21 | HQ11: 21 | HR11: 22 | HS11: 22 | HT11: 22 | HU11: 22 | HV11: 22 | HW11: 22 | HX11: 22 | HY11: 22 | HZ11: 22 | IA11: 22 | IB11: 23 | IC11: 23 | ID11: 23 | IE11: 23 | IF11: 23 | IG11: 23 | IH11: 23 | II11: 23 | IJ11: 23 | IK11: 23 | IL11: 24 | IM11: 24 | IN11: 24 | IO11: 24 | IP11: 24 | IQ11: 24 | IR11: 24 | IS11: 24 | IT11: 24 | IU11: 24 | IV11: 25 | IW11: 25 | IX11: 25 | IY11: 25 | IZ11: 25 | JA11: 25 | JB11: 25 | JC11: 25 | JD11: 25 | JE11: 25 | JF11: 26 | JG11: 26 | JH11: 26 | JI11: 26 | JJ11: 26 | JK11: 26 | JL11: 26 | JM11: 26 | JN11: 26 | JO11: 26 | JP11: 27 | JQ11: 27 | JR11: 27 | JS11: 27 | JT11: 27 | JU11: 27 | JV11: 27 | JW11: =+JM11+1 -> 27 | JX11: 27 | JY11: 27 | JZ11: 28 | KA11: 28 | KB11: 28 | KC11: 28 | KD11: 28 | KE11: 28 | KF11: 28 | KG11: 28 | KH11: 28 | KI11: 28 | KJ11: 29 | KK11: 29 | KL11: 29 | KM11: 29 | KN11: 29 | KO11: 29 | KP11: 29 | KQ11: 29 | KR11: 29 | KS11: 29 | KT11: 30 | KU11: 30 | KV11: 30 | KW11: 30 | KX11: 30 | KY11: 30 | KZ11: 30 | LA11: 30 | LB11: 30 | LC11: 30 | LD11: 31 | LE11: 31 | LF11: 31 | LG11: 31 | LH11: 31 | LI11: 31 | LJ11: 31 | LK11: 31 | LL11: 31 | LM11: 31 | LN11: 32 | LO11: 32 | LP11: 32 | LQ11: 32 | LR11: 32 | LS11: 32 | LT11: 32 | LU11: 32 | LV11: 32 | LW11: 32 | LX11: 33 | LY11: 33 | LZ11: 33 | MA11: 33 | MB11: 33 | MC11: 33 | MD11: 33 | ME11: 33 | MF11: 33 | MG11: 33 | MH11: 34 | MI11: =+LY11+1 -> 34 | MJ11: 34 | MK11: 34 | ML11: 34 | MM11: 34 | MN11: 34 | MO11: 34 | MP11: 34 | MQ11: 34 | MR11: 35 | MS11: 35 | MT11: 35 | MU11: 35 | MV11: 35 | MW11: 35 | MX11: 35 | MY11: 35 | MZ11: 35 | NA11: 35 | NB11: 36 | NC11: 36 | ND11: 36 | NE11: 36 | NF11: 36 | NG11: 36 | NH11: 36 | NI11: 36 | NJ11: 36 | NK11: 36 | NL11: 37 | NM11: 37 | NN11: 37 | NO11: 37 | NP11: 37 | NQ11: 37 | NR11: 37 | NS11: 37 | NT11: 37 | NU11: 37 | NV11: 38 | NW11: 38 | NX11: 38 | NY11: 38 | NZ11: 38 | OA11: 38 | OB11: 38 | OC11: 38 | OD11: 38 | OE11: 38 | OF11: 39 | OG11: 39 | OH11: 39 | OI11: 39 | OJ11: 39 | OK11: 39 | OL11: 39 | OM11: 39 | ON11: 39 | OO11: 39 | OP11: 40 | OQ11: 40 | OR11: 40 | OS11: 40 | OT11: 40 | OU11: =+OK11+1 -> 40 | OV11: 40 | OW11: 40 | OX11: 40 | OY11: 40 | OZ11: 41 | PA11: 41 | PB11: 41 | PC11: 41 | PD11: 41 | PE11: 41 | PF11: 41 | PG11: 41 | PH11: 41 | PI11: 41 | PJ11: 42 | PK11: 42 | PL11: 42 | PM11: 42 | PN11: 42 | PO11: 42 | PP11: 42 | PQ11: 42 | PR11: 42 | PS11: 42 | PT11: 43 | PU11: 43 | PV11: 43 | PW11: 43 | PX11: 43 | PY11: 43 | PZ11: 43 | QA11: 43 | QB11: 43 | QC11: 43 | QD11: 44 | QE11: 44 | QF11: 44 | QG11: 44 | QH11: 44 | QI11: 44 | QJ11: 44 | QK11: 44 | QL11: 44 | QM11: 44 | QN11: 45 | QO11: 45 | QP11: 45 | QQ11: 45 | QR11: 45 | QS11: 45 | QT11: 45 | QU11: 45 | QV11: 45 | QW11: 45 | QX11: 46 | QY11: 46 | QZ11: 46 | RA11: 46 | RB11: 46 | RC11: 46 | RD11: 46 | RE11: 46 | RF11: 46 | RG11: =+QW11+1 -> 46 | RH11: 47 | RI11: 47 | RJ11: 47 | RK11: 47 | RL11: 47 | RM11: 47 | RN11: 47 | RO11: 47 | RP11: 47 | RQ11: 47 | RR11: 48 | RS11: 48 | RT11: 48 | RU11: 48 | RV11: 48 | RW11: 48 | RX11: 48 | RY11: 48 | RZ11: 48 | SA11: 48 | SB11: 49 | SC11: 49 | SD11: 49 | SE11: 49 | SF11: 49 | SG11: 49 | SH11: 49 | SI11: 49 | SJ11: 49 | SK11: 49 | SL11: 50 | SM11: 50 | SN11: 50 | SO11: 50 | SP11: 50 | SQ11: 50 | SR11: 50 | SS11: 50 | ST11: 50 | SU11: 50 | SV11: 51 | SW11: 51 | SX11: 51 | SY11: 51 | SZ11: 51 | TA11: 51 | TB11: 51 | TC11: 51 | TD11: 51 | TE11: 51 | TF11: 52 | TG11: 52 | TH11: 52 | TI11: 52 | TJ11: 52 | TK11: 52 | TL11: 52 | TM11: 52 | TN11: 52 | TO11: 52 | TP11: 53 | TQ11: 53 | TR11: 53 | TS11: =+TI11+1 -> 53 | TT11: 53 | TU11: 53 | TV11: 53 | TW11: 53 | TX11: 53 | TY11: 53 | TZ11: 54 | UA11: 54 | UB11: 54 | UC11: 54 | UD11: 54 | UE11: 54 | UF11: 54 | UG11: 54 | UH11: 54 | UI11: 54 | UJ11: 55 | UK11: 55 | UL11: 55 | UM11: 55 | UN11: 55 | UO11: 55 | UP11: 55 | UQ11: 55 | UR11: 55 | US11: 55 | UT11: 56 | UU11: 56 | UV11: 56 | UW11: 56 | UX11: 56 | UY11: 56 | UZ11: 56 | VA11: 56 | VB11: 56 | VC11: 56 | VD11: 57 | VE11: 57 | VF11: 57 | VG11: 57 | VH11: 57 | VI11: 57 | VJ11: 57 | VK11: 57 | VL11: 57 | VM11: 57 | VN11: 58 | VO11: 58 | VP11: 58 | VQ11: 58 | VR11: 58 | VS11: 58 | VT11: 58 | VU11: 58 | VV11: 58 | VW11: 58 | VX11: 59 | VY11: 59 | VZ11: 59 | WA11: 59 | WB11: 59 | WC11: 59 | WD11: 59 | WE11: =+VU11+1 -> 59 | WF11: 59 | WG11: 59 | WH11: 60 | WI11: 60 | WJ11: 60 | WK11: 60 | WL11: 60 | WM11: 60 | WN11: 60 | WO11: 60 | WP11: 60 | WQ11: 60
B12: Clasificación | K12: Estructura CC | O12: Costos | P12: =+OFFSET(General!$G$6,General!$J$67,0) -> 2017 | Z12: =+IF(Z11<=General!$J$68,'Escenario 1'!P12+1,"Dejar vacío") -> Dejar vacío | AJ12: =+IF(AJ11<=General!$J$68,'Escenario 1'!Z12+1,"Dejar vacío") -> Dejar vacío | AT12: =+IF(AT11<=General!$J$68,'Escenario 1'!AJ12+1,"Dejar vacío") -> Dejar vacío | BD12: =+IF(BD11<=General!$J$68,'Escenario 1'!AT12+1,"Dejar vacío") -> Dejar vacío | BN12: =+IF(BN11<=General!$J$68,'Escenario 1'!BD12+1,"Dejar vacío") -> Dejar vacío | BX12: =+IF(BX11<=General!$J$68,'Escenario 1'!BN12+1,"Dejar vacío") -> Dejar vacío | CH12: =+IF(CH11<=General!$J$68,'Escenario 1'!BX12+1,"Dejar vacío") -> Dejar vacío | CR12: =+IF(CR11<=General!$J$68,'Escenario 1'!CH12+1,"Dejar vacío") -> Dejar vacío | DB12: =+IF(DB11<=General!$J$68,'Escenario 1'!CR12+1,"Dejar vacío") -> Dejar vacío | DL12: =+IF(DL11<=General!$J$68,'Escenario 1'!DB12+1,"Dejar vacío") -> Dejar vacío | DV12: =+IF(DV11<=General!$J$68,'Escenario 1'!DL12+1,"Dejar vacío") -> Dejar vacío | EF12: =+IF(EF11<=General!$J$68,'Escenario 1'!DV12+1,"Dejar vacío") -> Dejar vacío | EP12: =+IF(EP11<=General!$J$68,'Escenario 1'!EF12+1,"Dejar vacío") -> Dejar vacío | EZ12: =+IF(EZ11<=General!$J$68,'Escenario 1'!EP12+1,"Dejar vacío") -> Dejar vacío | FJ12: =+IF(FJ11<=General!$J$68,'Escenario 1'!EZ12+1,"Dejar vacío") -> Dejar vacío | FT12: =+IF(FT11<=General!$J$68,'Escenario 1'!FJ12+1,"Dejar vacío") -> Dejar vacío | GD12: =+IF(GD11<=General!$J$68,'Escenario 1'!FT12+1,"Dejar vacío") -> Dejar vacío | GN12: =+IF(GN11<=General!$J$68,'Escenario 1'!GD12+1,"Dejar vacío") -> Dejar vacío | GX12: =+IF(GX11<=General!$J$68,'Escenario 1'!GN12+1,"Dejar vacío") -> Dejar vacío | HH12: =+IF(HH11<=General!$J$68,'Escenario 1'!GX12+1,"Dejar vacío") -> Dejar vacío | HR12: =+IF(HR11<=General!$J$68,'Escenario 1'!HH12+1,"Dejar vacío") -> Dejar vacío | IB12: =+IF(IB11<=General!$J$68,'Escenario 1'!HR12+1,"Dejar vacío") -> Dejar vacío | IL12: =+IF(IL11<=General!$J$68,'Escenario 1'!IB12+1,"Dejar vacío") -> Dejar vacío | IV12: =+IF(IV11<=General!$J$68,'Escenario 1'!IL12+1,"Dejar vacío") -> Dejar vacío | JF12: =+IF(JF11<=General!$J$68,'Escenario 1'!IV12+1,"Dejar vacío") -> Dejar vacío | JP12: =+IF(JP11<=General!$J$68,'Escenario 1'!JF12+1,"Dejar vacío") -> Dejar vacío | JZ12: =+IF(JZ11<=General!$J$68,'Escenario 1'!JP12+1,"Dejar vacío") -> Dejar vacío | KJ12: =+IF(KJ11<=General!$J$68,'Escenario 1'!JZ12+1,"Dejar vacío") -> Dejar vacío | KT12: =+IF(KT11<=General!$J$68,'Escenario 1'!KJ12+1,"Dejar vacío") -> Dejar vacío | LD12: =+IF(LD11<=General!$J$68,'Escenario 1'!KT12+1,"Dejar vacío") -> Dejar vacío | LN12: =+IF(LN11<=General!$J$68,'Escenario 1'!LD12+1,"Dejar vacío") -> Dejar vacío | LX12: =+IF(LX11<=General!$J$68,'Escenario 1'!LN12+1,"Dejar vacío") -> Dejar vacío | MH12: =+IF(MH11<=General!$J$68,'Escenario 1'!LX12+1,"Dejar vacío") -> Dejar vacío | MR12: =+IF(MR11<=General!$J$68,'Escenario 1'!MH12+1,"Dejar vacío") -> Dejar vacío | NB12: =+IF(NB11<=General!$J$68,'Escenario 1'!MR12+1,"Dejar vacío") -> Dejar vacío | NL12: =+IF(NL11<=General!$J$68,'Escenario 1'!NB12+1,"Dejar vacío") -> Dejar vacío | NV12: =+IF(NV11<=General!$J$68,'Escenario 1'!NL12+1,"Dejar vacío") -> Dejar vacío | OF12: =+IF(OF11<=General!$J$68,'Escenario 1'!NV12+1,"Dejar vacío") -> Dejar vacío | OP12: =+IF(OP11<=General!$J$68,'Escenario 1'!OF12+1,"Dejar vacío") -> Dejar vacío | OZ12: =+IF(OZ11<=General!$J$68,'Escenario 1'!OP12+1,"Dejar vacío") -> Dejar vacío | PJ12: =+IF(PJ11<=General!$J$68,'Escenario 1'!OZ12+1,"Dejar vacío") -> Dejar vacío | PT12: =+IF(PT11<=General!$J$68,'Escenario 1'!PJ12+1,"Dejar vacío") -> Dejar vacío | QD12: =+IF(QD11<=General!$J$68,'Escenario 1'!PT12+1,"Dejar vacío") -> Dejar vacío | QN12: =+IF(QN11<=General!$J$68,'Escenario 1'!QD12+1,"Dejar vacío") -> Dejar vacío | QX12: =+IF(QX11<=General!$J$68,'Escenario 1'!QN12+1,"Dejar vacío") -> Dejar vacío | RH12: =+IF(RH11<=General!$J$68,'Escenario 1'!QX12+1,"Dejar vacío") -> Dejar vacío | RR12: =+IF(RR11<=General!$J$68,'Escenario 1'!RH12+1,"Dejar vacío") -> Dejar vacío | SB12: =+IF(SB11<=General!$J$68,'Escenario 1'!RR12+1,"Dejar vacío") -> Dejar vacío | SL12: =+IF(SL11<=General!$J$68,'Escenario 1'!SB12+1,"Dejar vacío") -> Dejar vacío | SV12: =+IF(SV11<=General!$J$68,'Escenario 1'!SL12+1,"Dejar vacío") -> Dejar vacío | TF12: =+IF(TF11<=General!$J$68,'Escenario 1'!SV12+1,"Dejar vacío") -> Dejar vacío | TP12: =+IF(TP11<=General!$J$68,'Escenario 1'!TF12+1,"Dejar vacío") -> Dejar vacío | TZ12: =+IF(TZ11<=General!$J$68,'Escenario 1'!TP12+1,"Dejar vacío") -> Dejar vacío | UJ12: =+IF(UJ11<=General!$J$68,'Escenario 1'!TZ12+1,"Dejar vacío") -> Dejar vacío | UT12: =+IF(UT11<=General!$J$68,'Escenario 1'!UJ12+1,"Dejar vacío") -> Dejar vacío | VD12: =+IF(VD11<=General!$J$68,'Escenario 1'!UT12+1,"Dejar vacío") -> Dejar vacío | VN12: =+IF(VN11<=General!$J$68,'Escenario 1'!VD12+1,"Dejar vacío") -> Dejar vacío | VX12: =+IF(VX11<=General!$J$68,'Escenario 1'!VN12+1,"Dejar vacío") -> Dejar vacío | WH12: =+IF(WH11<=General!$J$68,'Escenario 1'!VX12+1,"Dejar vacío") -> Dejar vacío
B13: id_Actividad petrolera | C13: Actividad petrolera | D13: id_Sub-actividad petrolera | E13: Sub-actividad petrolera | F13: id_Tarea | G13: Tarea | H13: Descripción (requerido para inversiones y gastos de operación relacionados a procesos de recuperación secundaria y mejorada, así como, para contratos con recuperación de costos) | J13: Costo considerado a ser elegible (Sí / No) | K13: Area | L13: Campo | M13: Yacimiento | N13: Pozo | O13: Inversión o Gasto Operativo | P13: Programa de Inversiones y Gastos de Operación (Dólares) | Z13: Programa de Inversiones y Gastos de Operación (Dólares) | AJ13: Programa de Inversiones y Gastos de Operación (Dólares) | AT13: Programa de Inversiones y Gastos de Operación (Dólares) | BD13: Programa de Inversiones y Gastos de Operación (Dólares) | BN13: Programa de Inversiones y Gastos de Operación (Dólares) | BX13: Programa de Inversiones y Gastos de Operación (Dólares) | CH13: Programa de Inversiones y Gastos de Operación (Dólares) | CR13: Programa de Inversiones y Gastos de Operación (Dólares) | DB13: Programa de Inversiones y Gastos de Operación (Dólares) | DL13: Programa de Inversiones y Gastos de Operación (Dólares) | DV13: Programa de Inversiones y Gastos de Operación (Dólares) | EF13: Programa de Inversiones y Gastos de Operación (Dólares) | EP13: Programa de Inversiones y Gastos de Operación (Dólares) | EZ13: Programa de Inversiones y Gastos de Operación (Dólares) | FJ13: Programa de Inversiones y Gastos de Operación (Dólares) | FT13: Programa de Inversiones y Gastos de Operación (Dólares) | GD13: Programa de Inversiones y Gastos de Operación (Dólares) | GN13: Programa de Inversiones y Gastos de Operación (Dólares) | GX13: Programa de Inversiones y Gastos de Operación (Dólares) | HH13: Programa de Inversiones y Gastos de Operación (Dólares) | HR13: Programa de Inversiones y Gastos de Operación (Dólares) | IB13: Programa de Inversiones y Gastos de Operación (Dólares) | IL13: Programa de Inversiones y Gastos de Operación (Dólares) | IV13: Programa de Inversiones y Gastos de Operación (Dólares) | JF13: Programa de Inversiones y Gastos de Operación (Dólares) | JP13: Programa de Inversiones y Gastos de Operación (Dólares) | JZ13: Programa de Inversiones y Gastos de Operación (Dólares) | KJ13: Programa de Inversiones y Gastos de Operación (Dólares) | KT13: Programa de Inversiones y Gastos de Operación (Dólares) | LD13: Programa de Inversiones y Gastos de Operación (Dólares) | LN13: Programa de Inversiones y Gastos de Operación (Dólares) | LX13: Programa de Inversiones y Gastos de Operación (Dólares) | MH13: Programa de Inversiones y Gastos de Operación (Dólares) | MR13: Programa de Inversiones y Gastos de Operación (Dólares) | NB13: Programa de Inversiones y Gastos de Operación (Dólares) | NL13: Programa de Inversiones y Gastos de Operación (Dólares) | NV13: Programa de Inversiones y Gastos de Operación (Dólares) | OF13: Programa de Inversiones y Gastos de Operación (Dólares) | OP13: Programa de Inversiones y Gastos de Operación (Dólares) | OZ13: Programa de Inversiones y Gastos de Operación (Dólares) | PJ13: Programa de Inversiones y Gastos de Operación (Dólares) | PT13: Programa de Inversiones y Gastos de Operación (Dólares) | QD13: Programa de Inversiones y Gastos de Operación (Dólares) | QN13: Programa de Inversiones y Gastos de Operación (Dólares) | QX13: Programa de Inversiones y Gastos de Operación (Dólares) | RH13: Programa de Inversiones y Gastos de Operación (Dólares) | RR13: Programa de Inversiones y Gastos de Operación (Dólares) | SB13: Programa de Inversiones y Gastos de Operación (Dólares) | SL13: Programa de Inversiones y Gastos de Operación (Dólares) | SV13: Programa de Inversiones y Gastos de Operación (Dólares) | TF13: Programa de Inversiones y Gastos de Operación (Dólares) | TP13: Programa de Inversiones y Gastos de Operación (Dólares) | TZ13: Programa de Inversiones y Gastos de Operación (Dólares) | UJ13: Programa de Inversiones y Gastos de Operación (Dólares) | UT13: Programa de Inversiones y Gastos de Operación (Dólares) | VD13: Programa de Inversiones y Gastos de Operación (Dólares) | VN13: Programa de Inversiones y Gastos de Operación (Dólares) | VX13: Programa de Inversiones y Gastos de Operación (Dólares) | WH13: Programa de Inversiones y Gastos de Operación (Dólares)
H14: id_Descripción | I14: Descripción (detalle de la inversión o gasto de operación) | P14: Mano de Obra ($) | R14: Bienes ($) | T14: Servicios ($) | V14: Capacitación ($) | X14: Transferencia de Tecnologia | Y14: Infraestructura (Social) | Z14: Mano de Obra ($) | AB14: Bienes ($) | AD14: Servicios ($) | AF14: Capacitación ($) | AH14: Transferencia de Tecnologia | AI14: Infraestructura (Social) | AJ14: Mano de Obra ($) | AL14: Bienes ($) | AN14: Servicios ($) | AP14: Capacitación ($) | AR14: Transferencia de Tecnologia | AS14: Infraestructura (Social) | AT14: Mano de Obra ($) | AV14: Bienes ($) | AX14: Servicios ($) | AZ14: Capacitación ($) | BB14: Transferencia de Tecnologia | BC14: Infraestructura (Social) | BD14: Mano de Obra ($) | BF14: Bienes ($) | BH14: Servicios ($) | BJ14: Capacitación ($) | BL14: Transferencia de Tecnologia | BM14: Infraestructura (Social) | BN14: Mano de Obra ($) | BP14: Bienes ($) | BR14: Servicios ($) | BT14: Capacitación ($) | BV14: Transferencia de Tecnologia | BW14: Infraestructura (Social) | BX14: Mano de Obra ($) | BZ14: Bienes ($) | CB14: Servicios ($) | CD14: Capacitación ($) | CF14: Transferencia de Tecnologia | CG14: Infraestructura (Social) | CH14: Mano de Obra ($) | CJ14: Bienes ($) | CL14: Servicios ($) | CN14: Capacitación ($) | CP14: Transferencia de Tecnologia | CQ14: Infraestructura (Social) | CR14: Mano de Obra ($) | CT14: Bienes ($) | CV14: Servicios ($) | CX14: Capacitación ($) | CZ14: Transferencia de Tecnologia | DA14: Infraestructura (Social) | DB14: Mano de Obra ($) | DD14: Bienes ($) | DF14: Servicios ($) | DH14: Capacitación ($) | DJ14: Transferencia de Tecnologia | DK14: Infraestructura (Social) | DL14: Mano de Obra ($) | DN14: Bienes ($) | DP14: Servicios ($) | DR14: Capacitación ($) | DT14: Transferencia de Tecnologia | DU14: Infraestructura (Social) | DV14: Mano de Obra ($) | DX14: Bienes ($) | DZ14: Servicios ($) | EB14: Capacitación ($) | ED14: Transferencia de Tecnologia | EE14: Infraestructura (Social) | EF14: Mano de Obra ($) | EH14: Bienes ($) | EJ14: Servicios ($) | EL14: Capacitación ($) | EN14: Transferencia de Tecnologia | EO14: Infraestructura (Social) | EP14: Mano de Obra ($) | ER14: Bienes ($) | ET14: Servicios ($) | EV14: Capacitación ($) | EX14: Transferencia de Tecnologia | EY14: Infraestructura (Social) | EZ14: Mano de Obra ($) | FB14: Bienes ($) | FD14: Servicios ($) | FF14: Capacitación ($) | FH14: Transferencia de Tecnologia | FI14: Infraestructura (Social) | FJ14: Mano de Obra ($) | FL14: Bienes ($) | FN14: Servicios ($) | FP14: Capacitación ($) | FR14: Transferencia de Tecnologia | FS14: Infraestructura (Social) | FT14: Mano de Obra ($) | FV14: Bienes ($) | FX14: Servicios ($) | FZ14: Capacitación ($) | GB14: Transferencia de Tecnologia | GC14: Infraestructura (Social) | GD14: Mano de Obra ($) | GF14: Bienes ($) | GH14: Servicios ($) | GJ14: Capacitación ($) | GL14: Transferencia de Tecnologia | GM14: Infraestructura (Social) | GN14: Mano de Obra ($) | GP14: Bienes ($) | GR14: Servicios ($) | GT14: Capacitación ($) | GV14: Transferencia de Tecnologia | GW14: Infraestructura (Social) | GX14: Mano de Obra ($) | GZ14: Bienes ($) | HB14: Servicios ($) | HD14: Capacitación ($) | HF14: Transferencia de Tecnologia | HG14: Infraestructura (Social) | HH14: Mano de Obra ($) | HJ14: Bienes ($) | HL14: Servicios ($) | HN14: Capacitación ($) | HP14: Transferencia de Tecnologia | HQ14: Infraestructura (Social) | HR14: Mano de Obra ($) | HT14: Bienes ($) | HV14: Servicios ($) | HX14: Capacitación ($) | HZ14: Transferencia de Tecnologia | IA14: Infraestructura (Social) | IB14: Mano de Obra ($) | ID14: Bienes ($) | IF14: Servicios ($) | IH14: Capacitación ($) | IJ14: Transferencia de Tecnologia | IK14: Infraestructura (Social) | IL14: Mano de Obra ($) | IN14: Bienes ($) | IP14: Servicios ($) | IR14: Capacitación ($) | IT14: Transferencia de Tecnologia | IU14: Infraestructura (Social) | IV14: Mano de Obra ($) | IX14: Bienes ($) | IZ14: Servicios ($) | JB14: Capacitación ($) | JD14: Transferencia de Tecnologia | JE14: Infraestructura (Social) | JF14: Mano de Obra ($) | JH14: Bienes ($) | JJ14: Servicios ($) | JL14: Capacitación ($) | JN14: Transferencia de Tecnologia | JO14: Infraestructura (Social) | JP14: Mano de Obra ($) | JR14: Bienes ($) | JT14: Servicios ($) | JV14: Capacitación ($) | JX14: Transferencia de Tecnologia | JY14: Infraestructura (Social) | JZ14: Mano de Obra ($) | KB14: Bienes ($) | KD14: Servicios ($) | KF14: Capacitación ($) | KH14: Transferencia de Tecnologia | KI14: Infraestructura (Social) | KJ14: Mano de Obra ($) | KL14: Bienes ($) | KN14: Servicios ($) | KP14: Capacitación ($) | KR14: Transferencia de Tecnologia | KS14: Infraestructura (Social) | KT14: Mano de Obra ($) | KV14: Bienes ($) | KX14: Servicios ($) | KZ14: Capacitación ($) | LB14: Transferencia de Tecnologia | LC14: Infraestructura (Social) | LD14: Mano de Obra ($) | LF14: Bienes ($) | LH14: Servicios ($) | LJ14: Capacitación ($) | LL14: Transferencia de Tecnologia | LM14: Infraestructura (Social) | LN14: Mano de Obra ($) | LP14: Bienes ($) | LR14: Servicios ($) | LT14: Capacitación ($) | LV14: Transferencia de Tecnologia | LW14: Infraestructura (Social) | LX14: Mano de Obra ($) | LZ14: Bienes ($) | MB14: Servicios ($) | MD14: Capacitación ($) | MF14: Transferencia de Tecnologia | MG14: Infraestructura (Social) | MH14: Mano de Obra ($) | MJ14: Bienes ($) | ML14: Servicios ($) | MN14: Capacitación ($) | MP14: Transferencia de Tecnologia | MQ14: Infraestructura (Social) | MR14: Mano de Obra ($) | MT14: Bienes ($) | MV14: Servicios ($) | MX14: Capacitación ($) | MZ14: Transferencia de Tecnologia | NA14: Infraestructura (Social) | NB14: Mano de Obra ($) | ND14: Bienes ($) | NF14: Servicios ($) | NH14: Capacitación ($) | NJ14: Transferencia de Tecnologia | NK14: Infraestructura (Social) | NL14: Mano de Obra ($) | NN14: Bienes ($) | NP14: Servicios ($) | NR14: Capacitación ($) | NT14: Transferencia de Tecnologia | NU14: Infraestructura (Social) | NV14: Mano de Obra ($) | NX14: Bienes ($) | NZ14: Servicios ($) | OB14: Capacitación ($) | OD14: Transferencia de Tecnologia | OE14: Infraestructura (Social) | OF14: Mano de Obra ($) | OH14: Bienes ($) | OJ14: Servicios ($) | OL14: Capacitación ($) | ON14: Transferencia de Tecnologia | OO14: Infraestructura (Social) | OP14: Mano de Obra ($) | OR14: Bienes ($) | OT14: Servicios ($) | OV14: Capacitación ($) | OX14: Transferencia de Tecnologia | OY14: Infraestructura (Social) | OZ14: Mano de Obra ($) | PB14: Bienes ($) | PD14: Servicios ($) | PF14: Capacitación ($) | PH14: Transferencia de Tecnologia | PI14: Infraestructura (Social) | PJ14: Mano de Obra ($) | PL14: Bienes ($) | PN14: Servicios ($) | PP14: Capacitación ($) | PR14: Transferencia de Tecnologia | PS14: Infraestructura (Social) | PT14: Mano de Obra ($) | PV14: Bienes ($) | PX14: Servicios ($) | PZ14: Capacitación ($) | QB14: Transferencia de Tecnologia | QC14: Infraestructura (Social) | QD14: Mano de Obra ($) | QF14: Bienes ($) | QH14: Servicios ($) | QJ14: Capacitación ($) | QL14: Transferencia de Tecnologia | QM14: Infraestructura (Social) | QN14: Mano de Obra ($) | QP14: Bienes ($) | QR14: Servicios ($) | QT14: Capacitación ($) | QV14: Transferencia de Tecnologia | QW14: Infraestructura (Social) | QX14: Mano de Obra ($) | QZ14: Bienes ($) | RB14: Servicios ($) | RD14: Capacitación ($) | RF14: Transferencia de Tecnologia | RG14: Infraestructura (Social) | RH14: Mano de Obra ($) | RJ14: Bienes ($) | RL14: Servicios ($) | RN14: Capacitación ($) | RP14: Transferencia de Tecnologia | RQ14: Infraestructura (Social) | RR14: Mano de Obra ($) | RT14: Bienes ($) | RV14: Servicios ($) | RX14: Capacitación ($) | RZ14: Transferencia de Tecnologia | SA14: Infraestructura (Social) | SB14: Mano de Obra ($) | SD14: Bienes ($) | SF14: Servicios ($) | SH14: Capacitación ($) | SJ14: Transferencia de Tecnologia | SK14: Infraestructura (Social) | SL14: Mano de Obra ($) | SN14: Bienes ($) | SP14: Servicios ($) | SR14: Capacitación ($) | ST14: Transferencia de Tecnologia | SU14: Infraestructura (Social) | SV14: Mano de Obra ($) | SX14: Bienes ($) | SZ14: Servicios ($) | TB14: Capacitación ($) | TD14: Transferencia de Tecnologia | TE14: Infraestructura (Social) | TF14: Mano de Obra ($) | TH14: Bienes ($) | TJ14: Servicios ($) | TL14: Capacitación ($) | TN14: Transferencia de Tecnologia | TO14: Infraestructura (Social) | TP14: Mano de Obra ($) | TR14: Bienes ($) | TT14: Servicios ($) | TV14: Capacitación ($) | TX14: Transferencia de Tecnologia | TY14: Infraestructura (Social) | TZ14: Mano de Obra ($) | UB14: Bienes ($) | UD14: Servicios ($) | UF14: Capacitación ($) | UH14: Transferencia de Tecnologia | UI14: Infraestructura (Social) | UJ14: Mano de Obra ($) | UL14: Bienes ($) | UN14: Servicios ($) | UP14: Capacitación ($) | UR14: Transferencia de Tecnologia | US14: Infraestructura (Social) | UT14: Mano de Obra ($) | UV14: Bienes ($) | UX14: Servicios ($) | UZ14: Capacitación ($) | VB14: Transferencia de Tecnologia | VC14: Infraestructura (Social) | VD14: Mano de Obra ($) | VF14: Bienes ($) | VH14: Servicios ($) | VJ14: Capacitación ($) | VL14: Transferencia de Tecnologia | VM14: Infraestructura (Social) | VN14: Mano de Obra ($) | VP14: Bienes ($) | VR14: Servicios ($) | VT14: Capacitación ($) | VV14: Transferencia de Tecnologia | VW14: Infraestructura (Social) | VX14: Mano de Obra ($) | VZ14: Bienes ($) | WB14: Servicios ($) | WD14: Capacitación ($) | WF14: Transferencia de Tecnologia | WG14: Infraestructura (Social) | WH14: Mano de Obra ($) | WJ14: Bienes ($) | WL14: Servicios ($) | WN14: Capacitación ($) | WP14: Transferencia de Tecnologia | WQ14: Infraestructura (Social) | WS14: Gastos de operación o inversión | WT14: elegibles
A15: =+IF(G15="N/A",0,IF(AND(SUM(OFFSET(P15,0,0,1,'Escenario 1 a la base'!$AE$1))>0,(I15="")),1,0)) -> 0 | P15: Contenido Nacional | Q15: Extranjero | R15: Contenido Nacional | S15: Extranjero | T15: Contenido Nacional | U15: Extranjero | V15: Contenido Nacional | W15: Extranjero | X15: $ | Y15: $ | Z15: Contenido Nacional | AA15: Extranjero | AB15: Contenido Nacional | AC15: Extranjero | AD15: Contenido Nacional | AE15: Extranjero | AF15: Contenido Nacional | AG15: Extranjero | AH15: $ | AI15: $ | AJ15: Contenido Nacional | AK15: Extranjero | AL15: Contenido Nacional | AM15: Extranjero | AN15: Contenido Nacional | AO15: Extranjero | AP15: Contenido Nacional | AQ15: Extranjero | AR15: $ | AS15: $ | AT15: Contenido Nacional | AU15: Extranjero | AV15: Contenido Nacional | AW15: Extranjero | AX15: Contenido Nacional | AY15: Extranjero | AZ15: Contenido Nacional | BA15: Extranjero | BB15: $ | BC15: $ | BD15: Contenido Nacional | BE15: Extranjero | BF15: Contenido Nacional | BG15: Extranjero | BH15: Contenido Nacional | BI15: Extranjero | BJ15: Contenido Nacional | BK15: Extranjero | BL15: $ | BM15: $ | BN15: Contenido Nacional | BO15: Extranjero | BP15: Contenido Nacional | BQ15: Extranjero | BR15: Contenido Nacional | BS15: Extranjero | BT15: Contenido Nacional | BU15: Extranjero | BV15: $ | BW15: $ | BX15: Contenido Nacional | BY15: Extranjero | BZ15: Contenido Nacional | CA15: Extranjero | CB15: Contenido Nacional | CC15: Extranjero | CD15: Contenido Nacional | CE15: Extranjero | CF15: $ | CG15: $ | CH15: Contenido Nacional | CI15: Extranjero | CJ15: Contenido Nacional | CK15: Extranjero | CL15: Contenido Nacional | CM15: Extranjero | CN15: Contenido Nacional | CO15: Extranjero | CP15: $ | CQ15: $ | CR15: Contenido Nacional | CS15: Extranjero | CT15: Contenido Nacional | CU15: Extranjero | CV15: Contenido Nacional | CW15: Extranjero | CX15: Contenido Nacional | CY15: Extranjero | CZ15: $ | DA15: $ | DB15: Contenido Nacional | DC15: Extranjero | DD15: Contenido Nacional | DE15: Extranjero | DF15: Contenido Nacional | DG15: Extranjero | DH15: Contenido Nacional | DI15: Extranjero | DJ15: $ | DK15: $ | DL15: Contenido Nacional | DM15: Extranjero | DN15: Contenido Nacional | DO15: Extranjero | DP15: Contenido Nacional | DQ15: Extranjero | DR15: Contenido Nacional | DS15: Extranjero | DT15: $ | DU15: $ | DV15: Contenido Nacional | DW15: Extranjero | DX15: Contenido Nacional | DY15: Extranjero | DZ15: Contenido Nacional | EA15: Extranjero | EB15: Contenido Nacional | EC15: Extranjero | ED15: $ | EE15: $ | EF15: Contenido Nacional | EG15: Extranjero | EH15: Contenido Nacional | EI15: Extranjero | EJ15: Contenido Nacional | EK15: Extranjero | EL15: Contenido Nacional | EM15: Extranjero | EN15: $ | EO15: $ | EP15: Contenido Nacional | EQ15: Extranjero | ER15: Contenido Nacional | ES15: Extranjero | ET15: Contenido Nacional | EU15: Extranjero | EV15: Contenido Nacional | EW15: Extranjero | EX15: $ | EY15: $ | EZ15: Contenido Nacional | FA15: Extranjero | FB15: Contenido Nacional | FC15: Extranjero | FD15: Contenido Nacional | FE15: Extranjero | FF15: Contenido Nacional | FG15: Extranjero | FH15: $ | FI15: $ | FJ15: Contenido Nacional | FK15: Extranjero | FL15: Contenido Nacional | FM15: Extranjero | FN15: Contenido Nacional | FO15: Extranjero | FP15: Contenido Nacional | FQ15: Extranjero | FR15: $ | FS15: $ | FT15: Contenido Nacional | FU15: Extranjero | FV15: Contenido Nacional | FW15: Extranjero | FX15: Contenido Nacional | FY15: Extranjero | FZ15: Contenido Nacional | GA15: Extranjero | GB15: $ | GC15: $ | GD15: Contenido Nacional | GE15: Extranjero | GF15: Contenido Nacional | GG15: Extranjero | GH15: Contenido Nacional | GI15: Extranjero | GJ15: Contenido Nacional | GK15: Extranjero | GL15: $ | GM15: $ | GN15: Contenido Nacional | GO15: Extranjero | GP15: Contenido Nacional | GQ15: Extranjero | GR15: Contenido Nacional | GS15: Extranjero | GT15: Contenido Nacional | GU15: Extranjero | GV15: $ | GW15: $ | GX15: Contenido Nacional | GY15: Extranjero | GZ15: Contenido Nacional | HA15: Extranjero | HB15: Contenido Nacional | HC15: Extranjero | HD15: Contenido Nacional | HE15: Extranjero | HF15: $ | HG15: $ | HH15: Contenido Nacional | HI15: Extranjero | HJ15: Contenido Nacional | HK15: Extranjero | HL15: Contenido Nacional | HM15: Extranjero | HN15: Contenido Nacional | HO15: Extranjero | HP15: $ | HQ15: $ | HR15: Contenido Nacional | HS15: Extranjero | HT15: Contenido Nacional | HU15: Extranjero | HV15: Contenido Nacional | HW15: Extranjero | HX15: Contenido Nacional | HY15: Extranjero | HZ15: $ | IA15: $ | IB15: Contenido Nacional | IC15: Extranjero | ID15: Contenido Nacional | IE15: Extranjero | IF15: Contenido Nacional | IG15: Extranjero | IH15: Contenido Nacional | II15: Extranjero | IJ15: $ | IK15: $ | IL15: Contenido Nacional | IM15: Extranjero | IN15: Contenido Nacional | IO15: Extranjero | IP15: Contenido Nacional | IQ15: Extranjero | IR15: Contenido Nacional | IS15: Extranjero | IT15: $ | IU15: $ | IV15: Contenido Nacional | IW15: Extranjero | IX15: Contenido Nacional | IY15: Extranjero | IZ15: Contenido Nacional | JA15: Extranjero | JB15: Contenido Nacional | JC15: Extranjero | JD15: $ | JE15: $ | JF15: Contenido Nacional | JG15: Extranjero | JH15: Contenido Nacional | JI15: Extranjero | JJ15: Contenido Nacional | JK15: Extranjero | JL15: Contenido Nacional | JM15: Extranjero | JN15: $ | JO15: $ | JP15: Contenido Nacional | JQ15: Extranjero | JR15: Contenido Nacional | JS15: Extranjero | JT15: Contenido Nacional | JU15: Extranjero | JV15: Contenido Nacional | JW15: Extranjero | JX15: $ | JY15: $ | JZ15: Contenido Nacional | KA15: Extranjero | KB15: Contenido Nacional | KC15: Extranjero | KD15: Contenido Nacional | KE15: Extranjero | KF15: Contenido Nacional | KG15: Extranjero | KH15: $ | KI15: $ | KJ15: Contenido Nacional | KK15: Extranjero | KL15: Contenido Nacional | KM15: Extranjero | KN15: Contenido Nacional | KO15: Extranjero | KP15: Contenido Nacional | KQ15: Extranjero | KR15: $ | KS15: $ | KT15: Contenido Nacional | KU15: Extranjero | KV15: Contenido Nacional | KW15: Extranjero | KX15: Contenido Nacional | KY15: Extranjero | KZ15: Contenido Nacional | LA15: Extranjero | LB15: $ | LC15: $ | LD15: Contenido Nacional | LE15: Extranjero | LF15: Contenido Nacional | LG15: Extranjero | LH15: Contenido Nacional | LI15: Extranjero | LJ15: Contenido Nacional | LK15: Extranjero | LL15: $ | LM15: $ | LN15: Contenido Nacional | LO15: Extranjero | LP15: Contenido Nacional | LQ15: Extranjero | LR15: Contenido Nacional | LS15: Extranjero | LT15: Contenido Nacional | LU15: Extranjero | LV15: $ | LW15: $ | LX15: Contenido Nacional | LY15: Extranjero | LZ15: Contenido Nacional | MA15: Extranjero | MB15: Contenido Nacional | MC15: Extranjero | MD15: Contenido Nacional | ME15: Extranjero | MF15: $ | MG15: $ | MH15: Contenido Nacional | MI15: Extranjero | MJ15: Contenido Nacional | MK15: Extranjero | ML15: Contenido Nacional | MM15: Extranjero | MN15: Contenido Nacional | MO15: Extranjero | MP15: $ | MQ15: $ | MR15: Contenido Nacional | MS15: Extranjero | MT15: Contenido Nacional | MU15: Extranjero | MV15: Contenido Nacional | MW15: Extranjero | MX15: Contenido Nacional | MY15: Extranjero | MZ15: $ | NA15: $ | NB15: Contenido Nacional | NC15: Extranjero | ND15: Contenido Nacional | NE15: Extranjero | NF15: Contenido Nacional | NG15: Extranjero | NH15: Contenido Nacional | NI15: Extranjero | NJ15: $ | NK15: $ | NL15: Contenido Nacional | NM15: Extranjero | NN15: Contenido Nacional | NO15: Extranjero | NP15: Contenido Nacional | NQ15: Extranjero | NR15: Contenido Nacional | NS15: Extranjero | NT15: $ | NU15: $ | NV15: Contenido Nacional | NW15: Extranjero | NX15: Contenido Nacional | NY15: Extranjero | NZ15: Contenido Nacional | OA15: Extranjero | OB15: Contenido Nacional | OC15: Extranjero | OD15: $ | OE15: $ | OF15: Contenido Nacional | OG15: Extranjero | OH15: Contenido Nacional | OI15: Extranjero | OJ15: Contenido Nacional | OK15: Extranjero | OL15: Contenido Nacional | OM15: Extranjero | ON15: $ | OO15: $ | OP15: Contenido Nacional | OQ15: Extranjero | OR15: Contenido Nacional | OS15: Extranjero | OT15: Contenido Nacional | OU15: Extranjero | OV15: Contenido Nacional | OW15: Extranjero | OX15: $ | OY15: $ | OZ15: Contenido Nacional | PA15: Extranjero | PB15: Contenido Nacional | PC15: Extranjero | PD15: Contenido Nacional | PE15: Extranjero | PF15: Contenido Nacional | PG15: Extranjero | PH15: $ | PI15: $ | PJ15: Contenido Nacional | PK15: Extranjero | PL15: Contenido Nacional | PM15: Extranjero | PN15: Contenido Nacional | PO15: Extranjero | PP15: Contenido Nacional | PQ15: Extranjero | PR15: $ | PS15: $ | PT15: Contenido Nacional | PU15: Extranjero | PV15: Contenido Nacional | PW15: Extranjero | PX15: Contenido Nacional | PY15: Extranjero | PZ15: Contenido Nacional | QA15: Extranjero | QB15: $ | QC15: $ | QD15: Contenido Nacional | QE15: Extranjero | QF15: Contenido Nacional | QG15: Extranjero | QH15: Contenido Nacional | QI15: Extranjero | QJ15: Contenido Nacional | QK15: Extranjero | QL15: $ | QM15: $ | QN15: Contenido Nacional | QO15: Extranjero | QP15: Contenido Nacional | QQ15: Extranjero | QR15: Contenido Nacional | QS15: Extranjero | QT15: Contenido Nacional | QU15: Extranjero | QV15: $ | QW15: $ | QX15: Contenido Nacional | QY15: Extranjero | QZ15: Contenido Nacional | RA15: Extranjero | RB15: Contenido Nacional | RC15: Extranjero | RD15: Contenido Nacional | RE15: Extranjero | RF15: $ | RG15: $ | RH15: Contenido Nacional | RI15: Extranjero | RJ15: Contenido Nacional | RK15: Extranjero | RL15: Contenido Nacional | RM15: Extranjero | RN15: Contenido Nacional | RO15: Extranjero | RP15: $ | RQ15: $ | RR15: Contenido Nacional | RS15: Extranjero | RT15: Contenido Nacional | RU15: Extranjero | RV15: Contenido Nacional | RW15: Extranjero | RX15: Contenido Nacional | RY15: Extranjero | RZ15: $ | SA15: $ | SB15: Contenido Nacional | SC15: Extranjero | SD15: Contenido Nacional | SE15: Extranjero | SF15: Contenido Nacional | SG15: Extranjero | SH15: Contenido Nacional | SI15: Extranjero | SJ15: $ | SK15: $ | SL15: Contenido Nacional | SM15: Extranjero | SN15: Contenido Nacional | SO15: Extranjero | SP15: Contenido Nacional | SQ15: Extranjero | SR15: Contenido Nacional | SS15: Extranjero | ST15: $ | SU15: $ | SV15: Contenido Nacional | SW15: Extranjero | SX15: Contenido Nacional | SY15: Extranjero | SZ15: Contenido Nacional | TA15: Extranjero | TB15: Contenido Nacional | TC15: Extranjero | TD15: $ | TE15: $ | TF15: Contenido Nacional | TG15: Extranjero | TH15: Contenido Nacional | TI15: Extranjero | TJ15: Contenido Nacional | TK15: Extranjero | TL15: Contenido Nacional | TM15: Extranjero | TN15: $ | TO15: $ | TP15: Contenido Nacional | TQ15: Extranjero | TR15: Contenido Nacional | TS15: Extranjero | TT15: Contenido Nacional | TU15: Extranjero | TV15: Contenido Nacional | TW15: Extranjero | TX15: $ | TY15: $ | TZ15: Contenido Nacional | UA15: Extranjero | UB15: Contenido Nacional | UC15: Extranjero | UD15: Contenido Nacional | UE15: Extranjero | UF15: Contenido Nacional | UG15: Extranjero | UH15: $ | UI15: $ | UJ15: Contenido Nacional | UK15: Extranjero | UL15: Contenido Nacional | UM15: Extranjero | UN15: Contenido Nacional | UO15: Extranjero | UP15: Contenido Nacional | UQ15: Extranjero | UR15: $ | US15: $ | UT15: Contenido Nacional | UU15: Extranjero | UV15: Contenido Nacional | UW15: Extranjero | UX15: Contenido Nacional | UY15: Extranjero | UZ15: Contenido Nacional | VA15: Extranjero | VB15: $ | VC15: $ | VD15: Contenido Nacional | VE15: Extranjero | VF15: Contenido Nacional | VG15: Extranjero | VH15: Contenido Nacional | VI15: Extranjero | VJ15: Contenido Nacional | VK15: Extranjero | VL15: $ | VM15: $ | VN15: Contenido Nacional | VO15: Extranjero | VP15: Contenido Nacional | VQ15: Extranjero | VR15: Contenido Nacional | VS15: Extranjero | VT15: Contenido Nacional | VU15: Extranjero | VV15: $ | VW15: $ | VX15: Contenido Nacional | VY15: Extranjero | VZ15: Contenido Nacional | WA15: Extranjero | WB15: Contenido Nacional | WC15: Extranjero | WD15: Contenido Nacional | WE15: Extranjero | WF15: $ | WG15: $ | WH15: Contenido Nacional | WI15: Extranjero | WJ15: Contenido Nacional | WK15: Extranjero | WL15: Contenido Nacional | WM15: Extranjero | WN15: Contenido Nacional | WO15: Extranjero | WP15: $ | WQ15: $ | WS15: =+SUM(WS16:WS315) -> 0 | WT15: =+SUM(WT16:WT315) -> 0 | WU15: =+SUM(WU16:WU315) -> 155
A16: =+IF(G16="N/A",0,IF(AND(SUM(OFFSET(P16,0,0,1,'Escenario 1 a la base'!$AE$1))>0,(I16="")),1,0)) -> 0 | B16: AC-1 | C16: Exploración | D16: SA-01 | E16: General | F16: TA-001 | G16: Evaluaciones técnico económicas | WS16: =+IF(G16="N/A",0,IF(AND(SUM(P16:WQ16)>0,O16=""),3,0)) -> 0 | WT16: =+IF(G16="N/A",0,IF(AND(General!$C$76=1,OR(J16="",J16="N/A"),SUM(P16:WQ16)>0),1,0)) -> 0 | WU16: =+IF(G16="N/A",0,1) -> 1
A17: =+IF(G17="N/A",0,IF(AND(SUM(OFFSET(P17,0,0,1,'Escenario 1 a la base'!$AE$1))>0,(I17="")),1,0)) -> 0 | B17: AC-1 | C17: Exploración | D17: SA-01 | E17: General | F17: TA-002 | G17: Recopilación de información | WS17: =+IF(G17="N/A",0,IF(AND(SUM(P17:WQ17)>0,O17=""),3,0)) -> 0 | WT17: =+IF(G17="N/A",0,IF(AND(General!$C$76=1,OR(J17="",J17="N/A"),SUM(P17:WQ17)>0),1,0)) -> 0 | WU17: =+IF(G17="N/A",0,1) -> 1
A18: =+IF(G18="N/A",0,IF(AND(SUM(OFFSET(P18,0,0,1,'Escenario 1 a la base'!$AE$1))>0,(I18="")),1,0)) -> 0 | B18: AC-1 | C18: Exploración | D18: SA-01 | E18: General | F18: TA-003 | G18: Administración, gestión de actividades y gastos del proyecto | WS18: 0 | WT18: =+IF(G18="N/A",0,IF(AND(General!$C$76=1,OR(J18="",J18="N/A"),SUM(P18:WQ18)>0),1,0)) -> 0 | WU18: 1
I19: Capacitación
I20: Transferencia de Tecnología
I21: Infraestructra Social
A22: =+IF(G22="N/A",0,IF(AND(SUM(OFFSET(P22,0,0,1,'Escenario 1 a la base'!$AE$1))>0,(I22="")),1,0)) -> 0 | B22: AC-1 | C22: Exploración | D22: SA-01 | E22: General | F22: TA-004 | G22: Revisión y evaluación de información | WS22: 0 | WT22: =+IF(G22="N/A",0,IF(AND(General!$C$76=1,OR(J22="",J22="N/A"),SUM(P22:WQ22)>0),1,0)) -> 0 | WU22: 1
A23: =+IF(G23="N/A",0,IF(AND(SUM(OFFSET(P23,0,0,1,'Escenario 1 a la base'!$AE$1))>0,(I23="")),1,0)) -> 0 | B23: AC-1 | C23: Exploración | D23: SA-02 | E23: Geofísica | F23: TA-005 | G23: Adquisición sísmica, 2D, 3D, 4D, multicomponente | WS23: 0 | WT23: =+IF(G23="N/A",0,IF(AND(General!$C$76=1,OR(J23="",J23="N/A"),SUM(P23:WQ23)>0),1,0)) -> 0 | WU23: 1
A24: =+IF(G24="N/A",0,IF(AND(SUM(OFFSET(P24,0,0,1,'Escenario 1 a la base'!$AE$1))>0,(I24="")),1,0)) -> 0 | B24: AC-1 | C24: Exploración | D24: SA-02 | E24: Geofísica | F24: TA-006 | G24: Pre-procesado, procesado, interpretación y re-procesado de datos sísmicos | WS24: 0 | WT24: =+IF(G24="N/A",0,IF(AND(General!$C$76=1,OR(J24="",J24="N/A"),SUM(P24:WQ24)>0),1,0)) -> 0 | WU24: 1
A25: =+IF(G25="N/A",0,IF(AND(SUM(OFFSET(P25,0,0,1,'Escenario 1 a la base'!$AE$1))>0,(I25="")),1,0)) -> 0 | B25: AC-1 | C25: Exploración | D25: SA-02 | E25: Geofísica | F25: TA-007 | G25: Levantamientos magnetométricos, adquisición, procesado e interpretación | WS25: 0 | WT25: =+IF(G25="N/A",0,IF(AND(General!$C$76=1,OR(J25="",J25="N/A"),SUM(P25:WQ25)>0),1,0)) -> 0 | WU25: 1
A26: =+IF(G26="N/A",0,IF(AND(SUM(OFFSET(P26,0,0,1,'Escenario 1 a la base'!$AE$1))>0,(I26="")),1,0)) -> 0 | B26: AC-1 | C26: Exploración | D26: SA-02 | E26: Geofísica | F26: TA-008 | G26: Levantamientos gravimétricos, adquisición, procesado e interpretación | WS26: 0 | WT26: =+IF(G26="N/A",0,IF(AND(General!$C$76=1,OR(J26="",J26="N/A"),SUM(P26:WQ26)>0),1,0)) -> 0 | WU26: 1
A27: =+IF(G27="N/A",0,IF(AND(SUM(OFFSET(P27,0,0,1,'Escenario 1 a la base'!$AE$1))>0,(I27="")),1,0)) -> 0 | B27: AC-1 | C27: Exploración | D27: SA-03 | E27: Geología | F27: TA-009 | G27: Análisis geoquímicos de muestras | WS27: 0 | WT27: =+IF(G27="N/A",0,IF(AND(General!$C$76=1,OR(J27="",J27="N/A"),SUM(P27:WQ27)>0),1,0)) -> 0 | WU27: 1
A28: =+IF(G28="N/A",0,IF(AND(SUM(OFFSET(P28,0,0,1,'Escenario 1 a la base'!$AE$1))>0,(I28="")),1,0)) -> 0 | B28: AC-1 | C28: Exploración | D28: SA-03 | E28: Geología | F28: TA-010 | G28: Estudios estratigráficos | WS28: 0 | WT28: =+IF(G28="N/A",0,IF(AND(General!$C$76=1,OR(J28="",J28="N/A"),SUM(P28:WQ28)>0),1,0)) -> 0 | WU28: 1
A29: =+IF(G29="N/A",0,IF(AND(SUM(OFFSET(P29,0,0,1,'Escenario 1 a la base'!$AE$1))>0,(I29="")),1,0)) -> 0 | B29: AC-1 | C29: Exploración | D29: SA-03 | E29: Geología | F29: TA-011 | G29: Análisis de Hidrocarburos | WS29: 0 | WT29: =+IF(G29="N/A",0,IF(AND(General!$C$76=1,OR(J29="",J29="N/A"),SUM(P29:WQ29)>0),1,0)) -> 0 | WU29: 1
A30: =+IF(G30="N/A",0,IF(AND(SUM(OFFSET(P30,0,0,1,'Escenario 1 a la base'!$AE$1))>0,(I30="")),1,0)) -> 0 | B30: AC-1 | C30: Exploración | D30: SA-03 | E30: Geología | F30: TA-012 | G30: Estudios geológicos regionales | WS30: 0 | WT30: =+IF(G30="N/A",0,IF(AND(General!$C$76=1,OR(J30="",J30="N/A"),SUM(P30:WQ30)>0),1,0)) -> 0 | WU30: 1
A31: =+IF(G31="N/A",0,IF(AND(SUM(OFFSET(P31,0,0,1,'Escenario 1 a la base'!$AE$1))>0,(I31="")),1,0)) -> 0 | B31: AC-1 | C31: Exploración | D31: SA-03 | E31: Geología | F31: TA-013 | G31: Estudios geológicos de detalle | WS31: 0 | WT31: =+IF(G31="N/A",0,IF(AND(General!$C$76=1,OR(J31="",J31="N/A"),SUM(P31:WQ31)>0),1,0)) -> 0 | WU31: 1
A32: =+IF(G32="N/A",0,IF(AND(SUM(OFFSET(P32,0,0,1,'Escenario 1 a la base'!$AE$1))>0,(I32="")),1,0)) -> 0 | B32: AC-1 | C32: Exploración | D32: SA-03 | E32: Geología | F32: TA-014 | G32: Estudios petrofísicos | WS32: 0 | WT32: =+IF(G32="N/A",0,IF(AND(General!$C$76=1,OR(J32="",J32="N/A"),SUM(P32:WQ32)>0),1,0)) -> 0 | WU32: 1
A33: =+IF(G33="N/A",0,IF(AND(SUM(OFFSET(P33,0,0,1,'Escenario 1 a la base'!$AE$1))>0,(I33="")),1,0)) -> 0 | B33: AC-1 | C33: Exploración | D33: SA-04 | E33: Perforación de Pozos | F33: TA-015 | G33: Preparación de áreas y/o vías de acceso a la localización | WS33: 0 | WT33: =+IF(G33="N/A",0,IF(AND(General!$C$76=1,OR(J33="",J33="N/A"),SUM(P33:WQ33)>0),1,0)) -> 0 | WU33: 1
A34: =+IF(G34="N/A",0,IF(AND(SUM(OFFSET(P34,0,0,1,'Escenario 1 a la base'!$AE$1))>0,(I34="")),1,0)) -> 0 | B34: AC-1 | C34: Exploración | D34: SA-04 | E34: Perforación de Pozos | F34: TA-016 | G34: Transporte marítimo y/o aéreo de personal, Materiales y/o equipos | WS34: 0 | WT34: =+IF(G34="N/A",0,IF(AND(General!$C$76=1,OR(J34="",J34="N/A"),SUM(P34:WQ34)>0),1,0)) -> 0 | WU34: 1
A35: =+IF(G35="N/A",0,IF(AND(SUM(OFFSET(P35,0,0,1,'Escenario 1 a la base'!$AE$1))>0,(I35="")),1,0)) -> 0 | B35: AC-1 | C35: Exploración | D35: SA-04 | E35: Perforación de Pozos | F35: TA-017 | G35: Servicios de soporte | WS35: 0 | WT35: =+IF(G35="N/A",0,IF(AND(General!$C$76=1,OR(J35="",J35="N/A"),SUM(P35:WQ35)>0),1,0)) -> 0 | WU35: 1
A36: =+IF(G36="N/A",0,IF(AND(SUM(OFFSET(P36,0,0,1,'Escenario 1 a la base'!$AE$1))>0,(I36="")),1,0)) -> 0 | B36: AC-1 | C36: Exploración | D36: SA-04 | E36: Perforación de Pozos | F36: TA-018 | G36: Servicios de perforación de Pozos | WS36: 0 | WT36: =+IF(G36="N/A",0,IF(AND(General!$C$76=1,OR(J36="",J36="N/A"),SUM(P36:WQ36)>0),1,0)) -> 0 | WU36: 1
A37: =+IF(G37="N/A",0,IF(AND(SUM(OFFSET(P37,0,0,1,'Escenario 1 a la base'!$AE$1))>0,(I37="")),1,0)) -> 0 | B37: AC-1 | C37: Exploración | D37: SA-04 | E37: Perforación de Pozos | F37: TA-019 | G37: Realización de pruebas de formación | WS37: 0 | WT37: =+IF(G37="N/A",0,IF(AND(General!$C$76=1,OR(J37="",J37="N/A"),SUM(P37:WQ37)>0),1,0)) -> 0 | WU37: 1
A38: =+IF(G38="N/A",0,IF(AND(SUM(OFFSET(P38,0,0,1,'Escenario 1 a la base'!$AE$1))>0,(I38="")),1,0)) -> 0 | B38: AC-1 | C38: Exploración | D38: SA-04 | E38: Perforación de Pozos | F38: TA-020 | G38: Suministros y Materiales | WS38: 0 | WT38: =+IF(G38="N/A",0,IF(AND(General!$C$76=1,OR(J38="",J38="N/A"),SUM(P38:WQ38)>0),1,0)) -> 0 | WU38: 1
A39: =+IF(G39="N/A",0,IF(AND(SUM(OFFSET(P39,0,0,1,'Escenario 1 a la base'!$AE$1))>0,(I39="")),1,0)) -> 0 | B39: AC-1 | C39: Exploración | D39: SA-04 | E39: Perforación de Pozos | F39: TA-021 | G39: Terminación de Pozos | WS39: 0 | WT39: =+IF(G39="N/A",0,IF(AND(General!$C$76=1,OR(J39="",J39="N/A"),SUM(P39:WQ39)>0),1,0)) -> 0 | WU39: 1
A40: =+IF(G40="N/A",0,IF(AND(SUM(OFFSET(P40,0,0,1,'Escenario 1 a la base'!$AE$1))>0,(I40="")),1,0)) -> 0 | B40: AC-1 | C40: Exploración | D40: SA-05 | E40: Ingeniería de Yacimientos | F40: TA-022 | G40: Estimación de recursos prospectivos y estimaciones de producción | WS40: 0 | WT40: =+IF(G40="N/A",0,IF(AND(General!$C$76=1,OR(J40="",J40="N/A"),SUM(P40:WQ40)>0),1,0)) -> 0 | WU40: 1
A41: =+IF(G41="N/A",0,IF(AND(SUM(OFFSET(P41,0,0,1,'Escenario 1 a la base'!$AE$1))>0,(I41="")),1,0)) -> 0 | B41: AC-1 | C41: Exploración | D41: SA-05 | E41: Ingeniería de Yacimientos | F41: TA-023 | G41: Delimitación de Yacimientos | WS41: 0 | WT41: =+IF(G41="N/A",0,IF(AND(General!$C$76=1,OR(J41="",J41="N/A"),SUM(P41:WQ41)>0),1,0)) -> 0 | WU41: 1
A42: =+IF(G42="N/A",0,IF(AND(SUM(OFFSET(P42,0,0,1,'Escenario 1 a la base'!$AE$1))>0,(I42="")),1,0)) -> 0 | B42: AC-1 | C42: Exploración | D42: SA-05 | E42: Ingeniería de Yacimientos | F42: TA-024 | G42: Caracterización de Yacimientos | WS42: 0 | WT42: =+IF(G42="N/A",0,IF(AND(General!$C$76=1,OR(J42="",J42="N/A"),SUM(P42:WQ42)>0),1,0)) -> 0 | WU42: 1
A43: =+IF(G43="N/A",0,IF(AND(SUM(OFFSET(P43,0,0,1,'Escenario 1 a la base'!$AE$1))>0,(I43="")),1,0)) -> 0 | B43: AC-1 | C43: Exploración | D43: SA-06 | E43: Otras Ingenierías | F43: TA-025 | G43: Ingeniería conceptual | WS43: 0 | WT43: =+IF(G43="N/A",0,IF(AND(General!$C$76=1,OR(J43="",J43="N/A"),SUM(P43:WQ43)>0),1,0)) -> 0 | WU43: 1
A44: =+IF(G44="N/A",0,IF(AND(SUM(OFFSET(P44,0,0,1,'Escenario 1 a la base'!$AE$1))>0,(I44="")),1,0)) -> 0 | B44: AC-1 | C44: Exploración | D44: SA-06 | E44: Otras Ingenierías | F44: TA-026 | G44: Diseño de instalaciones de superficie | WS44: 0 | WT44: =+IF(G44="N/A",0,IF(AND(General!$C$76=1,OR(J44="",J44="N/A"),SUM(P44:WQ44)>0),1,0)) -> 0 | WU44: 1
A45: =+IF(G45="N/A",0,IF(AND(SUM(OFFSET(P45,0,0,1,'Escenario 1 a la base'!$AE$1))>0,(I45="")),1,0)) -> 0 | B45: AC-1 | C45: Exploración | D45: SA-06 | E45: Otras Ingenierías | F45: TA-027 | G45: Estudios del fondo marino | WS45: 0 | WT45: =+IF(G45="N/A",0,IF(AND(General!$C$76=1,OR(J45="",J45="N/A"),SUM(P45:WQ45)>0),1,0)) -> 0 | WU45: 1
A46: =+IF(G46="N/A",0,IF(AND(SUM(OFFSET(P46,0,0,1,'Escenario 1 a la base'!$AE$1))>0,(I46="")),1,0)) -> 0 | B46: AC-1 | C46: Exploración | D46: SA-06 | E46: Otras Ingenierías | F46: TA-028 | G46: Diseño de ductos | WS46: 0 | WT46: =+IF(G46="N/A",0,IF(AND(General!$C$76=1,OR(J46="",J46="N/A"),SUM(P46:WQ46)>0),1,0)) -> 0 | WU46: 1
A47: =+IF(G47="N/A",0,IF(AND(SUM(OFFSET(P47,0,0,1,'Escenario 1 a la base'!$AE$1))>0,(I47="")),1,0)) -> 0 | B47: AC-1 | C47: Exploración | D47: SA-07 | E47: Seguridad, Salud y Medio Ambiente | F47: TA-029 | G47: Estudios de impacto ambiental | WS47: 0 | WT47: =+IF(G47="N/A",0,IF(AND(General!$C$76=1,OR(J47="",J47="N/A"),SUM(P47:WQ47)>0),1,0)) -> 0 | WU47: 1
A48: =+IF(G48="N/A",0,IF(AND(SUM(OFFSET(P48,0,0,1,'Escenario 1 a la base'!$AE$1))>0,(I48="")),1,0)) -> 0 | B48: AC-1 | C48: Exploración | D48: SA-07 | E48: Seguridad, Salud y Medio Ambiente | F48: TA-030 | G48: Prevención y detección de incendio y fugas de gas | WS48: 0 | WT48: =+IF(G48="N/A",0,IF(AND(General!$C$76=1,OR(J48="",J48="N/A"),SUM(P48:WQ48)>0),1,0)) -> 0 | WU48: 1
A49: =+IF(G49="N/A",0,IF(AND(SUM(OFFSET(P49,0,0,1,'Escenario 1 a la base'!$AE$1))>0,(I49="")),1,0)) -> 0 | B49: AC-1 | C49: Exploración | D49: SA-07 | E49: Seguridad, Salud y Medio Ambiente | F49: TA-031 | G49: Auditorías de seguridad | WS49: 0 | WT49: =+IF(G49="N/A",0,IF(AND(General!$C$76=1,OR(J49="",J49="N/A"),SUM(P49:WQ49)>0),1,0)) -> 0 | WU49: 1
A50: =+IF(G50="N/A",0,IF(AND(SUM(OFFSET(P50,0,0,1,'Escenario 1 a la base'!$AE$1))>0,(I50="")),1,0)) -> 0 | B50: AC-1 | C50: Exploración | D50: SA-07 | E50: Seguridad, Salud y Medio Ambiente | F50: TA-032 | G50: Tratamiento y eliminación de residuos | WS50: 0 | WT50: =+IF(G50="N/A",0,IF(AND(General!$C$76=1,OR(J50="",J50="N/A"),SUM(P50:WQ50)>0),1,0)) -> 0 | WU50: 1
A51: =+IF(G51="N/A",0,IF(AND(SUM(OFFSET(P51,0,0,1,'Escenario 1 a la base'!$AE$1))>0,(I51="")),1,0)) -> 0 | B51: AC-1 | C51: Exploración | D51: SA-07 | E51: Seguridad, Salud y Medio Ambiente | F51: TA-033 | G51: Restauración ambiental | WS51: 0 | WT51: =+IF(G51="N/A",0,IF(AND(General!$C$76=1,OR(J51="",J51="N/A"),SUM(P51:WQ51)>0),1,0)) -> 0 | WU51: 1
A52: =+IF(G52="N/A",0,IF(AND(SUM(OFFSET(P52,0,0,1,'Escenario 1 a la base'!$AE$1))>0,(I52="")),1,0)) -> 0 | B52: AC-1 | C52: Exploración | D52: SA-07 | E52: Seguridad, Salud y Medio Ambiente | F52: TA-034 | G52: Auditoría ambiental | WS52: 0 | WT52: =+IF(G52="N/A",0,IF(AND(General!$C$76=1,OR(J52="",J52="N/A"),SUM(P52:WQ52)>0),1,0)) -> 0 | WU52: 1
A53: =+IF(G53="N/A",0,IF(AND(SUM(OFFSET(P53,0,0,1,'Escenario 1 a la base'!$AE$1))>0,(I53="")),1,0)) -> 0 | B53: AC-2 | C53: Evaluación | D53: SA-08 | E53: General | F53: TA-035 | G53: Evaluaciones técnico económicas | WS53: 0 | WT53: =+IF(G53="N/A",0,IF(AND(General!$C$76=1,OR(J53="",J53="N/A"),SUM(P53:WQ53)>0),1,0)) -> 0 | WU53: 1
A54: =+IF(G54="N/A",0,IF(AND(SUM(OFFSET(P54,0,0,1,'Escenario 1 a la base'!$AE$1))>0,(I54="")),1,0)) -> 0 | B54: =+B53 -> AC-2 | C54: Evaluación | D54: SA-08 | E54: General | F54: TA-036 | G54: Plan de desarrollo con ingeniería básica | WS54: 0 | WT54: =+IF(G54="N/A",0,IF(AND(General!$C$76=1,OR(J54="",J54="N/A"),SUM(P54:WQ54)>0),1,0)) -> 0 | WU54: 1
A55: =+IF(G55="N/A",0,IF(AND(SUM(OFFSET(P55,0,0,1,'Escenario 1 a la base'!$AE$1))>0,(I55="")),1,0)) -> 0 | B55: =+B54 -> AC-2 | C55: Evaluación | D55: SA-08 | E55: General | F55: TA-037 | G55: Administración, gestión de actividades y gastos generales del proyecto | WS55: 0 | WT55: =+IF(G55="N/A",0,IF(AND(General!$C$76=1,OR(J55="",J55="N/A"),SUM(P55:WQ55)>0),1,0)) -> 0 | WU55: 1
I56: Capacitación
I57: Transferencia de Tecnología
I58: Infraestructra Social
A59: =+IF(G59="N/A",0,IF(AND(SUM(OFFSET(P59,0,0,1,'Escenario 1 a la base'!$AE$1))>0,(I59="")),1,0)) -> 0 | B59: =+B55 -> AC-2 | C59: Evaluación | D59: SA-09 | E59: Geofísica | F59: TA-038 | G59: Adquisición sísmica, 2D, 3D, 4D, multicomponente | WS59: 0 | WT59: =+IF(G59="N/A",0,IF(AND(General!$C$76=1,OR(J59="",J59="N/A"),SUM(P59:WQ59)>0),1,0)) -> 0 | WU59: 1
A60: =+IF(G60="N/A",0,IF(AND(SUM(OFFSET(P60,0,0,1,'Escenario 1 a la base'!$AE$1))>0,(I60="")),1,0)) -> 0 | B60: AC-2 | C60: Evaluación | D60: SA-09 | E60: Geofísica | F60: TA-039 | G60: Pre-procesado, procesado, interpretación y re-procesado de datos sísmicos | WS60: 0 | WT60: =+IF(G60="N/A",0,IF(AND(General!$C$76=1,OR(J60="",J60="N/A"),SUM(P60:WQ60)>0),1,0)) -> 0 | WU60: 1
A61: =+IF(G61="N/A",0,IF(AND(SUM(OFFSET(P61,0,0,1,'Escenario 1 a la base'!$AE$1))>0,(I61="")),1,0)) -> 0 | B61: AC-2 | C61: Evaluación | D61: SA-09 | E61: Geofísica | F61: TA-040 | G61: Levantamientos magnetométricos, adquisición, procesado e interpretación | WS61: 0 | WT61: =+IF(G61="N/A",0,IF(AND(General!$C$76=1,OR(J61="",J61="N/A"),SUM(P61:WQ61)>0),1,0)) -> 0 | WU61: 1
A62: =+IF(G62="N/A",0,IF(AND(SUM(OFFSET(P62,0,0,1,'Escenario 1 a la base'!$AE$1))>0,(I62="")),1,0)) -> 0 | B62: AC-2 | C62: Evaluación | D62: SA-09 | E62: Geofísica | F62: TA-041 | G62: Levantamientos gravimétricos, adquisición, procesado e interpretación | WS62: 0 | WT62: =+IF(G62="N/A",0,IF(AND(General!$C$76=1,OR(J62="",J62="N/A"),SUM(P62:WQ62)>0),1,0)) -> 0 | WU62: 1
... 77 more rows

Sheet Escenario 1 a la base (hidden)
A1: Tipo Contrato | B1: ID_Contrato | C1: Contratista | D1: Superficie (km2) | E1: Cuenca | F1: Ubicación | G1: Sub tarea (Detalle) | H1: Estado | I1: Tipo de Plan | J1: id_Actividad petrolera | K1: Actividad petrolera | L1: id_Sub-actividad petrolera | M1: Sub-actividad petrolera | N1: id_Tarea | O1: Tarea | P1: id_Descripción | Q1: Descripción | R1: Complemento 1 | S1: Complemento 2 | T1: Complemento 3 | U1: Complemento 4 | V1: anio | W1: Escenario | X1: Monto (USD) | Y1: Tipo | Z1: CN/E | AA1: Si es programa o presupuesto | AB1: n | AC1: 50 | AD1: límite de n | AE1: =+General!J68*10 -> 10 | AG1: Registro Fiduciario
A2: =+OFFSET(General!$P$2,General!$I$2,0) -> Producción compartida | B2: =+General!$H$2 -> CNH-R01-L01-A7/2015 | C2: =+OFFSET(General!$O$1,General!$I$2,0) -> Sierra O&G Exploración y Producción, S. de R.L. de C.V., Talos energy Offshore Mexico 2, S. de R.L. de C.V., y Premier Oil exploration and Production Mexico, S.A. de C.V. | D2: =+General!$B$70 -> 464.799 | E2: =+General!$B$71 -> Cuencas del Sureste | F2: =+General!$B$72 -> Aguas someras | G2: =+Q2 -> 0 | H2: =+General!$B$73 -> Tabasco | I2: =+IF(General!H6=1,"Plan de Desarrollo",IF(General!H6=2,"Plan de Exploración","Plan de Evaluación")) -> Plan de Exploración | J2: =+'Escenario 1'!B16 -> AC-1 | K2: =+'Escenario 1'!C16 -> Exploración | L2: =+'Escenario 1'!D16 -> SA-01 | M2: =+'Escenario 1'!E16 -> General | N2: =+'Escenario 1'!F16 -> TA-001 | O2: =+'Escenario 1'!G16 -> Evaluaciones técnico económicas | P2: =+'Escenario 1'!H16 -> 0 | Q2: =+'Escenario 1'!I16 -> 0 | R2: =+'Escenario 1'!J16 -> 0 | S2: =+'Escenario 1'!K16 -> 0 | T2: =+'Escenario 1'!L16 -> 0 | U2: =+'Escenario 1'!M16 -> 0 | V2: =+IF($AC$1<=10,OFFSET(General!$G$6,General!$J$67,0),IF($AC$1<=20,OFFSET(General!$G$6,General!$J$67,0)+1,IF($AC$1<=30,OFFSET(General!$G$6,General!$J$67,0)+2,IF($AC$1<=40,OFFSET(General!$G$6,General!$J$67,0)+3,IF($AC$1<=50,OFFSET(General!$G$6,General!$J$67,0)+4,IF($AC$1<=60,OFFSET(General!$G$6,General!$J$67,0)+5,IF($AC$1<=70,OFFSET(General!$G$6,General!$J$67,0)+6,IF($AC$1<=80,OFFSET(General!$G$6,General!$J$67,0)+7,IF($AC$1<=90,OFFSET(General!$G$6,General!$J$67,0)+8,IF($AC$1<=100,OFFSET(General!$G$6,General!$J$67,0)+9,IF($AC$1<=110,OFFSET(General!$G$6,General!$J$67,0)+10,IF($AC$1<=120,OFFSET(General!$G$6,General!$J$67,0)+11,IF($AC$1<=130,OFFSET(General!$G$6,General!$J$67,0)+12,IF($AC$1<=140,OFFSET(General!$G$6,General!$J$67,0)+13,IF($AC$1<=150,OFFSET(General!$G$6,General!$J$67,0)+14,IF($AC$1<=160,OFFSET(General!$G$6,General!$J$67,0)+15,IF($AC$1<=170,OFFSET(General!$G$6,General!$J$67,0)+16,IF($AC$1<=180,OFFSET(General!$G$6,General!$J$67,0)+17,IF($AC$1<=190,OFFSET(General!$G$6,General!$J$67,0)+18,IF($AC$1<=200,OFFSET(General!$G$6,General!$J$67,0)+19,IF($AC$1<=210,OFFSET(General!$G$6,General!$J$67,0)+20))))))))))))))))))))) -> 2021 | W2: =+IF(General!$B$21=1,"Único",General!$B$24) -> Único | X2: =+OFFSET('Escenario 1'!P16,0,'Escenario 1 a la base'!$AC$1) -> 0 | Y2: =+IF(OFFSET('Escenario 1'!$N$6,0,'Escenario 1 a la base'!$AC$1)=1,"MO",IF(OFFSET('Escenario 1'!$N$6,0,'Escenario 1 a la base'!$AC$1)=2,"MO",IF(OFFSET('Escenario 1'!$N$6,0,'Escenario 1 a la base'!$AC$1)=3,"B",IF(OFFSET('Escenario 1'!$N$6,0,'Escenario 1 a la base'!$AC$1)=4,"B",IF(OFFSET('Escenario 1'!$N$6,0,'Escenario 1 a la base'!$AC$1)=5,"S",IF(OFFSET('Escenario 1'!$N$6,0,'Escenario 1 a la base'!$AC$1)=6,"S",IF(OFFSET('Escenario 1'!$N$6,0,'Escenario 1 a la base'!$AC$1)=7,"C",IF(OFFSET('Escenario 1'!$N$6,0,'Escenario 1 a la base'!$AC$1)=8,"C",IF(OFFSET('Escenario 1'!$N$6,0,'Escenario 1 a la base'!$AC$1)=9,"TT",IF(OFFSET('Escenario 1'!$N$6,0,'Escenario 1 a la base'!$AC$1)=10,"I")))))))))) -> TT | Z2: =+IF(ISEVEN(AC1),"E","CN") -> E | AA2: Programa de Inversiones | AG2: =+OFFSET(General!$U$2,General!$I$2,0) -> RF-C003-2015-003
A3: =+OFFSET(General!$P$2,General!$I$2,0) -> Producción compartida | B3: =+General!$H$2 -> CNH-R01-L01-A7/2015 | C3: =+OFFSET(General!$O$1,General!$I$2,0) -> Sierra O&G Exploración y Producción, S. de R.L. de C.V., Talos energy Offshore Mexico 2, S. de R.L. de C.V., y Premier Oil exploration and Production Mexico, S.A. de C.V. | D3: =+General!$B$70 -> 464.799 | E3: =+General!$B$71 -> Cuencas del Sureste | F3: =+General!$B$72 -> Aguas someras | G3: =+Q3 -> 0 | H3: =+General!$B$73 -> Tabasco | I3: =+I2 -> Plan de Exploración | J3: =+'Escenario 1'!B17 -> AC-1 | K3: =+'Escenario 1'!C17 -> Exploración | L3: =+'Escenario 1'!D17 -> SA-01 | M3: =+'Escenario 1'!E17 -> General | N3: =+'Escenario 1'!F17 -> TA-002 | O3: =+'Escenario 1'!G17 -> Recopilación de información | P3: =+'Escenario 1'!H17 -> 0 | Q3: =+'Escenario 1'!I17 -> 0 | R3: =+'Escenario 1'!J17 -> 0 | S3: =+'Escenario 1'!K17 -> 0 | T3: =+'Escenario 1'!L17 -> 0 | U3: =+'Escenario 1'!M17 -> 0 | V3: =+IF($AC$1<=10,OFFSET(General!$G$6,General!$J$67,0),IF($AC$1<=20,OFFSET(General!$G$6,General!$J$67,0)+1,IF($AC$1<=30,OFFSET(General!$G$6,General!$J$67,0)+2,IF($AC$1<=40,OFFSET(General!$G$6,General!$J$67,0)+3,IF($AC$1<=50,OFFSET(General!$G$6,General!$J$67,0)+4,IF($AC$1<=60,OFFSET(General!$G$6,General!$J$67,0)+5,IF($AC$1<=70,OFFSET(General!$G$6,General!$J$67,0)+6,IF($AC$1<=80,OFFSET(General!$G$6,General!$J$67,0)+7,IF($AC$1<=90,OFFSET(General!$G$6,General!$J$67,0)+8,IF($AC$1<=100,OFFSET(General!$G$6,General!$J$67,0)+9,IF($AC$1<=110,OFFSET(General!$G$6,General!$J$67,0)+10,IF($AC$1<=120,OFFSET(General!$G$6,General!$J$67,0)+11,IF($AC$1<=130,OFFSET(General!$G$6,General!$J$67,0)+12,IF($AC$1<=140,OFFSET(General!$G$6,General!$J$67,0)+13,IF($AC$1<=150,OFFSET(General!$G$6,General!$J$67,0)+14,IF($AC$1<=160,OFFSET(General!$G$6,General!$J$67,0)+15,IF($AC$1<=170,OFFSET(General!$G$6,General!$J$67,0)+16,IF($AC$1<=180,OFFSET(General!$G$6,General!$J$67,0)+17,IF($AC$1<=190,OFFSET(General!$G$6,General!$J$67,0)+18,IF($AC$1<=200,OFFSET(General!$G$6,General!$J$67,0)+19,IF($AC$1<=210,OFFSET(General!$G$6,General!$J$67,0)+20))))))))))))))))))))) -> 2021 | W3: =+IF(General!$B$21=1,"Único",General!$B$24) -> Único | X3: =+OFFSET('Escenario 1'!P17,0,'Escenario 1 a la base'!$AC$1) -> 0 | Y3: =+IF(OFFSET('Escenario 1'!$N$6,0,'Escenario 1 a la base'!$AC$1)=1,"MO",IF(OFFSET('Escenario 1'!$N$6,0,'Escenario 1 a la base'!$AC$1)=2,"MO",IF(OFFSET('Escenario 1'!$N$6,0,'Escenario 1 a la base'!$AC$1)=3,"B",IF(OFFSET('Escenario 1'!$N$6,0,'Escenario 1 a la base'!$AC$1)=4,"B",IF(OFFSET('Escenario 1'!$N$6,0,'Escenario 1 a la base'!$AC$1)=5,"S",IF(OFFSET('Escenario 1'!$N$6,0,'Escenario 1 a la base'!$AC$1)=6,"S",IF(OFFSET('Escenario 1'!$N$6,0,'Escenario 1 a la base'!$AC$1)=7,"C",IF(OFFSET('Escenario 1'!$N$6,0,'Escenario 1 a la base'!$AC$1)=8,"C",IF(OFFSET('Escenario 1'!$N$6,0,'Escenario 1 a la base'!$AC$1)=9,"TT",IF(OFFSET('Escenario 1'!$N$6,0,'Escenario 1 a la base'!$AC$1)=10,"I")))))))))) -> TT | Z3: =+IF(ISEVEN(AC2),"E","CN") -> E | AA3: Programa de Inversiones | AG3: =+AG2 -> RF-C003-2015-003
